Workbook

Sheet All Assembly FPKM
A1: Additional file 1. FPKM values of all transcripts on the different substrates tested. For each substrate, two FPKM values from two separate growth experiments as well as the average FPKM values are shown.
A2: Glucose | B2: FPKM Read 1 | C2: FPKM Read 2 | D2: Glucose Average | E2: Alfalfa | F2: FPKM Read 1 | G2: FPKM Read 2 | H2: Alfalfa Average | I2: gene_id | J2: FPKM Read 1 | K2: FPKM Read 2 | L2: Energy Cane Averages | M2: CornStover | N2: FPKM Read 1 | O2: FPKM Read 2 | P2: CornAverage | Q2: Sorgrum | R2: FPKM Read 1 | S2: FPKM Read 2 | T2: Sorgrum Average
A3: comp100033_c0_seq1 | B3: 13.65 | C3: 6.67 | D3: =AVERAGE(C3,B3) -> 10.16 | E3: comp100033_c0_seq1 | F3: 1.29 | G3: 0.89 | H3: 1.09 | I3: comp100033_c0_seq1 | J3: 7.33 | K3: 7.35 | L3: =AVERAGE(J3:K3) -> 7.34 | M3: comp100033_c0_seq1 | N3: 8.96 | O3: 8.57 | P3: =AVERAGE(N3:O3) -> 8.765 | Q3: comp100033_c0_seq1 | R3: 6.08 | S3: 6.61 | T3: =AVERAGE(R3:S3) -> 6.345
A4: comp100039_c0_seq1 | B4: 2.34 | C4: 0.45 | D4: =AVERAGE(C4,B4) -> 1.395 | E4: comp100039_c0_seq1 | F4: 0.99 | G4: 0.84 | H4: 0.915 | I4: comp100039_c0_seq1 | J4: 6.93 | K4: 4.81 | L4: =AVERAGE(J4:K4) -> 5.87 | M4: comp100039_c0_seq1 | N4: 4.76 | O4: 4.2 | P4: =AVERAGE(N4:O4) -> 4.48 | Q4: comp100039_c0_seq1 | R4: 6.57 | S4: 10.97 | T4: =AVERAGE(R4:S4) -> 8.77
A5: comp10004043_c0_seq1 | B5: 0 | C5: 0.16 | D5: 0.08 | E5: comp10004043_c0_seq1 | F5: 0 | G5: 0 | H5: 0 | I5: comp10004043_c0_seq1 | J5: 0 | K5: 0 | L5: 0 | M5: comp10004043_c0_seq1 | N5: 0 | O5: 0 | P5: 0 | Q5: comp10004043_c0_seq1 | R5: 0 | S5: 0 | T5: 0
A6: comp100145_c0_seq1 | B6: 12.94 | C6: 6.46 | D6: 9.7 | E6: comp100145_c0_seq1 | F6: 8.75 | G6: 3.95 | H6: 6.35 | I6: comp100145_c0_seq1 | J6: 12.77 | K6: 13.61 | L6: 13.19 | M6: comp100145_c0_seq1 | N6: 3.25 | O6: 0.45 | P6: 1.85 | Q6: comp100145_c0_seq1 | R6: 2.83 | S6: 5.74 | T6: 4.285
A7: comp100179_c0_seq1 | B7: 2.53 | C7: 1.06 | D7: 1.795 | E7: comp100179_c0_seq1 | F7: 1.7 | G7: 1.37 | H7: 1.535 | I7: comp100179_c0_seq1 | J7: 3.46 | K7: 4.95 | L7: 4.205 | M7: comp100179_c0_seq1 | N7: 9.09 | O7: 10.28 | P7: 9.685 | Q7: comp100179_c0_seq1 | R7: 5.83 | S7: 6.74 | T7: 6.285
A8: comp10022846_c0_seq1 | B8: 0 | C8: 0 | D8: 0 | E8: comp10022846_c0_seq1 | F8: 0 | G8: 0 | H8: 0 | I8: comp10022846_c0_seq1 | J8: 0 | K8: 0 | L8: 0 | M8: comp10022846_c0_seq1 | N8: 0 | O8: 0 | P8: 0 | Q8: comp10022846_c0_seq1 | R8: 0 | S8: 0 | T8: 0
A9: comp10023067_c0_seq1 | B9: 0 | C9: 0 | D9: 0 | E9: comp10023067_c0_seq1 | F9: 0 | G9: 0 | H9: 0 | I9: comp10023067_c0_seq1 | J9: 0 | K9: 0 | L9: 0 | M9: comp10023067_c0_seq1 | N9: 0 | O9: 0 | P9: 0 | Q9: comp10023067_c0_seq1 | R9: 0 | S9: 0 | T9: 0
A10: comp10023615_c0_seq1 | B10: 0 | C10: 0 | D10: 0 | E10: comp10023615_c0_seq1 | F10: 0 | G10: 0 | H10: 0 | I10: comp10023615_c0_seq1 | J10: 0 | K10: 0 | L10: 0 | M10: comp10023615_c0_seq1 | N10: 0 | O10: 0 | P10: 0 | Q10: comp10023615_c0_seq1 | R10: 0 | S10: 0 | T10: 0
A11: comp10023863_c0_seq1 | B11: 0 | C11: 0 | D11: 0 | E11: comp10023863_c0_seq1 | F11: 0 | G11: 0 | H11: 0 | I11: comp10023863_c0_seq1 | J11: 0 | K11: 0 | L11: 0 | M11: comp10023863_c0_seq1 | N11: 0 | O11: 0 | P11: 0 | Q11: comp10023863_c0_seq1 | R11: 0 | S11: 0 | T11: 0
A12: comp100270_c0_seq1 | B12: 1.31 | C12: 0.57 | D12: 0.94 | E12: comp100270_c0_seq1 | F12: 1.1 | G12: 0.66 | H12: 0.88 | I12: comp100270_c0_seq1 | J12: 4.25 | K12: 4.37 | L12: 4.31 | M12: comp100270_c0_seq1 | N12: 2.65 | O12: 2.08 | P12: 2.365 | Q12: comp100270_c0_seq1 | R12: 1.3 | S12: 2.9 | T12: 2.1
A13: comp1003855_c0_seq1 | B13: 0 | C13: 0 | D13: 0 | E13: comp1003855_c0_seq1 | F13: 0 | G13: 0 | H13: 0 | I13: comp1003855_c0_seq1 | J13: 0 | K13: 0.22 | L13: 0.11 | M13: comp1003855_c0_seq1 | N13: 0 | O13: 0 | P13: 0 | Q13: comp1003855_c0_seq1 | R13: 0.13 | S13: 0 | T13: 0.065
A14: comp10041115_c0_seq1 | B14: 0 | C14: 0 | D14: 0 | E14: comp10041115_c0_seq1 | F14: 0 | G14: 0 | H14: 0 | I14: comp10041115_c0_seq1 | J14: 0 | K14: 0 | L14: 0 | M14: comp10041115_c0_seq1 | N14: 0 | O14: 0 | P14: 0 | Q14: comp10041115_c0_seq1 | R14: 0 | S14: 0 | T14: 0
A15: comp100447_c0_seq1 | B15: 8.19 | C15: 1.51 | D15: 4.85 | E15: comp100447_c0_seq1 | F15: 6.89 | G15: 6.89 | H15: 6.89 | I15: comp100447_c0_seq1 | J15: 4.21 | K15: 4.94 | L15: 4.575 | M15: comp100447_c0_seq1 | N15: 13.68 | O15: 15.45 | P15: 14.565 | Q15: comp100447_c0_seq1 | R15: 8.73 | S15: 7.93 | T15: 8.33
A16: comp1004503_c0_seq1 | B16: 0 | C16: 0 | D16: 0 | E16: comp1004503_c0_seq1 | F16: 0 | G16: 0 | H16: 0 | I16: comp1004503_c0_seq1 | J16: 0.38 | K16: 0 | L16: 0.19 | M16: comp1004503_c0_seq1 | N16: 0 | O16: 0 | P16: 0 | Q16: comp1004503_c0_seq1 | R16: 0 | S16: 0.13 | T16: 0.065
A17: comp1004595_c0_seq1 | B17: 0 | C17: 0 | D17: 0 | E17: comp1004595_c0_seq1 | F17: 0 | G17: 0 | H17: 0 | I17: comp1004595_c0_seq1 | J17: 0 | K17: 0 | L17: 0 | M17: comp1004595_c0_seq1 | N17: 0 | O17: 0.17 | P17: 0.085 | Q17: comp1004595_c0_seq1 | R17: 0 | S17: 0.68 | T17: 0.34
A18: comp10050316_c0_seq1 | B18: 0 | C18: 0 | D18: 0 | E18: comp10050316_c0_seq1 | F18: 0 | G18: 0 | H18: 0 | I18: comp10050316_c0_seq1 | J18: 0 | K18: 0 | L18: 0 | M18: comp10050316_c0_seq1 | N18: 0 | O18: 0 | P18: 0 | Q18: comp10050316_c0_seq1 | R18: 0 | S18: 0 | T18: 0
A19: comp1005244_c0_seq1 | B19: 0.3 | C19: 0.24 | D19: 0.27 | E19: comp1005244_c0_seq1 | F19: 0 | G19: 0 | H19: 0 | I19: comp1005244_c0_seq1 | J19: 0 | K19: 0.26 | L19: 0.13 | M19: comp1005244_c0_seq1 | N19: 0.22 | O19: 0.41 | P19: 0.315 | Q19: comp1005244_c0_seq1 | R19: 1.63 | S19: 0.97 | T19: 1.3
A20: comp1005398_c0_seq1 | B20: 0.16 | C20: 0 | D20: 0.08 | E20: comp1005398_c0_seq1 | F20: 0 | G20: 0.32 | H20: 0.16 | I20: comp1005398_c0_seq1 | J20: 0 | K20: 0.13 | L20: 0.065 | M20: comp1005398_c0_seq1 | N20: 0 | O20: 0 | P20: 0 | Q20: comp1005398_c0_seq1 | R20: 0 | S20: 0.08 | T20: 0.04
A21: comp100549_c0_seq1 | B21: 3.13 | C21: 1.46 | D21: 2.295 | E21: comp100549_c0_seq1 | F21: 6.84 | G21: 4.89 | H21: 5.865 | I21: comp100549_c0_seq1 | J21: 18.56 | K21: 13.04 | L21: 15.8 | M21: comp100549_c0_seq1 | N21: 5.08 | O21: 2.72 | P21: 3.9 | Q21: comp100549_c0_seq1 | R21: 10.54 | S21: 15.34 | T21: 12.94
A22: comp1005654_c0_seq1 | B22: 0 | C22: 0 | D22: 0 | E22: comp1005654_c0_seq1 | F22: 0 | G22: 0 | H22: 0 | I22: comp1005654_c0_seq1 | J22: 0 | K22: 0 | L22: 0 | M22: comp1005654_c0_seq1 | N22: 0 | O22: 0 | P22: 0 | Q22: comp1005654_c0_seq1 | R22: 0 | S22: 0 | T22: 0
A23: comp100567_c0_seq1 | B23: 0.98 | C23: 1.35 | D23: 1.165 | E23: comp100567_c0_seq1 | F23: 4.23 | G23: 1.97 | H23: 3.1 | I23: comp100567_c0_seq1 | J23: 4.12 | K23: 4.06 | L23: 4.09 | M23: comp100567_c0_seq1 | N23: 2.39 | O23: 1.94 | P23: 2.165 | Q23: comp100567_c0_seq1 | R23: 2.42 | S23: 4.75 | T23: 3.585
A24: comp100568_c0_seq1 | B24: 3.63 | C24: 1.93 | D24: 2.78 | E24: comp100568_c0_seq1 | F24: 2.94 | G24: 3.21 | H24: 3.075 | I24: comp100568_c0_seq1 | J24: 7.67 | K24: 6.09 | L24: 6.88 | M24: comp100568_c0_seq1 | N24: 9.53 | O24: 9.97 | P24: 9.75 | Q24: comp100568_c0_seq1 | R24: 9.43 | S24: 12.07 | T24: 10.75
A25: comp100571_c0_seq1 | B25: 11.03 | C25: 3.21 | D25: 7.12 | E25: comp100571_c0_seq1 | F25: 9.9 | G25: 12.37 | H25: 11.135 | I25: comp100571_c0_seq1 | J25: 9.88 | K25: 11 | L25: 10.44 | M25: comp100571_c0_seq1 | N25: 7.02 | O25: 6.73 | P25: 6.875 | Q25: comp100571_c0_seq1 | R25: 6.19 | S25: 6.28 | T25: 6.235
A26: comp100614_c0_seq1 | B26: 3.13 | C26: 1.59 | D26: 2.36 | E26: comp100614_c0_seq1 | F26: 2.1 | G26: 1.15 | H26: 1.625 | I26: comp100614_c0_seq1 | J26: 9.53 | K26: 6.65 | L26: 8.09 | M26: comp100614_c0_seq1 | N26: 3.37 | O26: 2.32 | P26: 2.845 | Q26: comp100614_c0_seq1 | R26: 2.55 | S26: 4.98 | T26: 3.765
A27: comp10064700_c0_seq1 | B27: 0 | C27: 0 | D27: 0 | E27: comp10064700_c0_seq1 | F27: 0 | G27: 0 | H27: 0 | I27: comp10064700_c0_seq1 | J27: 0 | K27: 0 | L27: 0 | M27: comp10064700_c0_seq1 | N27: 0 | O27: 0 | P27: 0 | Q27: comp10064700_c0_seq1 | R27: 0 | S27: 0 | T27: 0
A28: comp1006502_c0_seq1 | B28: 0 | C28: 0.64 | D28: 0.32 | E28: comp1006502_c0_seq1 | F28: 0 | G28: 0 | H28: 0 | I28: comp1006502_c0_seq1 | J28: 0.12 | K28: 0 | L28: 0.06 | M28: comp1006502_c0_seq1 | N28: 0.12 | O28: 0 | P28: 0.06 | Q28: comp1006502_c0_seq1 | R28: 0 | S28: 0 | T28: 0
A29: comp1006551_c0_seq1 | B29: 0 | C29: 0 | D29: 0 | E29: comp1006551_c0_seq1 | F29: 0 | G29: 0.47 | H29: 0.235 | I29: comp1006551_c0_seq1 | J29: 0 | K29: 0 | L29: 0 | M29: comp1006551_c0_seq1 | N29: 0 | O29: 0 | P29: 0 | Q29: comp1006551_c0_seq1 | R29: 0 | S29: 0 | T29: 0
A30: comp10066287_c0_seq1 | B30: 0 | C30: 0 | D30: 0 | E30: comp10066287_c0_seq1 | F30: 0 | G30: 0 | H30: 0 | I30: comp10066287_c0_seq1 | J30: 0 | K30: 0 | L30: 0 | M30: comp10066287_c0_seq1 | N30: 0 | O30: 0 | P30: 0 | Q30: comp10066287_c0_seq1 | R30: 0 | S30: 0 | T30: 0
A31: comp1006641_c0_seq1 | B31: 0 | C31: 0 | D31: 0 | E31: comp1006641_c0_seq1 | F31: 0 | G31: 0 | H31: 0 | I31: comp1006641_c0_seq1 | J31: 0 | K31: 0 | L31: 0 | M31: comp1006641_c0_seq1 | N31: 0.13 | O31: 0.06 | P31: 0.095 | Q31: comp1006641_c0_seq1 | R31: 0.18 | S31: 0.24 | T31: 0.21
A32: comp10067751_c0_seq1 | B32: 0 | C32: 0 | D32: 0 | E32: comp10067751_c0_seq1 | F32: 0 | G32: 0 | H32: 0 | I32: comp10067751_c0_seq1 | J32: 0 | K32: 0 | L32: 0 | M32: comp10067751_c0_seq1 | N32: 0 | O32: 0 | P32: 0 | Q32: comp10067751_c0_seq1 | R32: 0 | S32: 0 | T32: 0
A33: comp100685_c0_seq1 | B33: 2.92 | C33: 1.41 | D33: 2.165 | E33: comp100685_c0_seq1 | F33: 1.1 | G33: 0.84 | H33: 0.97 | I33: comp100685_c0_seq1 | J33: 6.55 | K33: 4.79 | L33: 5.67 | M33: comp100685_c0_seq1 | N33: 9.11 | O33: 8.66 | P33: 8.885 | Q33: comp100685_c0_seq1 | R33: 7.35 | S33: 11.98 | T33: 9.665
A34: comp100715_c0_seq1 | B34: 1.61 | C34: 0.57 | D34: 1.09 | E34: comp100715_c0_seq1 | F34: 2.85 | G34: 2.69 | H34: 2.77 | I34: comp100715_c0_seq1 | J34: 6.26 | K34: 5.77 | L34: 6.015 | M34: comp100715_c0_seq1 | N34: 6.86 | O34: 2.75 | P34: 4.805 | Q34: comp100715_c0_seq1 | R34: 8.26 | S34: 11.28 | T34: 9.77
A35: comp1007347_c0_seq1 | B35: 0 | C35: 0 | D35: 0 | E35: comp1007347_c0_seq1 | F35: 0 | G35: 0 | H35: 0 | I35: comp1007347_c0_seq1 | J35: 0.19 | K35: 0 | L35: 0.095 | M35: comp1007347_c0_seq1 | N35: 0 | O35: 0.09 | P35: 0.045 | Q35: comp1007347_c0_seq1 | R35: 0 | S35: 0 | T35: 0
A36: comp1007640_c0_seq1 | B36: 0.12 | C36: 0 | D36: 0.06 | E36: comp1007640_c0_seq1 | F36: 0.37 | G36: 0.13 | H36: 0.25 | I36: comp1007640_c0_seq1 | J36: 0.36 | K36: 0.32 | L36: 0.34 | M36: comp1007640_c0_seq1 | N36: 0 | O36: 0 | P36: 0 | Q36: comp1007640_c0_seq1 | R36: 0 | S36: 0 | T36: 0
A37: comp1007675_c0_seq1 | B37: 0.2 | C37: 0.8 | D37: 0.5 | E37: comp1007675_c0_seq1 | F37: 0.3 | G37: 0 | H37: 0.15 | I37: comp1007675_c0_seq1 | J37: 0 | K37: 0 | L37: 0 | M37: comp1007675_c0_seq1 | N37: 0 | O37: 0.14 | P37: 0.07 | Q37: comp1007675_c0_seq1 | R37: 0.11 | S37: 0.16 | T37: 0.135
A38: comp1007956_c0_seq1 | B38: 0 | C38: 0 | D38: 0 | E38: comp1007956_c0_seq1 | F38: 0 | G38: 0 | H38: 0 | I38: comp1007956_c0_seq1 | J38: 0.24 | K38: 0.1 | L38: 0.17 | M38: comp1007956_c0_seq1 | N38: 0.25 | O38: 0 | P38: 0.125 | Q38: comp1007956_c0_seq1 | R38: 0 | S38: 0.24 | T38: 0.12
A39: comp100810_c0_seq1 | B39: 2.47 | C39: 1.38 | D39: 1.925 | E39: comp100810_c0_seq1 | F39: 5.24 | G39: 2.67 | H39: 3.955 | I39: comp100810_c0_seq1 | J39: 6.49 | K39: 8.78 | L39: 7.635 | M39: comp100810_c0_seq1 | N39: 7.17 | O39: 7.12 | P39: 7.145 | Q39: comp100810_c0_seq1 | R39: 7.34 | S39: 9.85 | T39: 8.595
A40: comp1008855_c0_seq1 | B40: 0.13 | C40: 0 | D40: 0.065 | E40: comp1008855_c0_seq1 | F40: 0.19 | G40: 0.38 | H40: 0.285 | I40: comp1008855_c0_seq1 | J40: 0.36 | K40: 0.21 | L40: 0.285 | M40: comp1008855_c0_seq1 | N40: 0.19 | O40: 0.08 | P40: 0.135 | Q40: comp1008855_c0_seq1 | R40: 0.19 | S40: 0.07 | T40: 0.13
A41: comp100885_c0_seq1 | B41: 2.15 | C41: 0.81 | D41: 1.48 | E41: comp100885_c0_seq1 | F41: 3.65 | G41: 4.13 | H41: 3.89 | I41: comp100885_c0_seq1 | J41: 8.31 | K41: 8.9 | L41: 8.605 | M41: comp100885_c0_seq1 | N41: 7.12 | O41: 7.05 | P41: 7.085 | Q41: comp100885_c0_seq1 | R41: 3.44 | S41: 4.09 | T41: 3.765
A42: comp101037_c0_seq1 | B42: 2.49 | C42: 0.9 | D42: 1.695 | E42: comp101037_c0_seq1 | F42: 1.33 | G42: 1.46 | H42: 1.395 | I42: comp101037_c0_seq1 | J42: 5.49 | K42: 4.33 | L42: 4.91 | M42: comp101037_c0_seq1 | N42: 2.47 | O42: 2.29 | P42: 2.38 | Q42: comp101037_c0_seq1 | R42: 6.14 | S42: 6.28 | T42: 6.21
A43: comp101058_c0_seq1 | B43: 15.25 | C43: 9.82 | D43: 12.535 | E43: comp101058_c0_seq1 | F43: 1.14 | G43: 1.86 | H43: 1.5 | I43: comp101058_c0_seq1 | J43: 4.85 | K43: 5.37 | L43: 5.11 | M43: comp101058_c0_seq1 | N43: 9.79 | O43: 10.67 | P43: 10.23 | Q43: comp101058_c0_seq1 | R43: 4.58 | S43: 5.31 | T43: 4.945
A44: comp101139_c0_seq1 | B44: 0.67 | C44: 1.07 | D44: 0.87 | E44: comp101139_c0_seq1 | F44: 5.19 | G44: 4.87 | H44: 5.03 | I44: comp101139_c0_seq1 | J44: 4.16 | K44: 7.24 | L44: 5.7 | M44: comp101139_c0_seq1 | N44: 5.29 | O44: 4.52 | P44: 4.905 | Q44: comp101139_c0_seq1 | R44: 5.19 | S44: 6.65 | T44: 5.92
A45: comp101144_c0_seq1 | B45: 1.45 | C45: 0.61 | D45: 1.03 | E45: comp101144_c0_seq1 | F45: 1.83 | G45: 1.62 | H45: 1.725 | I45: comp101144_c0_seq1 | J45: 8.6 | K45: 8.24 | L45: 8.42 | M45: comp101144_c0_seq1 | N45: 5.07 | O45: 4.4 | P45: 4.735 | Q45: comp101144_c0_seq1 | R45: 4.38 | S45: 5.6 | T45: 4.99
A46: comp101149_c0_seq1 | B46: 5.95 | C46: 1.9 | D46: 3.925 | E46: comp101149_c0_seq1 | F46: 3.71 | G46: 3.78 | H46: 3.745 | I46: comp101149_c0_seq1 | J46: 7.92 | K46: 8.75 | L46: 8.335 | M46: comp101149_c0_seq1 | N46: 7.55 | O46: 7.09 | P46: 7.32 | Q46: comp101149_c0_seq1 | R46: 6.7 | S46: 8.48 | T46: 7.59
A47: comp101190_c0_seq1 | B47: 1.8 | C47: 0.61 | D47: 1.205 | E47: comp101190_c0_seq1 | F47: 0.17 | G47: 0.27 | H47: 0.22 | I47: comp101190_c0_seq1 | J47: 4.47 | K47: 3.52 | L47: 3.995 | M47: comp101190_c0_seq1 | N47: 6.39 | O47: 7.18 | P47: 6.785 | Q47: comp101190_c0_seq1 | R47: 6.35 | S47: 9.72 | T47: 8.035
A48: comp101193_c0_seq1 | B48: 3.16 | C48: 1.02 | D48: 2.09 | E48: comp101193_c0_seq1 | F48: 1.08 | G48: 1.13 | H48: 1.105 | I48: comp101193_c0_seq1 | J48: 5.12 | K48: 4.33 | L48: 4.725 | M48: comp101193_c0_seq1 | N48: 4.03 | O48: 4.07 | P48: 4.05 | Q48: comp101193_c0_seq1 | R48: 3.73 | S48: 5.03 | T48: 4.38
A49: comp10122736_c0_seq1 | B49: 0 | C49: 0 | D49: 0 | E49: comp10122736_c0_seq1 | F49: 0 | G49: 0 | H49: 0 | I49: comp10122736_c0_seq1 | J49: 0 | K49: 0 | L49: 0 | M49: comp10122736_c0_seq1 | N49: 0 | O49: 0 | P49: 0 | Q49: comp10122736_c0_seq1 | R49: 0 | S49: 0.14 | T49: 0.07
A50: comp101230_c0_seq1 | B50: 1.05 | C50: 1.59 | D50: 1.32 | E50: comp101230_c0_seq1 | F50: 4.5 | G50: 2.76 | H50: 3.63 | I50: comp101230_c0_seq1 | J50: 6.63 | K50: 7.92 | L50: 7.275 | M50: comp101230_c0_seq1 | N50: 10.7 | O50: 10.85 | P50: 10.775 | Q50: comp101230_c0_seq1 | R50: 7.74 | S50: 10.01 | T50: 8.875
A51: comp101279_c0_seq1 | B51: 2.27 | C51: 3.22 | D51: 2.745 | E51: comp101279_c0_seq1 | F51: 4.61 | G51: 1.88 | H51: 3.245 | I51: comp101279_c0_seq1 | J51: 9.71 | K51: 8.46 | L51: 9.085 | M51: comp101279_c0_seq1 | N51: 7.04 | O51: 1.61 | P51: 4.325 | Q51: comp101279_c0_seq1 | R51: 4.79 | S51: 10.75 | T51: 7.77
A52: comp101304_c0_seq1 | B52: 1.48 | C52: 0.4 | D52: 0.94 | E52: comp101304_c0_seq1 | F52: 2.38 | G52: 1.12 | H52: 1.75 | I52: comp101304_c0_seq1 | J52: 7.9 | K52: 7.46 | L52: 7.68 | M52: comp101304_c0_seq1 | N52: 2.9 | O52: 0.79 | P52: 1.845 | Q52: comp101304_c0_seq1 | R52: 5.42 | S52: 5.11 | T52: 5.265
A53: comp1013268_c0_seq1 | B53: 0.53 | C53: 0.1 | D53: 0.315 | E53: comp1013268_c0_seq1 | F53: 0.58 | G53: 0.13 | H53: 0.355 | I53: comp1013268_c0_seq1 | J53: 0.38 | K53: 0.67 | L53: 0.525 | M53: comp1013268_c0_seq1 | N53: 0.49 | O53: 0.35 | P53: 0.42 | Q53: comp1013268_c0_seq1 | R53: 0.07 | S53: 0 | T53: 0.035
A54: comp101334_c0_seq1 | B54: 1.84 | C54: 0.54 | D54: 1.19 | E54: comp101334_c0_seq1 | F54: 1.09 | G54: 2.15 | H54: 1.62 | I54: comp101334_c0_seq1 | J54: 14.19 | K54: 6.89 | L54: 10.54 | M54: comp101334_c0_seq1 | N54: 2.09 | O54: 1.09 | P54: 1.59 | Q54: comp101334_c0_seq1 | R54: 1.52 | S54: 2.1 | T54: 1.81
A55: comp101358_c0_seq1 | B55: 2.55 | C55: 0.17 | D55: 1.36 | E55: comp101358_c0_seq1 | F55: 1.62 | G55: 5.42 | H55: 3.52 | I55: comp101358_c0_seq1 | J55: 4.42 | K55: 3.17 | L55: 3.795 | M55: comp101358_c0_seq1 | N55: 3.03 | O55: 1.67 | P55: 2.35 | Q55: comp101358_c0_seq1 | R55: 8.43 | S55: 7.56 | T55: 7.995
A56: comp101410_c0_seq1 | B56: 2.85 | C56: 1.05 | D56: 1.95 | E56: comp101410_c0_seq1 | F56: 1.66 | G56: 2.01 | H56: 1.835 | I56: comp101410_c0_seq1 | J56: 8.94 | K56: 6.61 | L56: 7.775 | M56: comp101410_c0_seq1 | N56: 2.1 | O56: 1.17 | P56: 1.635 | Q56: comp101410_c0_seq1 | R56: 2.24 | S56: 3.5 | T56: 2.87
A57: comp101421_c0_seq1 | B57: 0.7 | C57: 0.56 | D57: 0.63 | E57: comp101421_c0_seq1 | F57: 0.64 | G57: 0.54 | H57: 0.59 | I57: comp101421_c0_seq1 | J57: 2.82 | K57: 2.74 | L57: 2.78 | M57: comp101421_c0_seq1 | N57: 2.46 | O57: 2.5 | P57: 2.48 | Q57: comp101421_c0_seq1 | R57: 2.57 | S57: 3.24 | T57: 2.905
A58: comp10143196_c0_seq1 | B58: 0 | C58: 0 | D58: 0 | E58: comp10143196_c0_seq1 | F58: 0 | G58: 0 | H58: 0 | I58: comp10143196_c0_seq1 | J58: 0 | K58: 0 | L58: 0 | M58: comp10143196_c0_seq1 | N58: 0 | O58: 0 | P58: 0 | Q58: comp10143196_c0_seq1 | R58: 0 | S58: 0 | T58: 0
A59: comp101432_c0_seq1 | B59: 1.3 | C59: 1.39 | D59: 1.345 | E59: comp101432_c0_seq1 | F59: 1.56 | G59: 1.05 | H59: 1.305 | I59: comp101432_c0_seq1 | J59: 4.19 | K59: 3.54 | L59: 3.865 | M59: comp101432_c0_seq1 | N59: 1.62 | O59: 1.71 | P59: 1.665 | Q59: comp101432_c0_seq1 | R59: 1.72 | S59: 3.15 | T59: 2.435
A60: comp10143857_c0_seq1 | B60: 0 | C60: 0 | D60: 0 | E60: comp10143857_c0_seq1 | F60: 0 | G60: 0 | H60: 0 | I60: comp10143857_c0_seq1 | J60: 0 | K60: 0 | L60: 0 | M60: comp10143857_c0_seq1 | N60: 0 | O60: 0 | P60: 0 | Q60: comp10143857_c0_seq1 | R60: 0 | S60: 0 | T60: 0
A61: comp1015207_c0_seq1 | B61: 0.39 | C61: 0.41 | D61: 0.4 | E61: comp1015207_c0_seq1 | F61: 0.19 | G61: 0 | H61: 0.095 | I61: comp1015207_c0_seq1 | J61: 0.37 | K61: 0.22 | L61: 0.295 | M61: comp1015207_c0_seq1 | N61: 0.1 | O61: 0.09 | P61: 0.095 | Q61: comp1015207_c0_seq1 | R61: 0 | S61: 0 | T61: 0
A62: comp10160501_c0_seq1 | B62: 0 | C62: 0 | D62: 0 | E62: comp10160501_c0_seq1 | F62: 0 | G62: 0 | H62: 0 | I62: comp10160501_c0_seq1 | J62: 0 | K62: 0 | L62: 0 | M62: comp10160501_c0_seq1 | N62: 0 | O62: 0 | P62: 0 | Q62: comp10160501_c0_seq1 | R62: 0 | S62: 0 | T62: 0
A63: comp1016432_c0_seq1 | B63: 0 | C63: 0 | D63: 0 | E63: comp1016432_c0_seq1 | F63: 0.33 | G63: 0.15 | H63: 0.24 | I63: comp1016432_c0_seq1 | J63: 0.05 | K63: 0.06 | L63: 0.055 | M63: comp1016432_c0_seq1 | N63: 0 | O63: 0.05 | P63: 0.025 | Q63: comp1016432_c0_seq1 | R63: 0.15 | S63: 0.36 | T63: 0.255
A64: comp10167375_c0_seq1 | B64: 0 | C64: 0 | D64: 0 | E64: comp10167375_c0_seq1 | F64: 0 | G64: 0 | H64: 0 | I64: comp10167375_c0_seq1 | J64: 0 | K64: 0 | L64: 0 | M64: comp10167375_c0_seq1 | N64: 0 | O64: 0 | P64: 0 | Q64: comp10167375_c0_seq1 | R64: 0 | S64: 0 | T64: 0
A65: comp101696_c0_seq1 | B65: 1.54 | C65: 0.96 | D65: 1.25 | E65: comp101696_c0_seq1 | F65: 3.84 | G65: 2.17 | H65: 3.005 | I65: comp101696_c0_seq1 | J65: 14.98 | K65: 12.98 | L65: 13.98 | M65: comp101696_c0_seq1 | N65: 3.34 | O65: 1.95 | P65: 2.645 | Q65: comp101696_c0_seq1 | R65: 3.56 | S65: 7.31 | T65: 5.435
A66: comp101706_c0_seq1 | B66: 5.45 | C66: 2.24 | D66: 3.845 | E66: comp101706_c0_seq1 | F66: 3.63 | G66: 3.33 | H66: 3.48 | I66: comp101706_c0_seq1 | J66: 8.8 | K66: 6.15 | L66: 7.475 | M66: comp101706_c0_seq1 | N66: 6.16 | O66: 6.66 | P66: 6.41 | Q66: comp101706_c0_seq1 | R66: 3.91 | S66: 6.18 | T66: 5.045
A67: comp101798_c0_seq1 | B67: 5.64 | C67: 2.45 | D67: 4.045 | E67: comp101798_c0_seq1 | F67: 9.19 | G67: 7.84 | H67: 8.515 | I67: comp101798_c0_seq1 | J67: 6.47 | K67: 7.56 | L67: 7.015 | M67: comp101798_c0_seq1 | N67: 4.52 | O67: 4.14 | P67: 4.33 | Q67: comp101798_c0_seq1 | R67: 5.59 | S67: 7.47 | T67: 6.53
A68: comp101867_c0_seq1 | B68: 0.22 | C68: 0.34 | D68: =AVERAGE(C68,B68) -> 0.28 | E68: comp101867_c0_seq1 | F68: 12.34 | G68: 12.04 | H68: 12.19 | I68: comp101867_c0_seq1 | J68: 4.81 | K68: 8.35 | L68: =AVERAGE(J68:K68) -> 6.58 | M68: comp101867_c0_seq1 | N68: 8.75 | O68: 7.28 | P68: =AVERAGE(N68:O68) -> 8.015 | Q68: comp101867_c0_seq1 | R68: 5.97 | S68: 7.32 | T68: =AVERAGE(R68:S68) -> 6.645
A69: comp101892_c0_seq1 | B69: 4.01 | C69: 1.62 | D69: 2.815 | E69: comp101892_c0_seq1 | F69: 7.77 | G69: 4.35 | H69: 6.06 | I69: comp101892_c0_seq1 | J69: 5.98 | K69: 8.03 | L69: 7.005 | M69: comp101892_c0_seq1 | N69: 3.8 | O69: 4.65 | P69: 4.225 | Q69: comp101892_c0_seq1 | R69: 4.36 | S69: 4.09 | T69: 4.225
A70: comp101918_c0_seq1 | B70: 0.7 | C70: 1.19 | D70: 0.945 | E70: comp101918_c0_seq1 | F70: 2.59 | G70: 1.55 | H70: 2.07 | I70: comp101918_c0_seq1 | J70: 3 | K70: 3.17 | L70: 3.085 | M70: comp101918_c0_seq1 | N70: 2.69 | O70: 2.82 | P70: 2.755 | Q70: comp101918_c0_seq1 | R70: 2.35 | S70: 4.69 | T70: 3.52
A71: comp101990_c0_seq1 | B71: 0.22 | C71: 0.43 | D71: 0.325 | E71: comp101990_c0_seq1 | F71: 0 | G71: 0.22 | H71: 0.11 | I71: comp101990_c0_seq1 | J71: 0.08 | K71: 0.28 | L71: 0.18 | M71: comp101990_c0_seq1 | N71: 0.74 | O71: 0.52 | P71: 0.63 | Q71: comp101990_c0_seq1 | R71: 0.34 | S71: 0.18 | T71: 0.26
A72: comp102070_c0_seq1 | B72: 0.71 | C72: 0.49 | D72: 0.6 | E72: comp102070_c0_seq1 | F72: 1.52 | G72: 0.86 | H72: 1.19 | I72: comp102070_c0_seq1 | J72: 4.55 | K72: 4.01 | L72: 4.28 | M72: comp102070_c0_seq1 | N72: 3.64 | O72: 3.52 | P72: 3.58 | Q72: comp102070_c0_seq1 | R72: 4.45 | S72: 4.69 | T72: 4.57
A73: comp1021162_c0_seq1 | B73: 0 | C73: 0.09 | D73: 0.045 | E73: comp1021162_c0_seq1 | F73: 0 | G73: 0 | H73: 0 | I73: comp1021162_c0_seq1 | J73: 0.32 | K73: 0.37 | L73: 0.345 | M73: comp1021162_c0_seq1 | N73: 0.16 | O73: 0.07 | P73: 0.115 | Q73: comp1021162_c0_seq1 | R73: 0.17 | S73: 0.18 | T73: 0.175
A74: comp10213470_c0_seq1 | B74: 0 | C74: 0 | D74: 0 | E74: comp10213470_c0_seq1 | F74: 0 | G74: 0 | H74: 0 | I74: comp10213470_c0_seq1 | J74: 0 | K74: 0 | L74: 0 | M74: comp10213470_c0_seq1 | N74: 0 | O74: 0 | P74: 0 | Q74: comp10213470_c0_seq1 | R74: 0 | S74: 0 | T74: 0
A75: comp102156_c0_seq1 | B75: 2.88 | C75: 1.31 | D75: 2.095 | E75: comp102156_c0_seq1 | F75: 1.77 | G75: 1.68 | H75: 1.725 | I75: comp102156_c0_seq1 | J75: 6.99 | K75: 7.96 | L75: 7.475 | M75: comp102156_c0_seq1 | N75: 6.51 | O75: 6.58 | P75: 6.545 | Q75: comp102156_c0_seq1 | R75: 5.81 | S75: 8.03 | T75: 6.92
A76: comp102194_c0_seq1 | B76: 1.13 | C76: 0.5 | D76: 0.815 | E76: comp102194_c0_seq1 | F76: 2 | G76: 1.99 | H76: 1.995 | I76: comp102194_c0_seq1 | J76: 4.94 | K76: 5.99 | L76: 5.465 | M76: comp102194_c0_seq1 | N76: 2.15 | O76: 2.29 | P76: 2.22 | Q76: comp102194_c0_seq1 | R76: 2.18 | S76: 3.45 | T76: 2.815
A77: comp1022024_c0_seq1 | B77: 0.19 | C77: 0.91 | D77: 0.55 | E77: comp1022024_c0_seq1 | F77: 0.58 | G77: 0.6 | H77: 0.59 | I77: comp1022024_c0_seq1 | J77: 0.14 | K77: 0 | L77: 0.07 | M77: comp1022024_c0_seq1 | N77: 0 | O77: 0.13 | P77: 0.065 | Q77: comp1022024_c0_seq1 | R77: 0 | S77: 0 | T77: 0
A78: comp102206_c0_seq1 | B78: 25.18 | C78: 13.43 | D78: 19.305 | E78: comp102206_c0_seq1 | F78: 1.49 | G78: 2.06 | H78: 1.775 | I78: comp102206_c0_seq1 | J78: 4.61 | K78: 3.47 | L78: 4.04 | M78: comp102206_c0_seq1 | N78: 4.58 | O78: 5.46 | P78: 5.02 | Q78: comp102206_c0_seq1 | R78: 6.32 | S78: 5.67 | T78: 5.995
A79: comp1022351_c0_seq1 | B79: 0 | C79: 0.41 | D79: 0.205 | E79: comp1022351_c0_seq1 | F79: 0.78 | G79: 0.27 | H79: 0.525 | I79: comp1022351_c0_seq1 | J79: 0 | K79: 0 | L79: 0 | M79: comp1022351_c0_seq1 | N79: 0 | O79: 0 | P79: 0 | Q79: comp1022351_c0_seq1 | R79: 0 | S79: 0.14 | T79: 0.07
A80: comp1022823_c0_seq1 | B80: 0 | C80: 0.16 | D80: 0.08 | E80: comp1022823_c0_seq1 | F80: 0 | G80: 0 | H80: 0 | I80: comp1022823_c0_seq1 | J80: 0 | K80: 0 | L80: 0 | M80: comp1022823_c0_seq1 | N80: 0.15 | O80: 0 | P80: 0.075 | Q80: comp1022823_c0_seq1 | R80: 0 | S80: 0 | T80: 0
A81: comp102302_c0_seq1 | B81: 0 | C81: 0 | D81: 0 | E81: comp102302_c0_seq1 | F81: 4.02 | G81: 3.44 | H81: 3.73 | I81: comp102302_c0_seq1 | J81: 0.67 | K81: 0.39 | L81: 0.53 | M81: comp102302_c0_seq1 | N81: 3.16 | O81: 1.65 | P81: 2.405 | Q81: comp102302_c0_seq1 | R81: 6.79 | S81: 6.65 | T81: 6.72
A82: comp102359_c0_seq1 | B82: 3.47 | C82: 2.31 | D82: 2.89 | E82: comp102359_c0_seq1 | F82: 2.32 | G82: 1.92 | H82: 2.12 | I82: comp102359_c0_seq1 | J82: 6.04 | K82: 3.37 | L82: 4.705 | M82: comp102359_c0_seq1 | N82: 3.04 | O82: 2.11 | P82: 2.575 | Q82: comp102359_c0_seq1 | R82: 3.85 | S82: 5.52 | T82: 4.685
A83: comp10238745_c0_seq1 | B83: 0 | C83: 0 | D83: 0 | E83: comp10238745_c0_seq1 | F83: 0 | G83: 0 | H83: 0 | I83: comp10238745_c0_seq1 | J83: 0 | K83: 0 | L83: 0 | M83: comp10238745_c0_seq1 | N83: 0 | O83: 0 | P83: 0 | Q83: comp10238745_c0_seq1 | R83: 0 | S83: 0 | T83: 0
A84: comp1024009_c0_seq1 | B84: 0.23 | C84: 0 | D84: 0.115 | E84: comp1024009_c0_seq1 | F84: 0.7 | G84: 0 | H84: 0.35 | I84: comp1024009_c0_seq1 | J84: 0.18 | K84: 0 | L84: 0.09 | M84: comp1024009_c0_seq1 | N84: 0.17 | O84: 0 | P84: 0.085 | Q84: comp1024009_c0_seq1 | R84: 0.35 | S84: 0.12 | T84: 0.235
A85: comp102409_c0_seq1 | B85: 1.51 | C85: 1.98 | D85: 1.745 | E85: comp102409_c0_seq1 | F85: 4.32 | G85: 3.16 | H85: 3.74 | I85: comp102409_c0_seq1 | J85: 10.37 | K85: 8.85 | L85: 9.61 | M85: comp102409_c0_seq1 | N85: 5.48 | O85: 5.56 | P85: 5.52 | Q85: comp102409_c0_seq1 | R85: 3.96 | S85: 6.66 | T85: 5.31
A86: comp1024250_c0_seq1 | B86: 0.25 | C86: 0.1 | D86: 0.175 | E86: comp1024250_c0_seq1 | F86: 1.12 | G86: 0.64 | H86: 0.88 | I86: comp1024250_c0_seq1 | J86: 0.72 | K86: 0.43 | L86: 0.575 | M86: comp1024250_c0_seq1 | N86: 0.19 | O86: 0.25 | P86: 0.22 | Q86: comp1024250_c0_seq1 | R86: 0.06 | S86: 0.2 | T86: 0.13
A87: comp102434_c0_seq1 | B87: 13.15 | C87: 6.25 | D87: 9.7 | E87: comp102434_c0_seq1 | F87: 11.18 | G87: 9.26 | H87: 10.22 | I87: comp102434_c0_seq1 | J87: 5.14 | K87: 4.65 | L87: 4.895 | M87: comp102434_c0_seq1 | N87: 6.75 | O87: 6.56 | P87: 6.655 | Q87: comp102434_c0_seq1 | R87: 5.38 | S87: 7.02 | T87: 6.2
A88: comp102447_c0_seq1 | B88: 0.42 | C88: 0.41 | D88: 0.415 | E88: comp102447_c0_seq1 | F88: 29.59 | G88: 16.57 | H88: 23.08 | I88: comp102447_c0_seq1 | J88: 10.98 | K88: 15.09 | L88: 13.035 | M88: comp102447_c0_seq1 | N88: 2.56 | O88: 0.84 | P88: 1.7 | Q88: comp102447_c0_seq1 | R88: 4.53 | S88: 4.37 | T88: 4.45
A89: comp102459_c0_seq1 | B89: 2.48 | C89: 1.14 | D89: 1.81 | E89: comp102459_c0_seq1 | F89: 1.98 | G89: 1.75 | H89: 1.865 | I89: comp102459_c0_seq1 | J89: 11.68 | K89: 8.53 | L89: 10.105 | M89: comp102459_c0_seq1 | N89: 6.5 | O89: 6.15 | P89: 6.325 | Q89: comp102459_c0_seq1 | R89: 6.08 | S89: 9.15 | T89: 7.615
A90: comp1024661_c0_seq1 | B90: 0.25 | C90: 0 | D90: 0.125 | E90: comp1024661_c0_seq1 | F90: 0 | G90: 0 | H90: 0 | I90: comp1024661_c0_seq1 | J90: 0 | K90: 0.22 | L90: 0.11 | M90: comp1024661_c0_seq1 | N90: 0 | O90: 0.17 | P90: 0.085 | Q90: comp1024661_c0_seq1 | R90: 0 | S90: 0 | T90: 0
A91: comp1024707_c0_seq1 | B91: 0 | C91: 0 | D91: 0 | E91: comp1024707_c0_seq1 | F91: 0 | G91: 0 | H91: 0 | I91: comp1024707_c0_seq1 | J91: 0 | K91: 0 | L91: 0 | M91: comp1024707_c0_seq1 | N91: 0 | O91: 0 | P91: 0 | Q91: comp1024707_c0_seq1 | R91: 0 | S91: 0 | T91: 0
A92: comp1025254_c0_seq1 | B92: 0 | C92: 0.11 | D92: 0.055 | E92: comp1025254_c0_seq1 | F92: 0 | G92: 0 | H92: 0 | I92: comp1025254_c0_seq1 | J92: 0.49 | K92: 0.23 | L92: 0.36 | M92: comp1025254_c0_seq1 | N92: 0.2 | O92: 0.18 | P92: 0.19 | Q92: comp1025254_c0_seq1 | R92: 0.28 | S92: 0.29 | T92: 0.285
A93: comp102588_c0_seq1 | B93: 3.27 | C93: 0.82 | D93: 2.045 | E93: comp102588_c0_seq1 | F93: 7.77 | G93: 6.36 | H93: 7.065 | I93: comp102588_c0_seq1 | J93: 7.85 | K93: 5.95 | L93: 6.9 | M93: comp102588_c0_seq1 | N93: 3.47 | O93: 2.06 | P93: 2.765 | Q93: comp102588_c0_seq1 | R93: 7.23 | S93: 6.56 | T93: 6.895
A94: comp1026213_c0_seq1 | B94: 0.22 | C94: 0.69 | D94: 0.455 | E94: comp1026213_c0_seq1 | F94: 0 | G94: 0 | H94: 0 | I94: comp1026213_c0_seq1 | J94: 0 | K94: 0 | L94: 0 | M94: comp1026213_c0_seq1 | N94: 0 | O94: 0.15 | P94: 0.075 | Q94: comp1026213_c0_seq1 | R94: 0.11 | S94: 0 | T94: 0.055
A95: comp1026589_c0_seq1 | B95: 0 | C95: 0 | D95: 0 | E95: comp1026589_c0_seq1 | F95: 0.15 | G95: 0 | H95: 0.075 | I95: comp1026589_c0_seq1 | J95: 0.37 | K95: 0.61 | L95: 0.49 | M95: comp1026589_c0_seq1 | N95: 0.46 | O95: 0.42 | P95: 0.44 | Q95: comp1026589_c0_seq1 | R95: 0.32 | S95: 1.28 | T95: 0.8
A96: comp1026693_c0_seq1 | B96: 0.18 | C96: 0.7 | D96: 0.44 | E96: comp1026693_c0_seq1 | F96: 0.53 | G96: 0 | H96: 0.265 | I96: comp1026693_c0_seq1 | J96: 0.13 | K96: 0 | L96: 0.065 | M96: comp1026693_c0_seq1 | N96: 0 | O96: 0.12 | P96: 0.06 | Q96: comp1026693_c0_seq1 | R96: 0 | S96: 0 | T96: 0
A97: comp1026983_c0_seq1 | B97: 0 | C97: 0.05 | D97: 0.025 | E97: comp1026983_c0_seq1 | F97: 0 | G97: 0.07 | H97: 0.035 | I97: comp1026983_c0_seq1 | J97: 0.09 | K97: 0.05 | L97: 0.07 | M97: comp1026983_c0_seq1 | N97: 0.05 | O97: 0.04 | P97: 0.045 | Q97: comp1026983_c0_seq1 | R97: 0 | S97: 0.03 | T97: 0.015
A98: comp1027151_c0_seq1 | B98: 0 | C98: 0 | D98: 0 | E98: comp1027151_c0_seq1 | F98: 0 | G98: 0 | H98: 0 | I98: comp1027151_c0_seq1 | J98: 0 | K98: 0 | L98: 0 | M98: comp1027151_c0_seq1 | N98: 0.17 | O98: 0.15 | P98: 0.16 | Q98: comp1027151_c0_seq1 | R98: 0 | S98: 0 | T98: 0
A99: comp1027307_c0_seq1 | B99: 0 | C99: 0.64 | D99: 0.32 | E99: comp1027307_c0_seq1 | F99: 0 | G99: 0 | H99: 0 | I99: comp1027307_c0_seq1 | J99: 0 | K99: 0 | L99: 0 | M99: comp1027307_c0_seq1 | N99: 0 | O99: 0 | P99: 0 | Q99: comp1027307_c0_seq1 | R99: 0 | S99: 0 | T99: 0
A100: comp102741_c0_seq1 | B100: 4.8 | C100: 1.39 | D100: 3.095 | E100: comp102741_c0_seq1 | F100: 3.52 | G100: 3.05 | H100: 3.285 | I100: comp102741_c0_seq1 | J100: 5.53 | K100: 8.34 | L100: 6.935 | M100: comp102741_c0_seq1 | N100: 9.68 | O100: 8.34 | P100: 9.01 | Q100: comp102741_c0_seq1 | R100: 7.04 | S100: 9.5 | T100: 8.27
A101: comp10275335_c0_seq1 | B101: 0 | C101: 0 | D101: 0 | E101: comp10275335_c0_seq1 | F101: 0 | G101: 0 | H101: 0 | I101: comp10275335_c0_seq1 | J101: 0 | K101: 0 | L101: 0 | M101: comp10275335_c0_seq1 | N101: 0 | O101: 0 | P101: 0 | Q101: comp10275335_c0_seq1 | R101: 0 | S101: 0 | T101: 0
A102: comp102759_c0_seq1 | B102: 2.99 | C102: 1.24 | D102: 2.115 | E102: comp102759_c0_seq1 | F102: 2.18 | G102: 1.51 | H102: 1.845 | I102: comp102759_c0_seq1 | J102: 4.25 | K102: 3.81 | L102: 4.03 | M102: comp102759_c0_seq1 | N102: 3.78 | O102: 3.63 | P102: 3.705 | Q102: comp102759_c0_seq1 | R102: 4.86 | S102: 5.81 | T102: 5.335
A103: comp1027702_c0_seq1 | B103: 0 | C103: 0.2 | D103: 0.1 | E103: comp1027702_c0_seq1 | F103: 0.37 | G103: 0 | H103: 0.185 | I103: comp1027702_c0_seq1 | J103: 0 | K103: 0 | L103: 0 | M103: comp1027702_c0_seq1 | N103: 0 | O103: 0 | P103: 0 | Q103: comp1027702_c0_seq1 | R103: 0 | S103: 0 | T103: 0
A104: comp10279293_c0_seq1 | B104: 0 | C104: 0 | D104: 0 | E104: comp10279293_c0_seq1 | F104: 0 | G104: 0 | H104: 0 | I104: comp10279293_c0_seq1 | J104: 0 | K104: 0 | L104: 0 | M104: comp10279293_c0_seq1 | N104: 0 | O104: 0 | P104: 0 | Q104: comp10279293_c0_seq1 | R104: 0 | S104: 0 | T104: 0
A105: comp10279787_c0_seq1 | B105: 0 | C105: 0 | D105: 0 | E105: comp10279787_c0_seq1 | F105: 0 | G105: 0 | H105: 0 | I105: comp10279787_c0_seq1 | J105: 0 | K105: 0 | L105: 0 | M105: comp10279787_c0_seq1 | N105: 0 | O105: 0 | P105: 0 | Q105: comp10279787_c0_seq1 | R105: 0 | S105: 0 | T105: 0
A106: comp10280365_c0_seq1 | B106: 0 | C106: 0 | D106: 0 | E106: comp10280365_c0_seq1 | F106: 0 | G106: 0 | H106: 0 | I106: comp10280365_c0_seq1 | J106: 0 | K106: 0 | L106: 0 | M106: comp10280365_c0_seq1 | N106: 0 | O106: 0 | P106: 0 | Q106: comp10280365_c0_seq1 | R106: 0 | S106: 0 | T106: 0
A107: comp102844_c0_seq1 | B107: 3.61 | C107: 1.64 | D107: 2.625 | E107: comp102844_c0_seq1 | F107: 4.82 | G107: 2.34 | H107: 3.58 | I107: comp102844_c0_seq1 | J107: 14.32 | K107: 11.72 | L107: 13.02 | M107: comp102844_c0_seq1 | N107: 4.67 | O107: 3.32 | P107: 3.995 | Q107: comp102844_c0_seq1 | R107: 3.97 | S107: 7.5 | T107: 5.735
A108: comp102894_c0_seq1 | B108: 3.17 | C108: 1.33 | D108: 2.25 | E108: comp102894_c0_seq1 | F108: 1.3 | G108: 0.74 | H108: 1.02 | I108: comp102894_c0_seq1 | J108: 5.08 | K108: 4.49 | L108: 4.785 | M108: comp102894_c0_seq1 | N108: 1.74 | O108: 1.76 | P108: 1.75 | Q108: comp102894_c0_seq1 | R108: 2.29 | S108: 3.57 | T108: 2.93
A109: comp1028993_c0_seq1 | B109: 0 | C109: 0 | D109: 0 | E109: comp1028993_c0_seq1 | F109: 0 | G109: 0 | H109: 0 | I109: comp1028993_c0_seq1 | J109: 0.75 | K109: 0.88 | L109: 0.815 | M109: comp1028993_c0_seq1 | N109: 0 | O109: 0 | P109: 0 | Q109: comp1028993_c0_seq1 | R109: 0 | S109: 0 | T109: 0
A110: comp102904_c0_seq1 | B110: 2.15 | C110: 1 | D110: 1.575 | E110: comp102904_c0_seq1 | F110: 0.1 | G110: 0.2 | H110: 0.15 | I110: comp102904_c0_seq1 | J110: 2.53 | K110: 1.56 | L110: 2.045 | M110: comp102904_c0_seq1 | N110: 5.16 | O110: 3.77 | P110: 4.465 | Q110: comp102904_c0_seq1 | R110: 4.21 | S110: 7.39 | T110: 5.8
A111: comp1029445_c0_seq1 | B111: 0 | C111: 0 | D111: 0 | E111: comp1029445_c0_seq1 | F111: 0 | G111: 0.13 | H111: 0.065 | I111: comp1029445_c0_seq1 | J111: 0.37 | K111: 0.22 | L111: 0.295 | M111: comp1029445_c0_seq1 | N111: 0 | O111: 0 | P111: 0 | Q111: comp1029445_c0_seq1 | R111: 0.07 | S111: 0 | T111: 0.035
A112: comp102944_c0_seq1 | B112: 2.8 | C112: 2.98 | D112: 2.89 | E112: comp102944_c0_seq1 | F112: 8.75 | G112: 4.89 | H112: 6.82 | I112: comp102944_c0_seq1 | J112: 7.02 | K112: 8.62 | L112: 7.82 | M112: comp102944_c0_seq1 | N112: 8.31 | O112: 7.93 | P112: 8.12 | Q112: comp102944_c0_seq1 | R112: 6.29 | S112: 11.4 | T112: 8.845
A113: comp1029486_c0_seq1 | B113: 0 | C113: 0 | D113: 0 | E113: comp1029486_c0_seq1 | F113: 0 | G113: 0 | H113: 0 | I113: comp1029486_c0_seq1 | J113: 0.71 | K113: 0.21 | L113: 0.46 | M113: comp1029486_c0_seq1 | N113: 0.18 | O113: 0.16 | P113: 0.17 | Q113: comp1029486_c0_seq1 | R113: 0 | S113: 0.5 | T113: 0.25
A114: comp102949_c0_seq1 | B114: 1.16 | C114: 0.66 | D114: 0.91 | E114: comp102949_c0_seq1 | F114: 1.5 | G114: 1.11 | H114: 1.305 | I114: comp102949_c0_seq1 | J114: 6.64 | K114: 5.23 | L114: 5.935 | M114: comp102949_c0_seq1 | N114: 2.33 | O114: 1.72 | P114: 2.025 | Q114: comp102949_c0_seq1 | R114: 2.21 | S114: 2.97 | T114: 2.59
A115: comp102960_c0_seq1 | B115: 0.95 | C115: 0.79 | D115: 0.87 | E115: comp102960_c0_seq1 | F115: 9.11 | G115: 7.31 | H115: 8.21 | I115: comp102960_c0_seq1 | J115: 9.29 | K115: 14.76 | L115: 12.025 | M115: comp102960_c0_seq1 | N115: 7.15 | O115: 4.84 | P115: 5.995 | Q115: comp102960_c0_seq1 | R115: 7.91 | S115: 10.41 | T115: 9.16
A116: comp1029757_c0_seq1 | B116: 0.13 | C116: 0.2 | D116: 0.165 | E116: comp1029757_c0_seq1 | F116: 0 | G116: 0 | H116: 0 | I116: comp1029757_c0_seq1 | J116: 0 | K116: 0 | L116: 0 | M116: comp1029757_c0_seq1 | N116: 0.19 | O116: 0.17 | P116: 0.18 | Q116: comp1029757_c0_seq1 | R116: 0.13 | S116: 0.34 | T116: 0.235
A117: comp10298859_c0_seq1 | B117: 0 | C117: 0 | D117: 0 | E117: comp10298859_c0_seq1 | F117: 0 | G117: 0 | H117: 0 | I117: comp10298859_c0_seq1 | J117: 0 | K117: 0 | L117: 0 | M117: comp10298859_c0_seq1 | N117: 0 | O117: 0 | P117: 0 | Q117: comp10298859_c0_seq1 | R117: 0 | S117: 0 | T117: 0
A118: comp102989_c0_seq1 | B118: 13.91 | C118: 7.59 | D118: 10.75 | E118: comp102989_c0_seq1 | F118: 2.11 | G118: 4 | H118: 3.055 | I118: comp102989_c0_seq1 | J118: 3.48 | K118: 3.25 | L118: 3.365 | M118: comp102989_c0_seq1 | N118: 1.93 | O118: 2.95 | P118: 2.44 | Q118: comp102989_c0_seq1 | R118: 1.48 | S118: 2.12 | T118: 1.8
A119: comp103032_c0_seq1 | B119: 7.15 | C119: 1.54 | D119: 4.345 | E119: comp103032_c0_seq1 | F119: 4.05 | G119: 1.7 | H119: 2.875 | I119: comp103032_c0_seq1 | J119: 3.46 | K119: 5.17 | L119: 4.315 | M119: comp103032_c0_seq1 | N119: 9.33 | O119: 8.34 | P119: 8.835 | Q119: comp103032_c0_seq1 | R119: 4.45 | S119: 4.54 | T119: 4.495
A120: comp103038_c0_seq1 | B120: 2.11 | C120: 0.7 | D120: 1.405 | E120: comp103038_c0_seq1 | F120: 0.97 | G120: 0.43 | H120: 0.7 | I120: comp103038_c0_seq1 | J120: 3.48 | K120: 2.99 | L120: 3.235 | M120: comp103038_c0_seq1 | N120: 3.2 | O120: 2.85 | P120: 3.025 | Q120: comp103038_c0_seq1 | R120: 3.08 | S120: 3.87 | T120: 3.475
A121: comp103048_c0_seq1 | B121: 1.71 | C121: 1.59 | D121: 1.65 | E121: comp103048_c0_seq1 | F121: 21.75 | G121: 10.32 | H121: 16.035 | I121: comp103048_c0_seq1 | J121: 12.46 | K121: 14.85 | L121: 13.655 | M121: comp103048_c0_seq1 | N121: 5.56 | O121: 4.39 | P121: 4.975 | Q121: comp103048_c0_seq1 | R121: 8.22 | S121: 9.74 | T121: 8.98
A122: comp103066_c0_seq1 | B122: 6.89 | C122: 2.67 | D122: 4.78 | E122: comp103066_c0_seq1 | F122: 2.19 | G122: 3.02 | H122: 2.605 | I122: comp103066_c0_seq1 | J122: 9.94 | K122: 6.75 | L122: 8.345 | M122: comp103066_c0_seq1 | N122: 6.95 | O122: 6.77 | P122: 6.86 | Q122: comp103066_c0_seq1 | R122: 9.99 | S122: 10.96 | T122: 10.475
A123: comp103235_c0_seq1 | B123: 3.5 | C123: 1.53 | D123: 2.515 | E123: comp103235_c0_seq1 | F123: 0.7 | G123: 0.68 | H123: 0.69 | I123: comp103235_c0_seq1 | J123: 3.6 | K123: 3.8 | L123: 3.7 | M123: comp103235_c0_seq1 | N123: 6.44 | O123: 6.53 | P123: 6.485 | Q123: comp103235_c0_seq1 | R123: 4.17 | S123: 5.01 | T123: 4.59
A124: comp103259_c0_seq1 | B124: 5.24 | C124: 1.26 | D124: 3.25 | E124: comp103259_c0_seq1 | F124: 5.51 | G124: 3.58 | H124: 4.545 | I124: comp103259_c0_seq1 | J124: 8.8 | K124: 10.82 | L124: 9.81 | M124: comp103259_c0_seq1 | N124: 6.1 | O124: 6.08 | P124: 6.09 | Q124: comp103259_c0_seq1 | R124: 4.84 | S124: 6.75 | T124: 5.795
A125: comp1032709_c0_seq1 | B125: 0 | C125: 0 | D125: 0 | E125: comp1032709_c0_seq1 | F125: 0 | G125: 0 | H125: 0 | I125: comp1032709_c0_seq1 | J125: 0.24 | K125: 0 | L125: 0.12 | M125: comp1032709_c0_seq1 | N125: 0.08 | O125: 0.08 | P125: 0.08 | Q125: comp1032709_c0_seq1 | R125: 0 | S125: 0 | T125: 0
A126: comp1032985_c0_seq1 | B126: 0.26 | C126: 0.2 | D126: 0.23 | E126: comp1032985_c0_seq1 | F126: 0 | G126: 0 | H126: 0 | I126: comp1032985_c0_seq1 | J126: 0.78 | K126: 0.92 | L126: 0.85 | M126: comp1032985_c0_seq1 | N126: 0.38 | O126: 0 | P126: 0.19 | Q126: comp1032985_c0_seq1 | R126: 0 | S126: 0.27 | T126: 0.135
A127: comp10336_c0_seq1 | B127: 0 | C127: 0 | D127: 0 | E127: comp10336_c0_seq1 | F127: 0 | G127: 0 | H127: 0 | I127: comp10336_c0_seq1 | J127: 0 | K127: 0 | L127: 0 | M127: comp10336_c0_seq1 | N127: 0 | O127: 0 | P127: 0 | Q127: comp10336_c0_seq1 | R127: 0 | S127: 0 | T127: 0
A128: comp10337475_c0_seq1 | B128: 0 | C128: 0 | D128: 0 | E128: comp10337475_c0_seq1 | F128: 0 | G128: 0 | H128: 0 | I128: comp10337475_c0_seq1 | J128: 0 | K128: 0 | L128: 0 | M128: comp10337475_c0_seq1 | N128: 0 | O128: 0 | P128: 0 | Q128: comp10337475_c0_seq1 | R128: 0 | S128: 0 | T128: 0
A129: comp103392_c0_seq1 | B129: 0.45 | C129: 0.48 | D129: 0.465 | E129: comp103392_c0_seq1 | F129: 0.46 | G129: 0.91 | H129: 0.685 | I129: comp103392_c0_seq1 | J129: 1.76 | K129: 1.56 | L129: 1.66 | M129: comp103392_c0_seq1 | N129: 4.63 | O129: 4.72 | P129: 4.675 | Q129: comp103392_c0_seq1 | R129: 1.17 | S129: 1.7 | T129: 1.435
A130: comp1034032_c0_seq1 | B130: 0 | C130: 0 | D130: 0 | E130: comp1034032_c0_seq1 | F130: 0 | G130: 0 | H130: 0 | I130: comp1034032_c0_seq1 | J130: 0.36 | K130: 0.21 | L130: 0.285 | M130: comp1034032_c0_seq1 | N130: 0 | O130: 0 | P130: 0 | Q130: comp1034032_c0_seq1 | R130: 0.12 | S130: 0.51 | T130: 0.315
A131: comp10346965_c0_seq1 | B131: 0 | C131: 0 | D131: 0 | E131: comp10346965_c0_seq1 | F131: 0 | G131: 0 | H131: 0 | I131: comp10346965_c0_seq1 | J131: 0 | K131: 0 | L131: 0 | M131: comp10346965_c0_seq1 | N131: 0 | O131: 0 | P131: 0 | Q131: comp10346965_c0_seq1 | R131: 0 | S131: 0 | T131: 0
A132: comp10347860_c0_seq1 | B132: 0 | C132: 0 | D132: =AVERAGE(C132,B132) -> 0 | E132: comp10347860_c0_seq1 | F132: 0 | G132: 0 | H132: 0 | I132: comp10347860_c0_seq1 | J132: 0 | K132: 0 | L132: =AVERAGE(J132:K132) -> 0 | M132: comp10347860_c0_seq1 | N132: 0 | O132: 0 | P132: =AVERAGE(N132:O132) -> 0 | Q132: comp10347860_c0_seq1 | R132: 0 | S132: 0 | T132: =AVERAGE(R132:S132) -> 0
A133: comp103503_c0_seq1 | B133: 9.42 | C133: 3.32 | D133: 6.37 | E133: comp103503_c0_seq1 | F133: 4.27 | G133: 4.62 | H133: 4.445 | I133: comp103503_c0_seq1 | J133: 4.7 | K133: 4.36 | L133: 4.53 | M133: comp103503_c0_seq1 | N133: 2.84 | O133: 2.43 | P133: 2.635 | Q133: comp103503_c0_seq1 | R133: 4.53 | S133: 5.43 | T133: 4.98
A134: comp10353796_c0_seq1 | B134: 0 | C134: 0 | D134: 0 | E134: comp10353796_c0_seq1 | F134: 0 | G134: 0 | H134: 0 | I134: comp10353796_c0_seq1 | J134: 0 | K134: 0 | L134: 0 | M134: comp10353796_c0_seq1 | N134: 0 | O134: 0 | P134: 0 | Q134: comp10353796_c0_seq1 | R134: 0 | S134: 0 | T134: 0
A135: comp103569_c0_seq1 | B135: 0.73 | C135: 2 | D135: 1.365 | E135: comp103569_c0_seq1 | F135: 2.86 | G135: 1.23 | H135: 2.045 | I135: comp103569_c0_seq1 | J135: 10.57 | K135: 8.22 | L135: 9.395 | M135: comp103569_c0_seq1 | N135: 1.44 | O135: 0.98 | P135: 1.21 | Q135: comp103569_c0_seq1 | R135: 4.18 | S135: 8.37 | T135: 6.275
A136: comp103591_c0_seq1 | B136: 5.75 | C136: 3.36 | D136: 4.555 | E136: comp103591_c0_seq1 | F136: 2.46 | G136: 2.54 | H136: 2.5 | I136: comp103591_c0_seq1 | J136: 4.07 | K136: 4.76 | L136: 4.415 | M136: comp103591_c0_seq1 | N136: 7.12 | O136: 7.42 | P136: 7.27 | Q136: comp103591_c0_seq1 | R136: 5.49 | S136: 8.56 | T136: 7.025
A137: comp103594_c0_seq1 | B137: 1.47 | C137: 0.67 | D137: 1.07 | E137: comp103594_c0_seq1 | F137: 0.79 | G137: 0.47 | H137: 0.63 | I137: comp103594_c0_seq1 | J137: 5.63 | K137: 4.2 | L137: 4.915 | M137: comp103594_c0_seq1 | N137: 8.3 | O137: 6.47 | P137: 7.385 | Q137: comp103594_c0_seq1 | R137: 2.32 | S137: 4.4 | T137: 3.36
A138: comp10363912_c0_seq1 | B138: 0 | C138: 0 | D138: 0 | E138: comp10363912_c0_seq1 | F138: 0 | G138: 0 | H138: 0 | I138: comp10363912_c0_seq1 | J138: 0 | K138: 0 | L138: 0 | M138: comp10363912_c0_seq1 | N138: 0 | O138: 0 | P138: 0 | Q138: comp10363912_c0_seq1 | R138: 0 | S138: 0 | T138: 0
A139: comp103649_c0_seq1 | B139: 0 | C139: 0 | D139: 0 | E139: comp103649_c0_seq1 | F139: 0 | G139: 0 | H139: 0 | I139: comp103649_c0_seq1 | J139: 0 | K139: 0 | L139: 0 | M139: comp103649_c0_seq1 | N139: 0 | O139: 0 | P139: 0 | Q139: comp103649_c0_seq1 | R139: 0 | S139: 0 | T139: 0
A140: comp103656_c0_seq1 | B140: 7.95 | C140: 4.37 | D140: 6.16 | E140: comp103656_c0_seq1 | F140: 1.62 | G140: 1.59 | H140: 1.605 | I140: comp103656_c0_seq1 | J140: 6.94 | K140: 5.32 | L140: 6.13 | M140: comp103656_c0_seq1 | N140: 2.85 | O140: 4.05 | P140: 3.45 | Q140: comp103656_c0_seq1 | R140: 1.95 | S140: 3.67 | T140: 2.81
A141: comp1036653_c0_seq1 | B141: 0.1 | C141: 0 | D141: 0.05 | E141: comp1036653_c0_seq1 | F141: 0 | G141: 0.05 | H141: 0.025 | I141: comp1036653_c0_seq1 | J141: 0.54 | K141: 0.43 | L141: 0.485 | M141: comp1036653_c0_seq1 | N141: 0.15 | O141: 0.14 | P141: 0.145 | Q141: comp1036653_c0_seq1 | R141: 0 | S141: 0.06 | T141: 0.03
A142: comp10368261_c0_seq1 | B142: 0 | C142: 0 | D142: 0 | E142: comp10368261_c0_seq1 | F142: 0 | G142: 0 | H142: 0 | I142: comp10368261_c0_seq1 | J142: 0 | K142: 0 | L142: 0 | M142: comp10368261_c0_seq1 | N142: 0 | O142: 0 | P142: 0 | Q142: comp10368261_c0_seq1 | R142: 0 | S142: 0 | T142: 0
A143: comp103716_c0_seq1 | B143: 3.96 | C143: 1.53 | D143: 2.745 | E143: comp103716_c0_seq1 | F143: 1.27 | G143: 1.01 | H143: 1.14 | I143: comp103716_c0_seq1 | J143: 4.74 | K143: 4.56 | L143: 4.65 | M143: comp103716_c0_seq1 | N143: 7.33 | O143: 7.62 | P143: 7.475 | Q143: comp103716_c0_seq1 | R143: 4.25 | S143: 5.35 | T143: 4.8
A144: comp103744_c0_seq1 | B144: 1.14 | C144: 0.51 | D144: 0.825 | E144: comp103744_c0_seq1 | F144: 1.84 | G144: 1.6 | H144: 1.72 | I144: comp103744_c0_seq1 | J144: 7.34 | K144: 5.71 | L144: 6.525 | M144: comp103744_c0_seq1 | N144: 3.74 | O144: 3.4 | P144: 3.57 | Q144: comp103744_c0_seq1 | R144: 2.97 | S144: 5.41 | T144: 4.19
A145: comp1037897_c0_seq1 | B145: 0 | C145: 0 | D145: 0 | E145: comp1037897_c0_seq1 | F145: 0.38 | G145: 0 | H145: 0.19 | I145: comp1037897_c0_seq1 | J145: 0.96 | K145: 0.45 | L145: 0.705 | M145: comp1037897_c0_seq1 | N145: 0 | O145: 0 | P145: 0 | Q145: comp1037897_c0_seq1 | R145: 0 | S145: 0.13 | T145: 0.065
A146: comp103791_c0_seq1 | B146: 0.79 | C146: 0.82 | D146: 0.805 | E146: comp103791_c0_seq1 | F146: 1.43 | G146: 1.18 | H146: 1.305 | I146: comp103791_c0_seq1 | J146: 7.76 | K146: 6.12 | L146: 6.94 | M146: comp103791_c0_seq1 | N146: 3.62 | O146: 3.72 | P146: 3.67 | Q146: comp103791_c0_seq1 | R146: 2.77 | S146: 7.1 | T146: 4.935
A147: comp10384195_c0_seq1 | B147: 0 | C147: 0 | D147: 0 | E147: comp10384195_c0_seq1 | F147: 0 | G147: 0 | H147: 0 | I147: comp10384195_c0_seq1 | J147: 0 | K147: 0 | L147: 0 | M147: comp10384195_c0_seq1 | N147: 0 | O147: 0 | P147: 0 | Q147: comp10384195_c0_seq1 | R147: 0 | S147: 0 | T147: 0
A148: comp103892_c0_seq1 | B148: 3.55 | C148: 0.98 | D148: 2.265 | E148: comp103892_c0_seq1 | F148: 5.29 | G148: 4.54 | H148: 4.915 | I148: comp103892_c0_seq1 | J148: 2.6 | K148: 4.3 | L148: 3.45 | M148: comp103892_c0_seq1 | N148: 3.83 | O148: 4.53 | P148: 4.18 | Q148: comp103892_c0_seq1 | R148: 9.33 | S148: 9.46 | T148: 9.395
A149: comp10390707_c0_seq1 | B149: 0 | C149: 0 | D149: 0 | E149: comp10390707_c0_seq1 | F149: 0 | G149: 0 | H149: 0 | I149: comp10390707_c0_seq1 | J149: 0.39 | K149: 0.15 | L149: 0.27 | M149: comp10390707_c0_seq1 | N149: 0 | O149: 0 | P149: 0 | Q149: comp10390707_c0_seq1 | R149: 0 | S149: 0 | T149: 0
A150: comp1039174_c0_seq1 | B150: 0 | C150: 0 | D150: 0 | E150: comp1039174_c0_seq1 | F150: 0.16 | G150: 0 | H150: 0.08 | I150: comp1039174_c0_seq1 | J150: 0.23 | K150: 0.27 | L150: 0.25 | M150: comp1039174_c0_seq1 | N150: 0.56 | O150: 0.07 | P150: 0.315 | Q150: comp1039174_c0_seq1 | R150: 0.39 | S150: 0.29 | T150: 0.34
A151: comp10392466_c0_seq1 | B151: 0 | C151: 0 | D151: 0 | E151: comp10392466_c0_seq1 | F151: 0 | G151: 0 | H151: 0 | I151: comp10392466_c0_seq1 | J151: 0 | K151: 0 | L151: 0 | M151: comp10392466_c0_seq1 | N151: 0 | O151: 0 | P151: 0 | Q151: comp10392466_c0_seq1 | R151: 0 | S151: 0 | T151: 0
A152: comp103988_c0_seq1 | B152: 2.19 | C152: 1.31 | D152: 1.75 | E152: comp103988_c0_seq1 | F152: 2.45 | G152: 2.21 | H152: 2.33 | I152: comp103988_c0_seq1 | J152: 8.46 | K152: 7.8 | L152: 8.13 | M152: comp103988_c0_seq1 | N152: 9.32 | O152: 6.15 | P152: 7.735 | Q152: comp103988_c0_seq1 | R152: 6.08 | S152: 10.73 | T152: 8.405
A153: comp10401755_c0_seq1 | B153: 0 | C153: 0 | D153: 0 | E153: comp10401755_c0_seq1 | F153: 0 | G153: 0 | H153: 0 | I153: comp10401755_c0_seq1 | J153: 0 | K153: 0 | L153: 0 | M153: comp10401755_c0_seq1 | N153: 0 | O153: 0 | P153: 0 | Q153: comp10401755_c0_seq1 | R153: 0 | S153: 0 | T153: 0
A154: comp104105_c0_seq1 | B154: 4.67 | C154: 1.51 | D154: 3.09 | E154: comp104105_c0_seq1 | F154: 3.88 | G154: 1.03 | H154: 2.455 | I154: comp104105_c0_seq1 | J154: 3.3 | K154: 3.5 | L154: 3.4 | M154: comp104105_c0_seq1 | N154: 7.67 | O154: 6.39 | P154: 7.03 | Q154: comp104105_c0_seq1 | R154: 4.81 | S154: 4.84 | T154: 4.825
A155: comp104114_c0_seq1 | B155: 2.84 | C155: 1.6 | D155: 2.22 | E155: comp104114_c0_seq1 | F155: 1.54 | G155: 0.95 | H155: 1.245 | I155: comp104114_c0_seq1 | J155: 4.44 | K155: 4.35 | L155: 4.395 | M155: comp104114_c0_seq1 | N155: 7.23 | O155: 8.01 | P155: 7.62 | Q155: comp104114_c0_seq1 | R155: 5.92 | S155: 7.96 | T155: 6.94
A156: comp104137_c0_seq1 | B156: 1.55 | C156: 1.16 | D156: 1.355 | E156: comp104137_c0_seq1 | F156: 1.76 | G156: 1.64 | H156: 1.7 | I156: comp104137_c0_seq1 | J156: 5.9 | K156: 4.7 | L156: 5.3 | M156: comp104137_c0_seq1 | N156: 3.39 | O156: 3.11 | P156: 3.25 | Q156: comp104137_c0_seq1 | R156: 4.27 | S156: 5.33 | T156: 4.8
A157: comp1041448_c0_seq1 | B157: 0 | C157: 0 | D157: 0 | E157: comp1041448_c0_seq1 | F157: 0 | G157: 3.35 | H157: 1.675 | I157: comp1041448_c0_seq1 | J157: 0 | K157: 0 | L157: 0 | M157: comp1041448_c0_seq1 | N157: 0 | O157: 0 | P157: 0 | Q157: comp1041448_c0_seq1 | R157: 0 | S157: 0 | T157: 0
A158: comp10416415_c0_seq1 | B158: 0 | C158: 0 | D158: 0 | E158: comp10416415_c0_seq1 | F158: 0 | G158: 0 | H158: 0 | I158: comp10416415_c0_seq1 | J158: 0 | K158: 0 | L158: 0 | M158: comp10416415_c0_seq1 | N158: 0 | O158: 0 | P158: 0 | Q158: comp10416415_c0_seq1 | R158: 0 | S158: 0 | T158: 0
A159: comp104210_c0_seq1 | B159: 1.4 | C159: 0.47 | D159: 0.935 | E159: comp104210_c0_seq1 | F159: 0.22 | G159: 0.2 | H159: 0.21 | I159: comp104210_c0_seq1 | J159: 1.31 | K159: 0.87 | L159: 1.09 | M159: comp104210_c0_seq1 | N159: 1.55 | O159: 1.47 | P159: 1.51 | Q159: comp104210_c0_seq1 | R159: 1.17 | S159: 2.04 | T159: 1.605
A160: comp104214_c0_seq1 | B160: 2.39 | C160: 1.19 | D160: 1.79 | E160: comp104214_c0_seq1 | F160: 1.29 | G160: 1 | H160: 1.145 | I160: comp104214_c0_seq1 | J160: 4.88 | K160: 4.92 | L160: 4.9 | M160: comp104214_c0_seq1 | N160: 5.75 | O160: 5.43 | P160: 5.59 | Q160: comp104214_c0_seq1 | R160: 3.85 | S160: 5.62 | T160: 4.735
A161: comp1042342_c0_seq1 | B161: 0 | C161: 0 | D161: 0 | E161: comp1042342_c0_seq1 | F161: 0 | G161: 0 | H161: 0 | I161: comp1042342_c0_seq1 | J161: 0 | K161: 0 | L161: 0 | M161: comp1042342_c0_seq1 | N161: 0.18 | O161: 0 | P161: 0.09 | Q161: comp1042342_c0_seq1 | R161: 0.12 | S161: 0.13 | T161: 0.125
A162: comp104281_c0_seq1 | B162: 2.29 | C162: 0.28 | D162: 1.285 | E162: comp104281_c0_seq1 | F162: 3.18 | G162: 4.5 | H162: 3.84 | I162: comp104281_c0_seq1 | J162: 2.84 | K162: 2.32 | L162: 2.58 | M162: comp104281_c0_seq1 | N162: 0.84 | O162: 0.83 | P162: 0.835 | Q162: comp104281_c0_seq1 | R162: 1.59 | S162: 2.65 | T162: 2.12
A163: comp104298_c0_seq1 | B163: 6.65 | C163: 3.05 | D163: 4.85 | E163: comp104298_c0_seq1 | F163: 3.07 | G163: 2.12 | H163: 2.595 | I163: comp104298_c0_seq1 | J163: 7.04 | K163: 9.33 | L163: 8.185 | M163: comp104298_c0_seq1 | N163: 15.54 | O163: 14.43 | P163: 14.985 | Q163: comp104298_c0_seq1 | R163: 6.86 | S163: 10.27 | T163: 8.565
A164: comp104312_c0_seq1 | B164: 3.75 | C164: 2.45 | D164: 3.1 | E164: comp104312_c0_seq1 | F164: 4.2 | G164: 3.26 | H164: 3.73 | I164: comp104312_c0_seq1 | J164: 14.84 | K164: 9.59 | L164: 12.215 | M164: comp104312_c0_seq1 | N164: 3.64 | O164: 2.81 | P164: 3.225 | Q164: comp104312_c0_seq1 | R164: 3.09 | S164: 6.56 | T164: 4.825
A165: comp104349_c0_seq1 | B165: 2.79 | C165: 0.66 | D165: 1.725 | E165: comp104349_c0_seq1 | F165: 2.89 | G165: 1.7 | H165: 2.295 | I165: comp104349_c0_seq1 | J165: 5.92 | K165: 6.3 | L165: 6.11 | M165: comp104349_c0_seq1 | N165: 12.4 | O165: 12.04 | P165: 12.22 | Q165: comp104349_c0_seq1 | R165: 5.5 | S165: 5.06 | T165: 5.28
A166: comp104413_c0_seq1 | B166: 0.89 | C166: 0.42 | D166: 0.655 | E166: comp104413_c0_seq1 | F166: 0.23 | G166: 0.22 | H166: 0.225 | I166: comp104413_c0_seq1 | J166: 5.01 | K166: 3.87 | L166: 4.44 | M166: comp104413_c0_seq1 | N166: 4.36 | O166: 4.52 | P166: 4.44 | Q166: comp104413_c0_seq1 | R166: 3.83 | S166: 6.52 | T166: 5.175
A167: comp104431_c0_seq1 | B167: 6.48 | C167: 2.03 | D167: 4.255 | E167: comp104431_c0_seq1 | F167: 9.57 | G167: 4.08 | H167: 6.825 | I167: comp104431_c0_seq1 | J167: 12.73 | K167: 11.78 | L167: 12.255 | M167: comp104431_c0_seq1 | N167: 5.86 | O167: 5.82 | P167: 5.84 | Q167: comp104431_c0_seq1 | R167: 6.45 | S167: 8.31 | T167: 7.38
A168: comp1044410_c0_seq1 | B168: 0 | C168: 0 | D168: 0 | E168: comp1044410_c0_seq1 | F168: 0 | G168: 0.04 | H168: 0.02 | I168: comp1044410_c0_seq1 | J168: 0.03 | K168: 0.17 | L168: 0.1 | M168: comp1044410_c0_seq1 | N168: 0.44 | O168: 0.28 | P168: 0.36 | Q168: comp1044410_c0_seq1 | R168: 0.28 | S168: 0.54 | T168: 0.41
A169: comp104455_c0_seq1 | B169: 1.96 | C169: 0.51 | D169: 1.235 | E169: comp104455_c0_seq1 | F169: 2.94 | G169: 2.24 | H169: 2.59 | I169: comp104455_c0_seq1 | J169: 0.82 | K169: 0.57 | L169: 0.695 | M169: comp104455_c0_seq1 | N169: 1.95 | O169: 2.35 | P169: 2.15 | Q169: comp104455_c0_seq1 | R169: 1 | S169: 2.55 | T169: 1.775
A170: comp10447015_c0_seq1 | B170: 0 | C170: 0 | D170: 0 | E170: comp10447015_c0_seq1 | F170: 0 | G170: 0 | H170: 0 | I170: comp10447015_c0_seq1 | J170: 0 | K170: 0 | L170: 0 | M170: comp10447015_c0_seq1 | N170: 0 | O170: 0 | P170: 0 | Q170: comp10447015_c0_seq1 | R170: 0 | S170: 0 | T170: 0
A171: comp104474_c0_seq1 | B171: 4 | C171: 0.33 | D171: 2.165 | E171: comp104474_c0_seq1 | F171: 1.4 | G171: 2.11 | H171: 1.755 | I171: comp104474_c0_seq1 | J171: 1.2 | K171: 1.79 | L171: 1.495 | M171: comp104474_c0_seq1 | N171: 3.67 | O171: 4.87 | P171: 4.27 | Q171: comp104474_c0_seq1 | R171: 3.35 | S171: 4.01 | T171: 3.68
A172: comp104486_c0_seq1 | B172: 3.43 | C172: 1.28 | D172: 2.355 | E172: comp104486_c0_seq1 | F172: 2.62 | G172: 1.8 | H172: 2.21 | I172: comp104486_c0_seq1 | J172: 9.27 | K172: 10.36 | L172: 9.815 | M172: comp104486_c0_seq1 | N172: 10.78 | O172: 9.94 | P172: 10.36 | Q172: comp104486_c0_seq1 | R172: 5.98 | S172: 9.65 | T172: 7.815
A173: comp10449072_c0_seq1 | B173: 0 | C173: 0 | D173: 0 | E173: comp10449072_c0_seq1 | F173: 0 | G173: 0 | H173: 0 | I173: comp10449072_c0_seq1 | J173: 0 | K173: 0 | L173: 0 | M173: comp10449072_c0_seq1 | N173: 0 | O173: 0 | P173: 0 | Q173: comp10449072_c0_seq1 | R173: 0 | S173: 0 | T173: 0
A174: comp1044999_c0_seq1 | B174: 0 | C174: 0 | D174: 0 | E174: comp1044999_c0_seq1 | F174: 0 | G174: 0 | H174: 0 | I174: comp1044999_c0_seq1 | J174: 0 | K174: 0 | L174: 0 | M174: comp1044999_c0_seq1 | N174: 0 | O174: 0 | P174: 0 | Q174: comp1044999_c0_seq1 | R174: 0 | S174: 0 | T174: 0
A175: comp104503_c0_seq1 | B175: 1.57 | C175: 0.55 | D175: 1.06 | E175: comp104503_c0_seq1 | F175: 8.61 | G175: 4.52 | H175: 6.565 | I175: comp104503_c0_seq1 | J175: 13.38 | K175: 14.85 | L175: 14.115 | M175: comp104503_c0_seq1 | N175: 2.49 | O175: 1.1 | P175: 1.795 | Q175: comp104503_c0_seq1 | R175: 2.39 | S175: 4.53 | T175: 3.46
A176: comp1045553_c0_seq1 | B176: 0 | C176: 0.1 | D176: 0.05 | E176: comp1045553_c0_seq1 | F176: 0 | G176: 0 | H176: 0 | I176: comp1045553_c0_seq1 | J176: 0 | K176: 0.11 | L176: 0.055 | M176: comp1045553_c0_seq1 | N176: 0 | O176: 0 | P176: 0 | Q176: comp1045553_c0_seq1 | R176: 0 | S176: 0 | T176: 0
A177: comp10456174_c0_seq1 | B177: 0 | C177: 0 | D177: 0 | E177: comp10456174_c0_seq1 | F177: 0 | G177: 0 | H177: 0 | I177: comp10456174_c0_seq1 | J177: 0 | K177: 0 | L177: 0 | M177: comp10456174_c0_seq1 | N177: 0 | O177: 0 | P177: 0 | Q177: comp10456174_c0_seq1 | R177: 0 | S177: 0 | T177: 0
A178: comp104584_c0_seq1 | B178: 2.52 | C178: 0.8 | D178: 1.66 | E178: comp104584_c0_seq1 | F178: 0.3 | G178: 0.73 | H178: 0.515 | I178: comp104584_c0_seq1 | J178: 3.13 | K178: 2.3 | L178: 2.715 | M178: comp104584_c0_seq1 | N178: 5.09 | O178: 5.19 | P178: 5.14 | Q178: comp104584_c0_seq1 | R178: 4.8 | S178: 5.61 | T178: 5.205
A179: comp104689_c0_seq1 | B179: 4.28 | C179: 2.65 | D179: 3.465 | E179: comp104689_c0_seq1 | F179: 4.15 | G179: 3.6 | H179: 3.875 | I179: comp104689_c0_seq1 | J179: 6.34 | K179: 8.64 | L179: 7.49 | M179: comp104689_c0_seq1 | N179: 3.95 | O179: 5.78 | P179: 4.865 | Q179: comp104689_c0_seq1 | R179: 3.51 | S179: 6.06 | T179: 4.785
A180: comp1047218_c0_seq1 | B180: 0 | C180: 0 | D180: 0 | E180: comp1047218_c0_seq1 | F180: 0 | G180: 0 | H180: 0 | I180: comp1047218_c0_seq1 | J180: 0 | K180: 0 | L180: 0 | M180: comp1047218_c0_seq1 | N180: 0 | O180: 0 | P180: 0 | Q180: comp1047218_c0_seq1 | R180: 0 | S180: 0 | T180: 0
A181: comp1047347_c0_seq1 | B181: 0 | C181: 0.18 | D181: 0.09 | E181: comp1047347_c0_seq1 | F181: 0 | G181: 0 | H181: 0 | I181: comp1047347_c0_seq1 | J181: 0 | K181: 0 | L181: 0 | M181: comp1047347_c0_seq1 | N181: 0 | O181: 0 | P181: 0 | Q181: comp1047347_c0_seq1 | R181: 0 | S181: 0.12 | T181: 0.06
A182: comp1047459_c0_seq1 | B182: 0.21 | C182: 0 | D182: 0.105 | E182: comp1047459_c0_seq1 | F182: 0 | G182: 0.21 | H182: 0.105 | I182: comp1047459_c0_seq1 | J182: 0 | K182: 0 | L182: 0 | M182: comp1047459_c0_seq1 | N182: 0 | O182: 0.14 | P182: 0.07 | Q182: comp1047459_c0_seq1 | R182: 0 | S182: 0 | T182: 0
A183: comp104754_c0_seq1 | B183: 1.65 | C183: 1.15 | D183: 1.4 | E183: comp104754_c0_seq1 | F183: 0 | G183: 0.09 | H183: 0.045 | I183: comp104754_c0_seq1 | J183: 4.27 | K183: 3.49 | L183: 3.88 | M183: comp104754_c0_seq1 | N183: 5.23 | O183: 4.47 | P183: 4.85 | Q183: comp104754_c0_seq1 | R183: 1.92 | S183: 5.07 | T183: 3.495
A184: comp1048015_c0_seq1 | B184: 0.2 | C184: 0 | D184: 0.1 | E184: comp1048015_c0_seq1 | F184: 1.18 | G184: 0.2 | H184: 0.69 | I184: comp1048015_c0_seq1 | J184: 0.44 | K184: 0.52 | L184: 0.48 | M184: comp1048015_c0_seq1 | N184: 0 | O184: 0 | P184: 0 | Q184: comp1048015_c0_seq1 | R184: 0.1 | S184: 0.42 | T184: 0.26
A185: comp1048306_c0_seq1 | B185: 0 | C185: 0 | D185: 0 | E185: comp1048306_c0_seq1 | F185: 0 | G185: 0 | H185: 0 | I185: comp1048306_c0_seq1 | J185: 0 | K185: 0 | L185: 0 | M185: comp1048306_c0_seq1 | N185: 0.4 | O185: 0 | P185: 0.2 | Q185: comp1048306_c0_seq1 | R185: 0 | S185: 0.14 | T185: 0.07
A186: comp1048393_c0_seq1 | B186: 0.2 | C186: 0 | D186: 0.1 | E186: comp1048393_c0_seq1 | F186: 0 | G186: 0 | H186: 0 | I186: comp1048393_c0_seq1 | J186: 0.45 | K186: 0 | L186: 0.225 | M186: comp1048393_c0_seq1 | N186: 0 | O186: 0 | P186: 0 | Q186: comp1048393_c0_seq1 | R186: 0.1 | S186: 0 | T186: 0.05
A187: comp10485595_c0_seq1 | B187: 0 | C187: 0 | D187: 0 | E187: comp10485595_c0_seq1 | F187: 0 | G187: 0 | H187: 0 | I187: comp10485595_c0_seq1 | J187: 0 | K187: 0 | L187: 0 | M187: comp10485595_c0_seq1 | N187: 0 | O187: 0 | P187: 0 | Q187: comp10485595_c0_seq1 | R187: 0 | S187: 0 | T187: 0
A188: comp10488747_c0_seq1 | B188: 0 | C188: 0 | D188: 0 | E188: comp10488747_c0_seq1 | F188: 0 | G188: 0 | H188: 0 | I188: comp10488747_c0_seq1 | J188: 0 | K188: 0 | L188: 0 | M188: comp10488747_c0_seq1 | N188: 0 | O188: 0 | P188: 0 | Q188: comp10488747_c0_seq1 | R188: 0 | S188: 0 | T188: 0
A189: comp1049115_c0_seq1 | B189: 0 | C189: 0.13 | D189: 0.065 | E189: comp1049115_c0_seq1 | F189: 0 | G189: 0 | H189: 0 | I189: comp1049115_c0_seq1 | J189: 0.72 | K189: 0.14 | L189: 0.43 | M189: comp1049115_c0_seq1 | N189: 0.12 | O189: 0.11 | P189: 0.115 | Q189: comp1049115_c0_seq1 | R189: 0.08 | S189: 0.09 | T189: 0.085
A190: comp104923_c0_seq1 | B190: 16.29 | C190: 27.68 | D190: 21.985 | E190: comp104923_c0_seq1 | F190: 8 | G190: 10.14 | H190: 9.07 | I190: comp104923_c0_seq1 | J190: 5.05 | K190: 2.7 | L190: 3.875 | M190: comp104923_c0_seq1 | N190: 0.61 | O190: 2.77 | P190: 1.69 | Q190: comp104923_c0_seq1 | R190: 0.52 | S190: 1.43 | T190: 0.975
A191: comp104928_c0_seq1 | B191: 5.73 | C191: 3.24 | D191: 4.485 | E191: comp104928_c0_seq1 | F191: 1.82 | G191: 2.16 | H191: 1.99 | I191: comp104928_c0_seq1 | J191: 9.24 | K191: 7.65 | L191: 8.445 | M191: comp104928_c0_seq1 | N191: 13.79 | O191: 13.95 | P191: 13.87 | Q191: comp104928_c0_seq1 | R191: 12.22 | S191: 15.04 | T191: 13.63
A192: comp104939_c0_seq1 | B192: 3.04 | C192: 2.23 | D192: 2.635 | E192: comp104939_c0_seq1 | F192: 6.91 | G192: 4.28 | H192: 5.595 | I192: comp104939_c0_seq1 | J192: 5.08 | K192: 6.43 | L192: 5.755 | M192: comp104939_c0_seq1 | N192: 6.78 | O192: 4.65 | P192: 5.715 | Q192: comp104939_c0_seq1 | R192: 4.89 | S192: 4.43 | T192: 4.66
A193: comp10495718_c0_seq1 | B193: 0 | C193: 0 | D193: 0 | E193: comp10495718_c0_seq1 | F193: 0 | G193: 0 | H193: 0 | I193: comp10495718_c0_seq1 | J193: 0 | K193: 0 | L193: 0 | M193: comp10495718_c0_seq1 | N193: 0 | O193: 0 | P193: 0 | Q193: comp10495718_c0_seq1 | R193: 0 | S193: 0 | T193: 0
A194: comp10500318_c0_seq1 | B194: 0 | C194: 0 | D194: 0 | E194: comp10500318_c0_seq1 | F194: 0 | G194: 0 | H194: 0 | I194: comp10500318_c0_seq1 | J194: 0 | K194: 0 | L194: 0 | M194: comp10500318_c0_seq1 | N194: 0 | O194: 0 | P194: 0 | Q194: comp10500318_c0_seq1 | R194: 0 | S194: 0 | T194: 0
A195: comp105003_c0_seq1 | B195: 2.97 | C195: 1.91 | D195: 2.44 | E195: comp105003_c0_seq1 | F195: 2.8 | G195: 2.13 | H195: 2.465 | I195: comp105003_c0_seq1 | J195: 6.09 | K195: 7.13 | L195: 6.61 | M195: comp105003_c0_seq1 | N195: 5.6 | O195: 5.29 | P195: 5.445 | Q195: comp105003_c0_seq1 | R195: 3.68 | S195: 5.38 | T195: 4.53
A196: comp10506044_c0_seq1 | B196: 0 | C196: 0 | D196: =AVERAGE(C196,B196) -> 0 | E196: comp10506044_c0_seq1 | F196: 0 | G196: 0 | H196: 0 | I196: comp10506044_c0_seq1 | J196: 0 | K196: 0.19 | L196: =AVERAGE(J196:K196) -> 0.095 | M196: comp10506044_c0_seq1 | N196: 0 | O196: 0.14 | P196: =AVERAGE(N196:O196) -> 0.07 | Q196: comp10506044_c0_seq1 | R196: 0 | S196: 0 | T196: =AVERAGE(R196:S196) -> 0
A197: comp1050749_c0_seq1 | B197: 0.08 | C197: 0 | D197: 0.04 | E197: comp1050749_c0_seq1 | F197: 0.12 | G197: 0 | H197: 0.06 | I197: comp1050749_c0_seq1 | J197: 0.12 | K197: 0 | L197: 0.06 | M197: comp1050749_c0_seq1 | N197: 0.25 | O197: 0.11 | P197: 0.18 | Q197: comp1050749_c0_seq1 | R197: 0.22 | S197: 0.13 | T197: 0.175
A198: comp1050935_c0_seq1 | B198: 0 | C198: 0.2 | D198: 0.1 | E198: comp1050935_c0_seq1 | F198: 0 | G198: 0.52 | H198: 0.26 | I198: comp1050935_c0_seq1 | J198: 0.09 | K198: 0.11 | L198: 0.1 | M198: comp1050935_c0_seq1 | N198: 0.1 | O198: 0.26 | P198: 0.18 | Q198: comp1050935_c0_seq1 | R198: 0 | S198: 0.07 | T198: 0.035
A199: comp105127_c0_seq1 | B199: 0.87 | C199: 0.81 | D199: 0.84 | E199: comp105127_c0_seq1 | F199: 0.12 | G199: 0.08 | H199: 0.1 | I199: comp105127_c0_seq1 | J199: 4.44 | K199: 3.44 | L199: 3.94 | M199: comp105127_c0_seq1 | N199: 5.45 | O199: 4.1 | P199: 4.775 | Q199: comp105127_c0_seq1 | R199: 3.52 | S199: 6.29 | T199: 4.905
A200: comp105143_c0_seq1 | B200: 5.12 | C200: 1.64 | D200: 3.38 | E200: comp105143_c0_seq1 | F200: 4.24 | G200: 4.48 | H200: 4.36 | I200: comp105143_c0_seq1 | J200: 7.46 | K200: 8.76 | L200: 8.11 | M200: comp105143_c0_seq1 | N200: 9.26 | O200: 10.23 | P200: 9.745 | Q200: comp105143_c0_seq1 | R200: 7.19 | S200: 8.97 | T200: 8.08
... 4300 more rows

Sheet Normalized FPKM
A1: Additional file 2. Normalized FPKM values of all transcripts on the different substrates tested. For each substrate, two normalized FPKM values from two separate growth experiments as well as the average FPKM values are shown.
A2: Gene | B2: Glucose1 | C2: Glucose2 | D2: Glucose_Avg | F2: Gene | G2: Alfalfa1 | H2: Alfalfa2 | I2: Alfalfa_Avg | K2: Gene | L2: EnergyCAne1 | M2: EnergyCane2 | N2: EC_Avg | P2: Gene | Q2: CornStover1 | R2: CornStover2 | S2: CS_Avg | U2: Gene | V2: Sorghum1 | W2: Sorghum2 | X2: Sorghum_Avg
A3: comp100033_c0_seq1 | B3: 24.02085365 | C3: 24.02947132 | D3: =AVERAGE(B3:C3) -> 24.02516249 | F3: comp100033_c0_seq1 | G3: 2.761291532 | H3: 2.224438721 | I3: =AVERAGE(G3:H3) -> 2.492865127 | K3: comp100033_c0_seq1 | L3: 5.819890852 | M3: 6.244046387 | N3: =AVERAGE(L3:M3) -> 6.031968619 | P3: comp100033_c0_seq1 | Q3: 8.962363547 | R3: 9.16012476 | S3: =AVERAGE(Q3:R3) -> 9.061244154 | U3: comp100033_c0_seq1 | V3: 6.503553881 | W3: 5.131413133 | X3: =AVERAGE(V3:W3) -> 5.817483507
A4: comp100039_c0_seq1 | B4: 4.117860626 | C4: 1.621178725 | D4: =AVERAGE(B4:C4) -> 2.869519675 | F4: comp100039_c0_seq1 | G4: 2.119130711 | H4: 2.099470254 | I4: =AVERAGE(G4:H4) -> 2.109300482 | K4: comp100039_c0_seq1 | L4: 5.502297899 | M4: 4.08623988 | N4: =AVERAGE(L4:M4) -> 4.79426889 | P4: comp100039_c0_seq1 | Q4: 4.761255634 | R4: 4.489209334 | S4: =AVERAGE(Q4:R4) -> 4.625232484 | U4: comp100039_c0_seq1 | V4: 7.02768898 | W4: 8.516127393 | X4: =AVERAGE(V4:W4) -> 7.771908186
A5: comp10004043_c0_seq1 | B5: 0 | C5: 0.5764191021 | D5: 0.288209551 | F5: comp10004043_c0_seq1 | G5: 0 | H5: 0 | I5: 0 | K5: comp10004043_c0_seq1 | L5: 0 | M5: 0 | N5: 0 | P5: comp10004043_c0_seq1 | Q5: 0 | R5: 0 | S5: 0 | U5: comp10004043_c0_seq1 | V5: 0 | W5: 0 | X5: 0
A6: comp100145_c0_seq1 | B6: 22.77141731 | C6: 23.27292125 | D6: 23.02216928 | F6: comp100145_c0_seq1 | G6: 18.72969062 | H6: 9.872508932 | I6: 14.30109978 | K6: comp100145_c0_seq1 | L6: 10.139155 | M6: 11.56210494 | N6: 10.85062997 | P6: comp100145_c0_seq1 | Q6: 3.250857313 | R6: 0.4809867144 | S6: 1.865922014 | U6: comp100145_c0_seq1 | V6: 3.027147612 | W6: 4.456022902 | X6: 3.741585257
A7: comp100179_c0_seq1 | B7: 4.452216831 | C7: 3.818776551 | D7: 4.135496691 | F7: comp100179_c0_seq1 | G7: 3.638911321 | H7: 3.424136009 | I7: 3.531523665 | K7: comp100179_c0_seq1 | L7: 2.747179038 | M7: 4.205174097 | N7: 3.476176568 | P7: comp100179_c0_seq1 | Q7: 9.09239784 | R7: 10.98787427 | S7: 10.04013606 | U7: comp100179_c0_seq1 | V7: 6.236138014 | W7: 5.232333512 | X7: 5.734235763
A8: comp10022846_c0_seq1 | B8: 0 | C8: 0 | D8: 0 | F8: comp10022846_c0_seq1 | G8: 0 | H8: 0 | I8: 0 | K8: comp10022846_c0_seq1 | L8: 0 | M8: 0 | N8: 0 | P8: comp10022846_c0_seq1 | Q8: 0 | R8: 0 | S8: 0 | U8: comp10022846_c0_seq1 | V8: 0 | W8: 0 | X8: 0
A9: comp10023067_c0_seq1 | B9: 0 | C9: 0 | D9: 0 | F9: comp10023067_c0_seq1 | G9: 0 | H9: 0 | I9: 0 | K9: comp10023067_c0_seq1 | L9: 0 | M9: 0 | N9: 0 | P9: comp10023067_c0_seq1 | Q9: 0 | R9: 0 | S9: 0 | U9: comp10023067_c0_seq1 | V9: 0 | W9: 0 | X9: 0
A10: comp10023615_c0_seq1 | B10: 0 | C10: 0 | D10: 0 | F10: comp10023615_c0_seq1 | G10: 0 | H10: 0 | I10: 0 | K10: comp10023615_c0_seq1 | L10: 0 | M10: 0 | N10: 0 | P10: comp10023615_c0_seq1 | Q10: 0 | R10: 0 | S10: 0 | U10: comp10023615_c0_seq1 | V10: 0 | W10: 0 | X10: 0
A11: comp10023863_c0_seq1 | B11: 0 | C11: 0 | D11: 0 | F11: comp10023863_c0_seq1 | G11: 0 | H11: 0 | I11: 0 | K11: comp10023863_c0_seq1 | L11: 0 | M11: 0 | N11: 0 | P11: comp10023863_c0_seq1 | Q11: 0 | R11: 0 | S11: 0 | U11: comp10023863_c0_seq1 | V11: 0 | W11: 0 | X11: 0
A12: comp100270_c0_seq1 | B12: 2.305298043 | C12: 2.053493051 | D12: 2.179395547 | F12: comp100270_c0_seq1 | G12: 2.354589678 | H12: 1.649583771 | I12: 2.002086725 | K12: comp100270_c0_seq1 | L12: 3.374425119 | M12: 3.712446627 | N12: 3.543435873 | P12: comp100270_c0_seq1 | Q12: 2.65069904 | R12: 2.22322748 | S12: 2.43696326 | U12: comp100270_c0_seq1 | V12: 1.390562507 | W12: 2.251300769 | X12: 1.820931638
A13: comp1003855_c0_seq1 | B13: 0 | C13: 0 | D13: 0 | F13: comp1003855_c0_seq1 | G13: 0 | H13: 0 | I13: 0 | K13: comp1003855_c0_seq1 | L13: 0 | M13: 0.1868966265 | N13: 0.09344831327 | P13: comp1003855_c0_seq1 | Q13: 0 | R13: 0 | S13: 0 | U13: comp1003855_c0_seq1 | V13: 0.1390562507 | W13: 0 | X13: 0.06952812537
A14: comp10041115_c0_seq1 | B14: 0 | C14: 0 | D14: 0 | F14: comp10041115_c0_seq1 | G14: 0 | H14: 0 | I14: 0 | K14: comp10041115_c0_seq1 | L14: 0 | M14: 0 | N14: 0 | P14: comp10041115_c0_seq1 | Q14: 0 | R14: 0 | S14: 0 | U14: comp10041115_c0_seq1 | V14: 0 | W14: 0 | X14: 0
A15: comp100447_c0_seq1 | B15: 14.41251219 | C15: 5.439955276 | D15: 9.926233734 | F15: comp100447_c0_seq1 | G15: 14.74829353 | H15: 17.22065482 | I15: 15.98447418 | K15: comp100447_c0_seq1 | L15: 3.342665823 | M15: 4.196678796 | N15: 3.76967231 | P15: comp100447_c0_seq1 | Q15: 13.68360863 | R15: 16.51387719 | S15: 15.09874291 | U15: comp100447_c0_seq1 | V15: 9.33816207 | W15: 6.156143138 | X15: 7.747152604
A16: comp1004503_c0_seq1 | B16: 0 | C16: 0 | D16: 0 | F16: comp1004503_c0_seq1 | G16: 0 | H16: 0 | I16: 0 | K16: comp1004503_c0_seq1 | L16: 0.3017133047 | M16: 0 | N16: 0.1508566524 | P16: comp1004503_c0_seq1 | Q16: 0 | R16: 0 | S16: 0 | U16: comp1004503_c0_seq1 | V16: 0 | W16: 0.1009203793 | X16: 0.05046018966
A17: comp1004595_c0_seq1 | B17: 0 | C17: 0 | D17: 0 | F17: comp1004595_c0_seq1 | G17: 0 | H17: 0 | I17: 0 | K17: comp1004595_c0_seq1 | L17: 0 | M17: 0 | N17: 0 | P17: comp1004595_c0_seq1 | Q17: 0 | R17: 0.1817060921 | S17: 0.09085304605 | U17: comp1004595_c0_seq1 | V17: 0 | W17: 0.5278912149 | X17: 0.2639456074
A18: comp10050316_c0_seq1 | B18: 0 | C18: 0 | D18: 0 | F18: comp10050316_c0_seq1 | G18: 0 | H18: 0 | I18: 0 | K18: comp10050316_c0_seq1 | L18: 0 | M18: 0 | N18: 0 | P18: comp10050316_c0_seq1 | Q18: 0 | R18: 0 | S18: 0 | U18: comp10050316_c0_seq1 | V18: 0 | W18: 0 | X18: 0
A19: comp1005244_c0_seq1 | B19: 0.5279308495 | C19: 0.8646286531 | D19: 0.6962797513 | F19: comp1005244_c0_seq1 | G19: 0 | H19: 0 | I19: 0 | K19: comp1005244_c0_seq1 | L19: 0 | M19: 0.2208778314 | N19: 0.1104389157 | P19: comp1005244_c0_seq1 | Q19: 0.2200580335 | R19: 0.4382323398 | S19: 0.3291451866 | U19: comp1005244_c0_seq1 | V19: 1.743551452 | W19: 0.7530212918 | X19: 1.248286372
A20: comp1005398_c0_seq1 | B20: 0.2815631197 | C20: 0 | D20: 0.1407815599 | F20: comp1005398_c0_seq1 | G20: 0 | H20: 0.799798192 | I20: 0.399899096 | K20: comp1005398_c0_seq1 | L20: 0 | M20: 0.1104389157 | N20: 0.05521945784 | P20: comp1005398_c0_seq1 | Q20: 0 | R20: 0 | S20: 0 | U20: comp1005398_c0_seq1 | V20: 0 | W20: 0.06210484881 | X20: 0.0310524244
A21: comp100549_c0_seq1 | B21: 5.50807853 | C21: 5.259824306 | D21: 5.383951418 | F21: comp100549_c0_seq1 | G21: 14.64126673 | H21: 12.22191612 | I21: 13.43159142 | K21: comp100549_c0_seq1 | L21: 14.73631299 | M21: 11.07787277 | N21: 12.90709288 | P21: comp100549_c0_seq1 | Q21: 5.081340047 | R21: 2.907297474 | S21: 3.99431876 | U21: comp100549_c0_seq1 | V21: 11.27425295 | W21: 11.90860476 | X21: 11.59142885
A22: comp1005654_c0_seq1 | B22: 0 | C22: 0 | D22: 0 | F22: comp1005654_c0_seq1 | G22: 0 | H22: 0 | I22: 0 | K22: comp1005654_c0_seq1 | L22: 0 | M22: 0 | N22: 0 | P22: comp1005654_c0_seq1 | Q22: 0 | R22: 0 | S22: 0 | U22: comp1005654_c0_seq1 | V22: 0 | W22: 0 | X22: 0
A23: comp100567_c0_seq1 | B23: 1.724574108 | C23: 4.863536174 | D23: 3.294055141 | F23: comp100567_c0_seq1 | G23: 9.054467581 | H23: 4.923757619 | I23: 6.9891126 | K23: comp100567_c0_seq1 | L23: 3.271207409 | M23: 3.44909229 | N23: 3.360149849 | P23: comp100567_c0_seq1 | Q23: 2.390630455 | R23: 2.073587169 | S23: 2.232108812 | U23: comp100567_c0_seq1 | V23: 2.588585591 | W23: 3.687475398 | X23: 3.138030494
A24: comp100568_c0_seq1 | B24: 6.387963279 | C24: 6.953055419 | D24: 6.670509349 | F24: comp100568_c0_seq1 | G24: 6.29317605 | H24: 8.022975613 | I24: 7.158075831 | K24: comp100568_c0_seq1 | L24: 6.089844861 | M24: 5.173638435 | N24: 5.631741648 | P24: comp100568_c0_seq1 | Q24: 9.532513907 | R24: 10.65652787 | S24: 10.09452089 | U24: comp100568_c0_seq1 | V24: 10.0869265 | W24: 9.370069064 | X24: 9.72849778
A25: comp100571_c0_seq1 | B25: 19.41025757 | C25: 11.56440824 | D25: 15.4873329 | F25: comp100571_c0_seq1 | G25: 21.19130711 | H25: 30.91719886 | I25: 26.05425298 | K25: comp100571_c0_seq1 | L25: 7.844545923 | M25: 9.344831327 | N25: 8.594688625 | P25: comp100571_c0_seq1 | Q25: 7.021851797 | R25: 7.193423528 | S25: 7.107637663 | U25: comp100571_c0_seq1 | V25: 6.621216863 | W25: 4.875230631 | X25: 5.748223747
A26: comp100614_c0_seq1 | B26: 5.50807853 | C26: 5.728164827 | D26: 5.618121678 | F26: comp100614_c0_seq1 | G26: 4.49512575 | H26: 2.874274752 | I26: 3.684700251 | K26: comp100614_c0_seq1 | L26: 7.566652089 | M26: 5.649375302 | N26: 6.608013696 | P26: comp100614_c0_seq1 | Q26: 3.370888968 | R26: 2.479753727 | S26: 2.925321348 | U26: comp100614_c0_seq1 | V26: 2.727641842 | W26: 3.866026838 | X26: 3.29683434
A27: comp10064700_c0_seq1 | B27: 0 | C27: 0 | D27: 0 | F27: comp10064700_c0_seq1 | G27: 0 | H27: 0 | I27: 0 | K27: comp10064700_c0_seq1 | L27: 0 | M27: 0 | N27: 0 | P27: comp10064700_c0_seq1 | Q27: 0 | R27: 0 | S27: 0 | U27: comp10064700_c0_seq1 | V27: 0 | W27: 0 | X27: 0
A28: comp1006502_c0_seq1 | B28: 0 | C28: 2.305676408 | D28: 1.152838204 | F28: comp1006502_c0_seq1 | G28: 0 | H28: 0 | I28: 0 | K28: comp1006502_c0_seq1 | L28: 0.0952778857 | M28: 0 | N28: 0.04763894285 | P28: comp1006502_c0_seq1 | Q28: 0.1200316546 | R28: 0 | S28: 0.06001582732 | U28: comp1006502_c0_seq1 | V28: 0 | W28: 0 | X28: 0
A29: comp1006551_c0_seq1 | B29: 0 | C29: 0 | D29: 0 | F29: comp1006551_c0_seq1 | G29: 0 | H29: 1.174703594 | I29: 0.5873517972 | K29: comp1006551_c0_seq1 | L29: 0 | M29: 0 | N29: 0 | P29: comp1006551_c0_seq1 | Q29: 0 | R29: 0 | S29: 0 | U29: comp1006551_c0_seq1 | V29: 0 | W29: 0 | X29: 0
A30: comp10066287_c0_seq1 | B30: 0 | C30: 0 | D30: 0 | F30: comp10066287_c0_seq1 | G30: 0 | H30: 0 | I30: 0 | K30: comp10066287_c0_seq1 | L30: 0 | M30: 0 | N30: 0 | P30: comp10066287_c0_seq1 | Q30: 0 | R30: 0 | S30: 0 | U30: comp10066287_c0_seq1 | V30: 0 | W30: 0 | X30: 0
A31: comp1006641_c0_seq1 | B31: 0 | C31: 0 | D31: 0 | F31: comp1006641_c0_seq1 | G31: 0 | H31: 0 | I31: 0 | K31: comp1006641_c0_seq1 | L31: 0 | M31: 0 | N31: 0 | P31: comp1006641_c0_seq1 | Q31: 0.1300342925 | R31: 0.06413156192 | S31: 0.09708292723 | U31: comp1006641_c0_seq1 | V31: 0.1925394241 | W31: 0.1863145464 | X31: 0.1894269853
A32: comp10067751_c0_seq1 | B32: 0 | C32: 0 | D32: 0 | F32: comp10067751_c0_seq1 | G32: 0 | H32: 0 | I32: 0 | K32: comp10067751_c0_seq1 | L32: 0 | M32: 0 | N32: 0 | P32: comp10067751_c0_seq1 | Q32: 0 | R32: 0 | S32: 0 | U32: comp10067751_c0_seq1 | V32: 0 | W32: 0 | X32: 0
A33: comp100685_c0_seq1 | B33: 5.138526935 | C33: 5.079693337 | D33: 5.109110136 | F33: comp100685_c0_seq1 | G33: 2.354589678 | H33: 2.099470254 | I33: 2.227029966 | K33: comp100685_c0_seq1 | L33: 5.200584594 | M33: 4.069249278 | N33: 4.634916936 | P33: comp100685_c0_seq1 | Q33: 9.112403116 | R33: 9.256322103 | S33: 9.184362609 | U33: comp100685_c0_seq1 | V33: 7.862026485 | W33: 9.300201109 | X33: 8.581113797
A34: comp100715_c0_seq1 | B34: 2.833228892 | C34: 2.053493051 | D34: 2.443360972 | F34: comp100715_c0_seq1 | G34: 6.100527803 | H34: 6.723303551 | I34: 6.411915677 | K34: comp100715_c0_seq1 | L34: 4.970329704 | M34: 4.901788796 | N34: 4.93605925 | P34: comp100715_c0_seq1 | Q34: 6.861809591 | R34: 2.939363254 | S34: 4.900586423 | U34: comp100715_c0_seq1 | V34: 8.83542024 | W34: 8.756783682 | X34: 8.796101961
A35: comp1007347_c0_seq1 | B35: 0 | C35: 0 | D35: 0 | F35: comp1007347_c0_seq1 | G35: 0 | H35: 0 | I35: 0 | K35: comp1007347_c0_seq1 | L35: 0.1508566524 | M35: 0 | N35: 0.07542832618 | P35: comp1007347_c0_seq1 | Q35: 0 | R35: 0.09619734287 | S35: 0.04809867144 | U35: comp1007347_c0_seq1 | V35: 0 | W35: 0 | X35: 0
A36: comp1007640_c0_seq1 | B36: 0.2111723398 | C36: 0 | D36: 0.1055861699 | F36: comp1007640_c0_seq1 | G36: 0.7919983464 | H36: 0.3249180155 | I36: 0.5584581809 | K36: comp1007640_c0_seq1 | L36: 0.2858336571 | M36: 0.2718496386 | N36: 0.2788416479 | P36: comp1007640_c0_seq1 | Q36: 0 | R36: 0 | S36: 0 | U36: comp1007640_c0_seq1 | V36: 0 | W36: 0 | X36: 0
A37: comp1007675_c0_seq1 | B37: 0.3519538997 | C37: 2.88209551 | D37: 1.617024705 | F37: comp1007675_c0_seq1 | G37: 0.6421608214 | H37: 0 | I37: 0.3210804107 | K37: comp1007675_c0_seq1 | L37: 0 | M37: 0 | N37: 0 | P37: comp1007675_c0_seq1 | Q37: 0 | R37: 0.1496403111 | S37: 0.07482015557 | U37: comp1007675_c0_seq1 | V37: 0.1176629814 | W37: 0.1242096976 | X37: 0.1209363395
A38: comp1007956_c0_seq1 | B38: 0 | C38: 0 | D38: 0 | F38: comp1007956_c0_seq1 | G38: 0 | H38: 0 | I38: 0 | K38: comp1007956_c0_seq1 | L38: 0.1905557714 | M38: 0.08495301207 | N38: 0.1377543917 | P38: comp1007956_c0_seq1 | Q38: 0.2500659472 | R38: 0 | S38: 0.1250329736 | U38: comp1007956_c0_seq1 | V38: 0 | W38: 0.1863145464 | X38: 0.09315727321
A39: comp100810_c0_seq1 | B39: 4.346630661 | C39: 4.971614755 | D39: 4.659122708 | F39: comp100810_c0_seq1 | G39: 11.21640901 | H39: 6.673316164 | I39: 8.944862589 | K39: comp100810_c0_seq1 | L39: 5.152945652 | M39: 7.45887446 | N39: 6.305910056 | P39: comp100810_c0_seq1 | Q39: 7.171891365 | R39: 7.610278681 | S39: 7.391085023 | U39: comp100810_c0_seq1 | V39: 7.85132985 | W39: 7.646659509 | X39: 7.74899468
A40: comp1008855_c0_seq1 | B40: 0.2287700348 | C40: 0 | D40: 0.1143850174 | F40: comp1008855_c0_seq1 | G40: 0.4067018535 | H40: 0.949760353 | I40: 0.6782311033 | K40: comp1008855_c0_seq1 | L40: 0.2858336571 | M40: 0.1784013253 | N40: 0.2321174912 | P40: comp1008855_c0_seq1 | Q40: 0.1900501199 | R40: 0.08550874922 | S40: 0.1377794345 | U40: comp1008855_c0_seq1 | V40: 0.2032360588 | W40: 0.05434174271 | X40: 0.1287889007
A41: comp100885_c0_seq1 | B41: 3.783504422 | C41: 2.918121704 | D41: 3.350813063 | F41: comp100885_c0_seq1 | G41: 7.81295666 | H41: 10.32239542 | I41: 9.067676038 | K41: comp100885_c0_seq1 | L41: 6.597993585 | M41: 7.560818074 | N41: 7.079405829 | P41: comp100885_c0_seq1 | Q41: 7.121878176 | R41: 7.535458525 | S41: 7.328668351 | U41: comp100885_c0_seq1 | V41: 3.679642328 | W41: 3.175110395 | X41: 3.427376361
A42: comp101037_c0_seq1 | B42: 4.381826051 | C42: 3.242357449 | D42: 3.81209175 | F42: comp101037_c0_seq1 | G42: 2.846912975 | H42: 3.649079251 | I42: 3.247996113 | K42: comp101037_c0_seq1 | L42: 4.358963271 | M42: 3.678465423 | N42: 4.018714347 | P42: comp101037_c0_seq1 | Q42: 2.470651558 | R42: 2.447687946 | S42: 2.459169752 | U42: comp101037_c0_seq1 | V42: 6.567733689 | W42: 4.875230631 | X42: 5.72148216
A43: comp101058_c0_seq1 | B43: 26.83648485 | C43: 35.37772239 | D43: 31.10710362 | F43: comp101058_c0_seq1 | G43: 2.440211121 | H43: 4.648826991 | I43: 3.544519056 | K43: comp101058_c0_seq1 | L43: 3.850814547 | M43: 4.561976748 | N43: 4.206395648 | P43: comp101058_c0_seq1 | Q43: 9.792582492 | R43: 11.40472943 | S43: 10.59865596 | U43: comp101058_c0_seq1 | V43: 4.89905868 | W43: 4.12220934 | X43: 4.51063401
A44: comp101139_c0_seq1 | B44: 1.179045564 | C44: 3.854802745 | D44: 2.516924154 | F44: comp101139_c0_seq1 | G44: 11.10938221 | H44: 12.17192873 | I44: 11.64065547 | K44: comp101139_c0_seq1 | L44: 3.302966704 | M44: 6.150598074 | N44: 4.726782389 | P44: comp101139_c0_seq1 | Q44: 5.291395442 | R44: 4.831244331 | S44: 5.061319887 | U44: comp101139_c0_seq1 | V44: 5.551553395 | W44: 5.162465557 | X44: 5.357009476
A45: comp101144_c0_seq1 | B45: 2.551665773 | C45: 2.197597827 | D45: 2.3746318 | F45: comp101144_c0_seq1 | G45: 3.91718101 | H45: 4.048978347 | I45: 3.983079679 | K45: comp101144_c0_seq1 | L45: 6.828248475 | M45: 7.000128194 | N45: 6.914188335 | P45: comp101144_c0_seq1 | Q45: 5.071337409 | R45: 4.702981207 | S45: 4.887159308 | U45: comp101144_c0_seq1 | V45: 4.685125987 | W45: 4.347339417 | X45: 4.516232702
A46: comp101149_c0_seq1 | B46: 10.47062852 | C46: 6.844976837 | D46: 8.657802676 | F46: comp101149_c0_seq1 | G46: 7.941388824 | H46: 9.447616143 | I46: 8.694502484 | K46: comp101149_c0_seq1 | L46: 6.288340456 | M46: 7.433388556 | N46: 6.860864506 | P46: comp101149_c0_seq1 | Q46: 7.551991605 | R46: 7.5782129 | S46: 7.565102252 | U46: comp101149_c0_seq1 | V46: 7.166745231 | W46: 6.583113974 | X46: 6.874929602
A47: comp101190_c0_seq1 | B47: 3.167585097 | C47: 2.197597827 | D47: 2.682591462 | F47: comp101190_c0_seq1 | G47: 0.3638911321 | H47: 0.6748297245 | I47: 0.5193604283 | K47: comp101190_c0_seq1 | L47: 3.549101242 | M47: 2.990346025 | N47: 3.269723634 | P47: comp101190_c0_seq1 | Q47: 6.39168561 | R47: 7.674410243 | S47: 7.033047926 | U47: comp101190_c0_seq1 | V47: 6.792363017 | W47: 7.54573913 | X47: 7.169051074
A48: comp101193_c0_seq1 | B48: 5.560871615 | C48: 3.674671776 | D48: 4.617771695 | F48: comp101193_c0_seq1 | G48: 2.311778957 | H48: 2.824287365 | I48: 2.568033161 | K48: comp101193_c0_seq1 | L48: 4.06518979 | M48: 3.678465423 | N48: 3.871827606 | P48: comp101193_c0_seq1 | Q48: 4.031063069 | R48: 4.350257617 | S48: 4.190660343 | U48: comp101193_c0_seq1 | V48: 3.989844733 | W48: 3.904842369 | X48: 3.947343551
A49: comp10122736_c0_seq1 | B49: 0 | C49: 0 | D49: 0 | F49: comp10122736_c0_seq1 | G49: 0 | H49: 0 | I49: 0 | K49: comp10122736_c0_seq1 | L49: 0 | M49: 0 | N49: 0 | P49: comp10122736_c0_seq1 | Q49: 0 | R49: 0 | S49: 0 | U49: comp10122736_c0_seq1 | V49: 0 | W49: 0.1086834854 | X49: 0.05434174271
A50: comp101230_c0_seq1 | B50: 1.847757973 | C50: 5.728164827 | D50: 3.7879614 | F50: comp101230_c0_seq1 | G50: 9.632412321 | H50: 6.898259406 | I50: 8.265335863 | K50: comp101230_c0_seq1 | L50: 5.264103185 | M50: 6.728278556 | N50: 5.99619087 | P50: comp101230_c0_seq1 | Q50: 10.70282254 | R50: 11.59712411 | S50: 11.14997333 | U50: comp101230_c0_seq1 | V50: 8.279195237 | W50: 7.770869207 | X50: 8.025032222
A51: comp101279_c0_seq1 | B51: 3.994676761 | C51: 11.60043443 | D51: 7.797555595 | F51: comp101279_c0_seq1 | G51: 9.867871289 | H51: 4.698814378 | I51: 7.283342833 | K51: comp101279_c0_seq1 | L51: 7.709568918 | M51: 7.187024821 | N51: 7.448296869 | P51: comp101279_c0_seq1 | Q51: 7.041857073 | R51: 1.720863578 | S51: 4.381360325 | U51: comp101279_c0_seq1 | V51: 5.123688008 | W51: 8.345339059 | X51: 6.734513533
A52: comp101304_c0_seq1 | B52: 2.604458858 | C52: 1.441047755 | D52: 2.022753306 | F52: comp101304_c0_seq1 | G52: 5.09447585 | H52: 2.799293672 | I52: 3.946884761 | K52: comp101304_c0_seq1 | L52: 6.272460809 | M52: 6.3374947 | N52: 6.304977754 | P52: comp101304_c0_seq1 | Q52: 2.900764987 | R52: 0.8443988986 | S52: 1.872581943 | U52: comp101304_c0_seq1 | V52: 5.797575993 | W52: 3.966947218 | X52: 4.882261605
A53: comp1013268_c0_seq1 | B53: 0.9326778341 | C53: 0.3602619388 | D53: 0.6464698865 | F53: comp1013268_c0_seq1 | G53: 1.241510921 | H53: 0.3249180155 | I53: 0.7832144684 | K53: comp1013268_c0_seq1 | L53: 0.3017133047 | M53: 0.5691851809 | N53: 0.4354492428 | P53: comp1013268_c0_seq1 | Q53: 0.4901292565 | R53: 0.3741007778 | S53: 0.4321150172 | U53: comp1013268_c0_seq1 | V53: 0.07487644271 | W53: 0 | X53: 0.03743822136
A54: comp101334_c0_seq1 | B54: 3.237975877 | C54: 1.945414469 | D54: 2.591695173 | F54: comp101334_c0_seq1 | G54: 2.333184318 | H54: 5.373644102 | I54: 3.85341421 | K54: comp101334_c0_seq1 | L54: 11.26660998 | M54: 5.853262531 | N54: 8.559936258 | P54: comp101334_c0_seq1 | Q54: 2.090551318 | R54: 1.165056708 | S54: 1.627804013 | U54: comp101334_c0_seq1 | V54: 1.62588847 | W54: 1.630252281 | X54: 1.628070376
A55: comp101358_c0_seq1 | B55: 4.487412221 | C55: 0.6124452959 | D55: 2.549928758 | F55: comp101358_c0_seq1 | G55: 3.467668435 | H55: 13.54658188 | I55: 8.507125156 | K55: comp101358_c0_seq1 | L55: 3.509402123 | M55: 2.693010483 | N55: 3.101206303 | P55: comp101358_c0_seq1 | Q55: 3.03079928 | R55: 1.78499514 | S55: 2.40789721 | U55: comp101358_c0_seq1 | V55: 9.017263029 | W55: 5.868908212 | X55: 7.443085621
A56: comp101410_c0_seq1 | B56: 5.01534307 | C56: 3.782750357 | D56: 4.399046714 | F56: comp101410_c0_seq1 | G56: 3.553289878 | H56: 5.023732393 | I56: 4.288511136 | K56: comp101410_c0_seq1 | L56: 7.098202485 | M56: 5.615394098 | N56: 6.356798291 | P56: comp101410_c0_seq1 | Q56: 2.100553956 | R56: 1.250565457 | S56: 1.675559707 | U56: comp101410_c0_seq1 | V56: 2.396046167 | W56: 2.717087135 | X56: 2.556566651
A57: comp101421_c0_seq1 | B57: 1.231838649 | C57: 2.017466857 | D57: 1.624652753 | F57: comp101421_c0_seq1 | G57: 1.369943086 | H57: 1.349659449 | I57: 1.359801267 | K57: comp101421_c0_seq1 | L57: 2.239030314 | M57: 2.327712531 | N57: 2.283371422 | P57: comp101421_c0_seq1 | Q57: 2.46064892 | R57: 2.672148413 | S57: 2.566398667 | U57: comp101421_c0_seq1 | V57: 2.749035111 | W57: 2.515246377 | X57: 2.632140744
A58: comp10143196_c0_seq1 | B58: 0 | C58: 0 | D58: 0 | F58: comp10143196_c0_seq1 | G58: 0 | H58: 0 | I58: 0 | K58: comp10143196_c0_seq1 | L58: 0 | M58: 0 | N58: 0 | P58: comp10143196_c0_seq1 | Q58: 0 | R58: 0 | S58: 0 | U58: comp10143196_c0_seq1 | V58: 0 | W58: 0 | X58: 0
A59: comp101432_c0_seq1 | B59: 2.287700348 | C59: 5.007640949 | D59: 3.647670649 | F59: comp101432_c0_seq1 | G59: 3.339236271 | H59: 2.624337817 | I59: 2.981787044 | K59: comp101432_c0_seq1 | L59: 3.326786176 | M59: 3.007336627 | N59: 3.167061401 | P59: comp101432_c0_seq1 | Q59: 1.620427338 | R59: 1.827749515 | S59: 1.724088426 | U59: comp101432_c0_seq1 | V59: 1.839821164 | W59: 2.445378422 | X59: 2.142599793
A60: comp10143857_c0_seq1 | B60: 0 | C60: 0 | D60: 0 | F60: comp10143857_c0_seq1 | G60: 0 | H60: 0 | I60: 0 | K60: comp10143857_c0_seq1 | L60: 0 | M60: 0 | N60: 0 | P60: comp10143857_c0_seq1 | Q60: 0 | R60: 0 | S60: 0 | U60: comp10143857_c0_seq1 | V60: 0 | W60: 0 | X60: 0
A61: comp1015207_c0_seq1 | B61: 0.6863101044 | C61: 1.477073949 | D61: 1.081692027 | F61: comp1015207_c0_seq1 | G61: 0.4067018535 | H61: 0 | I61: 0.2033509268 | K61: comp1015207_c0_seq1 | L61: 0.2937734809 | M61: 0.1868966265 | N61: 0.2403350537 | P61: comp1015207_c0_seq1 | Q61: 0.1000263789 | R61: 0.09619734287 | S61: 0.09811186087 | U61: comp1015207_c0_seq1 | V61: 0 | W61: 0 | X61: 0
A62: comp10160501_c0_seq1 | B62: 0 | C62: 0 | D62: 0 | F62: comp10160501_c0_seq1 | G62: 0 | H62: 0 | I62: 0 | K62: comp10160501_c0_seq1 | L62: 0 | M62: 0 | N62: 0 | P62: comp10160501_c0_seq1 | Q62: 0 | R62: 0 | S62: 0 | U62: comp10160501_c0_seq1 | V62: 0 | W62: 0 | X62: 0
A63: comp1016432_c0_seq1 | B63: 0 | C63: 0 | D63: 0 | F63: comp1016432_c0_seq1 | G63: 0.7063769035 | H63: 0.3749054025 | I63: 0.540641153 | K63: comp1016432_c0_seq1 | L63: 0.03969911904 | M63: 0.05097180724 | N63: 0.04533546314 | P63: comp1016432_c0_seq1 | Q63: 0 | R63: 0.05344296826 | S63: 0.02672148413 | U63: comp1016432_c0_seq1 | V63: 0.1604495201 | W63: 0.2794718196 | X63: 0.2199606699
A64: comp10167375_c0_seq1 | B64: 0 | C64: 0 | D64: 0 | F64: comp10167375_c0_seq1 | G64: 0 | H64: 0 | I64: 0 | K64: comp10167375_c0_seq1 | L64: 0 | M64: 0 | N64: 0 | P64: comp10167375_c0_seq1 | Q64: 0 | R64: 0 | S64: 0 | U64: comp10167375_c0_seq1 | V64: 0 | W64: 0 | X64: 0
A65: comp101696_c0_seq1 | B65: 2.710045027 | C65: 3.458514612 | D65: 3.08427982 | F65: comp101696_c0_seq1 | G65: 8.219658514 | H65: 5.423631489 | I65: 6.821645001 | K65: comp101696_c0_seq1 | L65: 11.89385606 | M65: 11.02690097 | N65: 11.46037852 | P65: comp101696_c0_seq1 | Q65: 3.340881054 | R65: 2.084275762 | S65: 2.712578408 | U65: comp101696_c0_seq1 | V65: 3.808001944 | W65: 5.67483056 | X65: 4.741416252
A66: comp101706_c0_seq1 | B66: 9.590743766 | C66: 8.069867429 | D66: 8.830305598 | F66: comp101706_c0_seq1 | G66: 7.770145939 | H66: 8.322899935 | I66: 8.046522937 | K66: comp101706_c0_seq1 | L66: 6.987044951 | M66: 5.224610242 | N66: 6.105827597 | P66: comp101706_c0_seq1 | Q66: 6.161624939 | R66: 7.118603373 | S66: 6.640114156 | U66: comp101706_c0_seq1 | V66: 4.182384157 | W66: 4.79759957 | X66: 4.489991864
A67: comp101798_c0_seq1 | B67: 9.925099971 | C67: 8.8264175 | D67: 9.375758736 | F67: comp101798_c0_seq1 | G67: 19.67152649 | H67: 19.5950557 | I67: 19.6332911 | K67: comp101798_c0_seq1 | L67: 5.137066004 | M67: 6.422447712 | N67: 5.779756858 | P67: comp101798_c0_seq1 | Q67: 4.521192325 | R67: 4.425077772 | S67: 4.473135049 | U67: comp101798_c0_seq1 | V67: 5.979418782 | W67: 5.799040257 | X67: 5.88922952
A68: comp101867_c0_seq1 | B68: 0.3871492896 | C68: 1.224890592 | D68: =AVERAGE(B68:C68) -> 0.8060199408 | F68: comp101867_c0_seq1 | G68: 26.41421512 | H68: 30.09240697 | I68: =AVERAGE(G68:H68) -> 28.25331105 | K68: comp101867_c0_seq1 | L68: 3.819055252 | M68: 7.093576508 | N68: =AVERAGE(L68:M68) -> 5.45631588 | P68: comp101867_c0_seq1 | Q68: 8.752308152 | R68: 7.781296179 | S68: =AVERAGE(Q68:R68) -> 8.266802165 | U68: comp101867_c0_seq1 | V68: 6.3858909 | W68: 5.682593666 | X68: =AVERAGE(V68:W68) -> 6.034242283
A69: comp101892_c0_seq1 | B69: 7.056675688 | C69: 5.836243408 | D69: 6.446459548 | F69: comp101892_c0_seq1 | G69: 16.63196527 | H69: 10.87225667 | I69: 13.75211097 | K69: comp101892_c0_seq1 | L69: 4.748014637 | M69: 6.821726869 | N69: 5.784870753 | P69: comp101892_c0_seq1 | Q69: 3.801002397 | R69: 4.970196048 | S69: 4.385599223 | U69: comp101892_c0_seq1 | V69: 4.663732717 | W69: 3.175110395 | X69: 3.919421556
A70: comp101918_c0_seq1 | B70: 1.231838649 | C70: 4.287117072 | D70: 2.75947786 | F70: comp101918_c0_seq1 | G70: 5.543988425 | H70: 3.874022492 | I70: 4.709005458 | K70: comp101918_c0_seq1 | L70: 2.381947143 | M70: 2.693010483 | N70: 2.537478813 | P70: comp101918_c0_seq1 | Q70: 2.690709592 | R70: 3.01418341 | S70: 2.852446501 | U70: comp101918_c0_seq1 | V70: 2.513709148 | W70: 3.640896761 | X70: 3.077302955
A71: comp101990_c0_seq1 | B71: 0.3871492896 | C71: 1.549126337 | D71: 0.9681378132 | F71: comp101990_c0_seq1 | G71: 0 | H71: 0.549861257 | I71: 0.2749306285 | K71: comp101990_c0_seq1 | L71: 0.06351859047 | M71: 0.2378684338 | N71: 0.1506935121 | P71: comp101990_c0_seq1 | Q71: 0.7401952037 | R71: 0.5558068699 | S71: 0.6480010368 | U71: comp101990_c0_seq1 | V71: 0.3636855789 | W71: 0.1397359098 | X71: 0.2517107444
A72: comp102070_c0_seq1 | B72: 1.249436344 | C72: 1.7652835 | D72: 1.507359922 | F72: comp102070_c0_seq1 | G72: 3.253614828 | H72: 2.149457641 | I72: 2.701536235 | K72: comp102070_c0_seq1 | L72: 3.612619833 | M72: 3.406615784 | N72: 3.509617808 | P72: comp102070_c0_seq1 | Q72: 3.640960191 | R72: 3.762384966 | S72: 3.701672578 | U72: comp102070_c0_seq1 | V72: 4.76000243 | W72: 3.640896761 | X72: 4.200449595
A73: comp1021162_c0_seq1 | B73: 0 | C73: 0.3242357449 | D73: 0.1621178725 | F73: comp1021162_c0_seq1 | G73: 0 | H73: 0 | I73: 0 | K73: comp1021162_c0_seq1 | L73: 0.2540743619 | M73: 0.3143261446 | N73: 0.2842002533 | P73: comp1021162_c0_seq1 | Q73: 0.1600422062 | R73: 0.07482015557 | S73: 0.1174311809 | U73: comp1021162_c0_seq1 | V73: 0.1818427894 | W73: 0.1397359098 | X73: 0.1607893496
A74: comp10213470_c0_seq1 | B74: 0 | C74: 0 | D74: 0 | F74: comp10213470_c0_seq1 | G74: 0 | H74: 0 | I74: 0 | K74: comp10213470_c0_seq1 | L74: 0 | M74: 0 | N74: 0 | P74: comp10213470_c0_seq1 | Q74: 0 | R74: 0 | S74: 0 | U74: comp10213470_c0_seq1 | V74: 0 | W74: 0 | X74: 0
A75: comp102156_c0_seq1 | B75: 5.068136155 | C75: 4.719431398 | D75: 4.893783777 | F75: comp102156_c0_seq1 | G75: 3.788748846 | H75: 4.198940508 | I75: 3.993844677 | K75: comp102156_c0_seq1 | L75: 5.549936842 | M75: 6.762259761 | N75: 6.156098301 | P75: comp102156_c0_seq1 | Q75: 6.511717265 | R75: 7.033094623 | S75: 6.772405944 | U75: comp102156_c0_seq1 | V75: 6.214744745 | W75: 6.233774199 | X75: 6.224259472
A76: comp102194_c0_seq1 | B76: 1.988539533 | C76: 1.801309694 | D76: 1.894924614 | F76: comp102194_c0_seq1 | G76: 4.281072143 | H76: 4.973745006 | I76: 4.627408574 | K76: comp102194_c0_seq1 | L76: 3.922272961 | M76: 5.088685423 | N76: 4.505479192 | P76: comp102194_c0_seq1 | Q76: 2.150567146 | R76: 2.447687946 | S76: 2.299127546 | U76: comp102194_c0_seq1 | V76: 2.331866359 | W76: 2.678271605 | X76: 2.505068982
A77: comp1022024_c0_seq1 | B77: 0.3343562047 | C77: 3.278383643 | D77: 1.806369924 | F77: comp1022024_c0_seq1 | G77: 1.241510921 | H77: 1.49962161 | I77: 1.370566266 | K77: comp1022024_c0_seq1 | L77: 0.1111575333 | M77: 0 | N77: 0.05557876666 | P77: comp1022024_c0_seq1 | Q77: 0 | R77: 0.1389517175 | S77: 0.06947585874 | U77: comp1022024_c0_seq1 | V77: 0 | W77: 0 | X77: 0
A78: comp102206_c0_seq1 | B78: 44.31099597 | C78: 48.38317838 | D78: 46.34708717 | F78: comp102206_c0_seq1 | G78: 3.189398746 | H78: 5.148700861 | I78: 4.169049803 | K78: comp102206_c0_seq1 | L78: 3.660258776 | M78: 2.947869519 | N78: 3.304064147 | P78: comp102206_c0_seq1 | Q78: 4.581208152 | R78: 5.835972134 | S78: 5.208590143 | U78: comp102206_c0_seq1 | V78: 6.760273113 | W78: 4.401681159 | X78: 5.580977136
A79: comp1022351_c0_seq1 | B79: 0 | C79: 1.477073949 | D79: 0.7385369745 | F79: comp1022351_c0_seq1 | G79: 1.669618136 | H79: 0.6748297245 | I79: 1.17222393 | K79: comp1022351_c0_seq1 | L79: 0 | M79: 0 | N79: 0 | P79: comp1022351_c0_seq1 | Q79: 0 | R79: 0 | S79: 0 | U79: comp1022351_c0_seq1 | V79: 0 | W79: 0.1086834854 | X79: 0.05434174271
A80: comp1022823_c0_seq1 | B80: 0 | C80: 0.5764191021 | D80: 0.288209551 | F80: comp1022823_c0_seq1 | G80: 0 | H80: 0 | I80: 0 | K80: comp1022823_c0_seq1 | L80: 0 | M80: 0 | N80: 0 | P80: comp1022823_c0_seq1 | Q80: 0.1500395683 | R80: 0 | S80: 0.07501978416 | U80: comp1022823_c0_seq1 | V80: 0 | W80: 0 | X80: 0
A81: comp102302_c0_seq1 | B81: 0 | C81: 0 | D81: 0 | F81: comp102302_c0_seq1 | G81: 8.604955007 | H81: 8.597830564 | I81: 8.601392785 | K81: comp102302_c0_seq1 | L81: 0.5319681952 | M81: 0.3313167471 | N81: 0.4316424711 | P81: comp102302_c0_seq1 | Q81: 3.160833572 | R81: 1.763617953 | S81: 2.462225763 | U81: comp102302_c0_seq1 | V81: 7.263014943 | W81: 5.162465557 | X81: 6.21274025
A82: comp102359_c0_seq1 | B82: 6.106400159 | C82: 8.322050786 | D82: 7.214225473 | F82: comp102359_c0_seq1 | G82: 4.966043685 | H82: 4.798789152 | I82: 4.882416419 | K82: comp102359_c0_seq1 | L82: 4.79565358 | M82: 2.862916507 | N82: 3.829285043 | P82: comp102359_c0_seq1 | Q82: 3.040801918 | R82: 2.255293261 | S82: 2.648047589 | U82: comp102359_c0_seq1 | V82: 4.118204349 | W82: 4.285234568 | X82: 4.201719458
A83: comp10238745_c0_seq1 | B83: 0 | C83: 0 | D83: 0 | F83: comp10238745_c0_seq1 | G83: 0 | H83: 0 | I83: 0 | K83: comp10238745_c0_seq1 | L83: 0 | M83: 0 | N83: 0 | P83: comp10238745_c0_seq1 | Q83: 0 | R83: 0 | S83: 0 | U83: comp10238745_c0_seq1 | V83: 0 | W83: 0 | X83: 0
A84: comp1024009_c0_seq1 | B84: 0.4047469846 | C84: 0 | D84: 0.2023734923 | F84: comp1024009_c0_seq1 | G84: 1.49837525 | H84: 0 | I84: 0.7491876249 | K84: comp1024009_c0_seq1 | L84: 0.1429168286 | M84: 0 | N84: 0.07145841428 | P84: comp1024009_c0_seq1 | Q84: 0.1700448441 | R84: 0 | S84: 0.08502242204 | U84: comp1024009_c0_seq1 | V84: 0.3743822136 | W84: 0.09315727321 | X84: 0.2337697434
A85: comp102409_c0_seq1 | B85: 2.657251943 | C85: 7.133186388 | D85: 4.895219165 | F85: comp102409_c0_seq1 | G85: 9.247115828 | H85: 7.898007146 | I85: 8.572561487 | K85: comp102409_c0_seq1 | L85: 8.233597289 | M85: 7.518341568 | N85: 7.875969429 | P85: comp102409_c0_seq1 | Q85: 5.481445562 | R85: 5.942858071 | S85: 5.712151817 | U85: comp102409_c0_seq1 | V85: 4.235867331 | W85: 5.170228663 | X85: 4.703047997
A86: comp1024250_c0_seq1 | B86: 0.4399423746 | C86: 0.3602619388 | D86: 0.4001021567 | F86: comp1024250_c0_seq1 | G86: 2.3974004 | H86: 1.599596384 | I86: 1.998498392 | K86: comp1024250_c0_seq1 | L86: 0.5716673142 | M86: 0.3652979519 | N86: 0.468482633 | P86: comp1024250_c0_seq1 | Q86: 0.1900501199 | R86: 0.2672148413 | S86: 0.2286324806 | U86: comp1024250_c0_seq1 | V86: 0.06417980804 | W86: 0.155262122 | X86: 0.109720965
A87: comp102434_c0_seq1 | B87: 23.1409689 | C87: 22.51637117 | D87: 22.82867004 | F87: comp102434_c0_seq1 | G87: 23.93119328 | H87: 23.14416018 | I87: 23.53767673 | K87: comp102434_c0_seq1 | L87: 4.081069437 | M87: 3.950315061 | N87: 4.015692249 | P87: comp102434_c0_seq1 | Q87: 6.751780574 | R87: 7.011717436 | S87: 6.881749005 | U87: comp102434_c0_seq1 | V87: 5.754789454 | W87: 5.449700483 | X87: 5.602244968
A88: comp102447_c0_seq1 | B88: 0.7391031893 | C88: 1.477073949 | D88: 1.108088569 | F88: comp102447_c0_seq1 | G88: 63.33846235 | H88: 41.41455013 | I88: 52.37650624 | K88: comp102447_c0_seq1 | L88: 8.717926542 | M88: 12.81940952 | N88: 10.76866803 | P88: comp102447_c0_seq1 | Q88: 2.560675299 | R88: 0.8978418668 | S88: 1.729258583 | U88: comp102447_c0_seq1 | V88: 4.845575507 | W88: 3.392477366 | X88: 4.119026437
A89: comp102459_c0_seq1 | B89: 4.364228356 | C89: 4.106986102 | D89: 4.235607229 | F89: comp102459_c0_seq1 | G89: 4.238261421 | H89: 4.373896362 | I89: 4.306078892 | K89: comp102459_c0_seq1 | L89: 9.273714208 | M89: 7.246491929 | N89: 8.260103069 | P89: comp102459_c0_seq1 | Q89: 6.501714627 | R89: 6.573485096 | S89: 6.537599862 | U89: comp102459_c0_seq1 | V89: 6.503553881 | W89: 7.103242082 | X89: 6.803397982
A90: comp1024661_c0_seq1 | B90: 0.4399423746 | C90: 0 | D90: 0.2199711873 | F90: comp1024661_c0_seq1 | G90: 0 | H90: 0 | I90: 0 | K90: comp1024661_c0_seq1 | L90: 0 | M90: 0.1868966265 | N90: 0.09344831327 | P90: comp1024661_c0_seq1 | Q90: 0 | R90: 0.1817060921 | S90: 0.09085304605 | U90: comp1024661_c0_seq1 | V90: 0 | W90: 0 | X90: 0
A91: comp1024707_c0_seq1 | B91: 0 | C91: 0 | D91: 0 | F91: comp1024707_c0_seq1 | G91: 0 | H91: 0 | I91: 0 | K91: comp1024707_c0_seq1 | L91: 0 | M91: 0 | N91: 0 | P91: comp1024707_c0_seq1 | Q91: 0 | R91: 0 | S91: 0 | U91: comp1024707_c0_seq1 | V91: 0 | W91: 0 | X91: 0
A92: comp1025254_c0_seq1 | B92: 0 | C92: 0.3962881327 | D92: 0.1981440663 | F92: comp1025254_c0_seq1 | G92: 0 | H92: 0 | I92: 0 | K92: comp1025254_c0_seq1 | L92: 0.3890513666 | M92: 0.1953919278 | N92: 0.2922216472 | P92: comp1025254_c0_seq1 | Q92: 0.2000527577 | R92: 0.1923946857 | S92: 0.1962237217 | U92: comp1025254_c0_seq1 | V92: 0.2995057708 | W92: 0.2251300769 | X92: 0.2623179239
A93: comp102588_c0_seq1 | B93: 5.75444626 | C93: 2.954147898 | D93: 4.354297079 | F93: comp102588_c0_seq1 | G93: 16.63196527 | H93: 15.89598907 | I93: 16.26397717 | K93: comp102588_c0_seq1 | L93: 6.23276169 | M93: 5.054704218 | N93: 5.643732954 | P93: comp102588_c0_seq1 | Q93: 3.470915347 | R93: 2.201850292 | S93: 2.83638282 | U93: comp102588_c0_seq1 | V93: 7.733666869 | W93: 5.092597602 | X93: 6.413132235
A94: comp1026213_c0_seq1 | B94: 0.3871492896 | C94: 2.485807378 | D94: 1.436478334 | F94: comp1026213_c0_seq1 | G94: 0 | H94: 0 | I94: 0 | K94: comp1026213_c0_seq1 | L94: 0 | M94: 0 | N94: 0 | P94: comp1026213_c0_seq1 | Q94: 0 | R94: 0.1603289048 | S94: 0.08016445239 | U94: comp1026213_c0_seq1 | V94: 0.1176629814 | W94: 0 | X94: 0.0588314907
A95: comp1026589_c0_seq1 | B95: 0 | C95: 0 | D95: 0 | F95: comp1026589_c0_seq1 | G95: 0.3210804107 | H95: 0 | I95: 0.1605402053 | K95: comp1026589_c0_seq1 | L95: 0.2937734809 | M95: 0.5182133736 | N95: 0.4059934273 | P95: comp1026589_c0_seq1 | Q95: 0.4601213428 | R95: 0.4489209334 | S95: 0.4545211381 | U95: comp1026589_c0_seq1 | V95: 0.3422923095 | W95: 0.9936775809 | X95: 0.6679849452
A96: comp1026693_c0_seq1 | B96: 0.3167585097 | C96: 2.521833572 | D96: 1.419296041 | F96: comp1026693_c0_seq1 | G96: 1.134484118 | H96: 0 | I96: 0.5672420589 | K96: comp1026693_c0_seq1 | L96: 0.1032177095 | M96: 0 | N96: 0.05160885475 | P96: comp1026693_c0_seq1 | Q96: 0 | R96: 0.1282631238 | S96: 0.06413156192 | U96: comp1026693_c0_seq1 | V96: 0 | W96: 0 | X96: 0
A97: comp1026983_c0_seq1 | B97: 0 | C97: 0.1801309694 | D97: 0.0900654847 | F97: comp1026983_c0_seq1 | G97: 0 | H97: 0.1749558545 | I97: 0.08747792725 | K97: comp1026983_c0_seq1 | L97: 0.07145841428 | M97: 0.04247650603 | N97: 0.05696746015 | P97: comp1026983_c0_seq1 | Q97: 0.05001318944 | R97: 0.04275437461 | S97: 0.04638378202 | U97: comp1026983_c0_seq1 | V97: 0 | W97: 0.0232893183 | X97: 0.01164465915
A98: comp1027151_c0_seq1 | B98: 0 | C98: 0 | D98: 0 | F98: comp1027151_c0_seq1 | G98: 0 | H98: 0 | I98: 0 | K98: comp1027151_c0_seq1 | L98: 0 | M98: 0 | N98: 0 | P98: comp1027151_c0_seq1 | Q98: 0.1700448441 | R98: 0.1603289048 | S98: 0.1651868744 | U98: comp1027151_c0_seq1 | V98: 0 | W98: 0 | X98: 0
A99: comp1027307_c0_seq1 | B99: 0 | C99: 2.305676408 | D99: 1.152838204 | F99: comp1027307_c0_seq1 | G99: 0 | H99: 0 | I99: 0 | K99: comp1027307_c0_seq1 | L99: 0 | M99: 0 | N99: 0 | P99: comp1027307_c0_seq1 | Q99: 0 | R99: 0 | S99: 0 | U99: comp1027307_c0_seq1 | V99: 0 | W99: 0 | X99: 0
A100: comp102741_c0_seq1 | B100: 8.446893592 | C100: 5.007640949 | D100: 6.727267271 | F100: comp102741_c0_seq1 | G100: 7.534686971 | H100: 7.623076517 | I100: 7.578881744 | K100: comp102741_c0_seq1 | L100: 4.390722566 | M100: 7.085081206 | N100: 5.737901886 | P100: comp102741_c0_seq1 | Q100: 9.682553475 | R100: 8.914287106 | S100: 9.298420291 | U100: comp102741_c0_seq1 | V100: 7.53043081 | W100: 7.374950796 | X100: 7.452690803
A101: comp10275335_c0_seq1 | B101: 0 | C101: 0 | D101: 0 | F101: comp10275335_c0_seq1 | G101: 0 | H101: 0 | I101: 0 | K101: comp10275335_c0_seq1 | L101: 0 | M101: 0 | N101: 0 | P101: comp10275335_c0_seq1 | Q101: 0 | R101: 0 | S101: 0 | U101: comp10275335_c0_seq1 | V101: 0 | W101: 0 | X101: 0
A102: comp102759_c0_seq1 | B102: 5.2617108 | C102: 4.467248041 | D102: 4.864479421 | F102: comp102759_c0_seq1 | G102: 4.666368635 | H102: 3.774047718 | I102: 4.220208177 | K102: comp102759_c0_seq1 | L102: 3.374425119 | M102: 3.23670976 | N102: 3.305567439 | P102: comp102759_c0_seq1 | Q102: 3.780997121 | R102: 3.879959496 | S102: 3.830478309 | U102: comp102759_c0_seq1 | V102: 5.198564451 | W102: 4.510364645 | X102: 4.854464548
A103: comp1027702_c0_seq1 | B103: 0 | C103: 0.7205238776 | D103: 0.3602619388 | F103: comp1027702_c0_seq1 | G103: 0.7919983464 | H103: 0 | I103: 0.3959991732 | K103: comp1027702_c0_seq1 | L103: 0 | M103: 0 | N103: 0 | P103: comp1027702_c0_seq1 | Q103: 0 | R103: 0 | S103: 0 | U103: comp1027702_c0_seq1 | V103: 0 | W103: 0 | X103: 0
A104: comp10279293_c0_seq1 | B104: 0 | C104: 0 | D104: 0 | F104: comp10279293_c0_seq1 | G104: 0 | H104: 0 | I104: 0 | K104: comp10279293_c0_seq1 | L104: 0 | M104: 0 | N104: 0 | P104: comp10279293_c0_seq1 | Q104: 0 | R104: 0 | S104: 0 | U104: comp10279293_c0_seq1 | V104: 0 | W104: 0 | X104: 0
A105: comp10279787_c0_seq1 | B105: 0 | C105: 0 | D105: 0 | F105: comp10279787_c0_seq1 | G105: 0 | H105: 0 | I105: 0 | K105: comp10279787_c0_seq1 | L105: 0 | M105: 0 | N105: 0 | P105: comp10279787_c0_seq1 | Q105: 0 | R105: 0 | S105: 0 | U105: comp10279787_c0_seq1 | V105: 0 | W105: 0 | X105: 0
A106: comp10280365_c0_seq1 | B106: 0 | C106: 0 | D106: 0 | F106: comp10280365_c0_seq1 | G106: 0 | H106: 0 | I106: 0 | K106: comp10280365_c0_seq1 | L106: 0 | M106: 0 | N106: 0 | P106: comp10280365_c0_seq1 | Q106: 0 | R106: 0 | S106: 0 | U106: comp10280365_c0_seq1 | V106: 0 | W106: 0 | X106: 0
A107: comp102844_c0_seq1 | B107: 6.352767889 | C107: 5.908295796 | D107: 6.130531843 | F107: comp102844_c0_seq1 | G107: 10.31738386 | H107: 5.848524279 | I107: 8.082954071 | K107: comp102844_c0_seq1 | L107: 11.36982769 | M107: 9.956493014 | N107: 10.66316035 | P107: comp102844_c0_seq1 | Q107: 4.671231893 | R107: 3.548613093 | S107: 4.109922493 | U107: comp102844_c0_seq1 | V107: 4.246563965 | W107: 5.822329576 | X107: 5.03444677
A108: comp102894_c0_seq1 | B108: 5.57846931 | C108: 4.791483786 | D108: 5.184976548 | F108: comp102894_c0_seq1 | G108: 2.782696893 | H108: 1.849533319 | I108: 2.316115106 | K108: comp102894_c0_seq1 | L108: 4.033430495 | M108: 3.814390242 | N108: 3.923910368 | P108: comp102894_c0_seq1 | Q108: 1.740458992 | R108: 1.881192483 | S108: 1.810825738 | U108: comp102894_c0_seq1 | V108: 2.44952934 | W108: 2.771428878 | X108: 2.610479109
A109: comp1028993_c0_seq1 | B109: 0 | C109: 0 | D109: 0 | F109: comp1028993_c0_seq1 | G109: 0 | H109: 0 | I109: 0 | K109: comp1028993_c0_seq1 | L109: 0.5954867856 | M109: 0.7475865062 | N109: 0.6715366459 | P109: comp1028993_c0_seq1 | Q109: 0 | R109: 0 | S109: 0 | U109: comp1028993_c0_seq1 | V109: 0 | W109: 0 | X109: 0
A110: comp102904_c0_seq1 | B110: 3.783504422 | C110: 3.602619388 | D110: 3.693061905 | F110: comp102904_c0_seq1 | G110: 0.2140536071 | H110: 0.49987387 | I110: 0.3569637386 | K110: comp102904_c0_seq1 | L110: 2.008775424 | M110: 1.325266988 | N110: 1.667021206 | P110: comp102904_c0_seq1 | Q110: 5.16136115 | R110: 4.029599807 | S110: 4.595480478 | U110: comp102904_c0_seq1 | V110: 4.503283197 | W110: 5.736935409 | X110: 5.120109303
A111: comp1029445_c0_seq1 | B111: 0 | C111: 0 | D111: 0 | F111: comp1029445_c0_seq1 | G111: 0 | H111: 0.3249180155 | I111: 0.1624590077 | K111: comp1029445_c0_seq1 | L111: 0.2937734809 | M111: 0.1868966265 | N111: 0.2403350537 | P111: comp1029445_c0_seq1 | Q111: 0 | R111: 0 | S111: 0 | U111: comp1029445_c0_seq1 | V111: 0.07487644271 | W111: 0 | X111: 0.03743822136
A112: comp102944_c0_seq1 | B112: 4.927354595 | C112: 10.73580578 | D112: 7.831580186 | F112: comp102944_c0_seq1 | G112: 18.72969062 | H112: 12.22191612 | I112: 15.47580337 | K112: comp102944_c0_seq1 | L112: 5.573756313 | M112: 7.32294964 | N112: 6.448352977 | P112: comp102944_c0_seq1 | Q112: 8.312192085 | R112: 8.476054767 | S112: 8.394123426 | U112: comp102944_c0_seq1 | V112: 6.728183209 | W112: 8.849940955 | X112: 7.789062082
A113: comp1029486_c0_seq1 | B113: 0 | C113: 0 | D113: 0 | F113: comp1029486_c0_seq1 | G113: 0 | H113: 0 | I113: 0 | K113: comp1029486_c0_seq1 | L113: 0.5637274904 | M113: 0.1784013253 | N113: 0.3710644079 | P113: comp1029486_c0_seq1 | Q113: 0.180047482 | R113: 0.1710174984 | S113: 0.1755324902 | U113: comp1029486_c0_seq1 | V113: 0 | W113: 0.388155305 | X113: 0.1940776525
A114: comp102949_c0_seq1 | B114: 2.041332618 | C114: 2.377728796 | D114: 2.209530707 | F114: comp102949_c0_seq1 | G114: 3.210804107 | H114: 2.774299978 | I114: 2.992552043 | K114: comp102949_c0_seq1 | L114: 5.272043009 | M114: 4.443042531 | N114: 4.85754277 | P114: comp102949_c0_seq1 | Q114: 2.330614628 | R114: 1.838438108 | S114: 2.084526368 | U114: comp102949_c0_seq1 | V114: 2.363956263 | W114: 2.305642512 | X114: 2.334799387
A115: comp102960_c0_seq1 | B115: 1.671781023 | C115: 2.846069316 | D115: 2.25892517 | F115: comp102960_c0_seq1 | G115: 19.50028361 | H115: 18.27038995 | I115: 18.88533678 | K115: comp102960_c0_seq1 | L115: 7.376096318 | M115: 12.53906458 | N115: 9.95758045 | P115: comp102960_c0_seq1 | Q115: 7.15188609 | R115: 5.173279328 | S115: 6.162582709 | U115: comp102960_c0_seq1 | V115: 8.461038026 | W115: 8.081393451 | X115: 8.271215739
A116: comp1029757_c0_seq1 | B116: 0.2287700348 | C116: 0.7205238776 | D116: 0.4746469562 | F116: comp1029757_c0_seq1 | G116: 0 | H116: 0 | I116: 0 | K116: comp1029757_c0_seq1 | L116: 0 | M116: 0 | N116: 0 | P116: comp1029757_c0_seq1 | Q116: 0.1900501199 | R116: 0.1817060921 | S116: 0.185878106 | U116: comp1029757_c0_seq1 | V116: 0.1390562507 | W116: 0.2639456074 | X116: 0.2015009291
A117: comp10298859_c0_seq1 | B117: 0 | C117: 0 | D117: 0 | F117: comp10298859_c0_seq1 | G117: 0 | H117: 0 | I117: 0 | K117: comp10298859_c0_seq1 | L117: 0 | M117: 0 | N117: 0 | P117: comp10298859_c0_seq1 | Q117: 0 | R117: 0 | S117: 0 | U117: comp10298859_c0_seq1 | V117: 0 | W117: 0 | X117: 0
A118: comp102989_c0_seq1 | B118: 24.47839372 | C118: 27.34388115 | D118: 25.91113744 | F118: comp102989_c0_seq1 | G118: 4.51653111 | H118: 9.9974774 | I118: 7.257004255 | K118: comp102989_c0_seq1 | L118: 2.763058685 | M118: 2.760972892 | N118: 2.762015789 | P118: comp102989_c0_seq1 | Q118: 1.930509112 | R118: 3.153135128 | S118: 2.54182212 | U118: comp102989_c0_seq1 | V118: 1.583101932 | W118: 1.645778493 | X118: 1.614440213
A119: comp103032_c0_seq1 | B119: 12.58235191 | C119: 5.548033857 | D119: 9.065192885 | F119: comp103032_c0_seq1 | G119: 8.669171089 | H119: 4.248927895 | I119: 6.459049492 | K119: comp103032_c0_seq1 | L119: 2.747179038 | M119: 4.392070724 | N119: 3.569624881 | P119: comp103032_c0_seq1 | Q119: 9.332461149 | R119: 8.914287106 | S119: 9.123374128 | U119: comp103032_c0_seq1 | V119: 4.76000243 | W119: 3.52445017 | X119: 4.1422263
A120: comp103038_c0_seq1 | B120: 3.713113642 | C120: 2.521833572 | D120: 3.117473607 | F120: comp103038_c0_seq1 | G120: 2.076319989 | H120: 1.07472882 | I120: 1.575524405 | K120: comp103038_c0_seq1 | L120: 2.763058685 | M120: 2.540095061 | N120: 2.651576873 | P120: comp103038_c0_seq1 | Q120: 3.200844124 | R120: 3.046249191 | S120: 3.123546658 | U120: comp103038_c0_seq1 | V120: 3.294563479 | W120: 3.004322061 | X120: 3.14944277
A121: comp103048_c0_seq1 | B121: 3.009205842 | C121: 5.728164827 | D121: 4.368685334 | F121: comp103048_c0_seq1 | G121: 46.55665955 | H121: 25.79349169 | I121: 36.17507562 | K121: comp103048_c0_seq1 | L121: 9.893020465 | M121: 12.61552229 | N121: 11.25427138 | P121: comp103048_c0_seq1 | Q121: 5.561466665 | R121: 4.692292614 | S121: 5.126879639 | U121: comp103048_c0_seq1 | V121: 8.792633701 | W121: 7.561265342 | X121: 8.176949522
A122: comp103066_c0_seq1 | B122: 12.12481184 | C122: 9.618993766 | D122: 10.8719028 | F122: comp103066_c0_seq1 | G122: 4.687773996 | H122: 7.548095437 | I122: 6.117934716 | K122: comp103066_c0_seq1 | L122: 7.892184865 | M122: 5.734328315 | N122: 6.81325659 | P122: comp103066_c0_seq1 | Q122: 6.951833332 | R122: 7.236177903 | S122: 7.094005617 | U122: comp103066_c0_seq1 | V122: 10.68593804 | W122: 8.508364287 | X122: 9.597151163
A123: comp103235_c0_seq1 | B123: 6.159193244 | C123: 5.512007664 | D123: 5.835600454 | F123: comp103235_c0_seq1 | G123: 1.49837525 | H123: 1.699571158 | I123: 1.598973204 | K123: comp103235_c0_seq1 | L123: 2.858336571 | M123: 3.228214459 | N123: 3.043275515 | P123: comp103235_c0_seq1 | Q123: 6.4416988 | R123: 6.979651655 | S123: 6.710675227 | U123: comp103235_c0_seq1 | V123: 4.460496659 | W123: 3.889316157 | X123: 4.174906408
A124: comp103259_c0_seq1 | B124: 9.221192171 | C124: 4.539300429 | D124: 6.8802463 | F124: comp103259_c0_seq1 | G124: 11.79435375 | H124: 8.947742273 | I124: 10.37104801 | K124: comp103259_c0_seq1 | L124: 6.987044951 | M124: 9.191915906 | N124: 8.089480429 | P124: comp103259_c0_seq1 | Q124: 6.101609111 | R124: 6.498664941 | S124: 6.300137026 | U124: comp103259_c0_seq1 | V124: 5.177171182 | W124: 5.240096618 | X124: 5.2086339
A125: comp1032709_c0_seq1 | B125: 0 | C125: 0 | D125: 0 | F125: comp1032709_c0_seq1 | G125: 0 | H125: 0 | I125: 0 | K125: comp1032709_c0_seq1 | L125: 0.1905557714 | M125: 0 | N125: 0.0952778857 | P125: comp1032709_c0_seq1 | Q125: 0.0800211031 | R125: 0.08550874922 | S125: 0.08276492616 | U125: comp1032709_c0_seq1 | V125: 0 | W125: 0 | X125: 0
A126: comp1032985_c0_seq1 | B126: 0.4575400696 | C126: 0.7205238776 | D126: 0.5890319736 | F126: comp1032985_c0_seq1 | G126: 0 | H126: 0 | I126: 0 | K126: comp1032985_c0_seq1 | L126: 0.6193062571 | M126: 0.781567711 | N126: 0.700436984 | P126: comp1032985_c0_seq1 | Q126: 0.3801002397 | R126: 0 | S126: 0.1900501199 | U126: comp1032985_c0_seq1 | V126: 0 | W126: 0.2096038647 | X126: 0.1048019324
A127: comp10336_c0_seq1 | B127: 0 | C127: 0 | D127: 0 | F127: comp10336_c0_seq1 | G127: 0 | H127: 0 | I127: 0 | K127: comp10336_c0_seq1 | L127: 0 | M127: 0 | N127: 0 | P127: comp10336_c0_seq1 | Q127: 0 | R127: 0 | S127: 0 | U127: comp10336_c0_seq1 | V127: 0 | W127: 0 | X127: 0
A128: comp10337475_c0_seq1 | B128: 0 | C128: 0 | D128: 0 | F128: comp10337475_c0_seq1 | G128: 0 | H128: 0 | I128: 0 | K128: comp10337475_c0_seq1 | L128: 0 | M128: 0 | N128: 0 | P128: comp10337475_c0_seq1 | Q128: 0 | R128: 0 | S128: 0 | U128: comp10337475_c0_seq1 | V128: 0 | W128: 0 | X128: 0
A129: comp103392_c0_seq1 | B129: 0.7918962743 | C129: 1.729257306 | D129: 1.26057679 | F129: comp103392_c0_seq1 | G129: 0.9846465928 | H129: 2.274426108 | I129: 1.629536351 | K129: comp103392_c0_seq1 | L129: 1.39740899 | M129: 1.325266988 | N129: 1.361337989 | P129: comp103392_c0_seq1 | Q129: 4.631221342 | R129: 5.045016204 | S129: 4.838118773 | U129: comp103392_c0_seq1 | V129: 1.251506257 | W129: 1.319728037 | X129: 1.285617147
A130: comp1034032_c0_seq1 | B130: 0 | C130: 0 | D130: 0 | F130: comp1034032_c0_seq1 | G130: 0 | H130: 0 | I130: 0 | K130: comp1034032_c0_seq1 | L130: 0.2858336571 | M130: 0.1784013253 | N130: 0.2321174912 | P130: comp1034032_c0_seq1 | Q130: 0 | R130: 0 | S130: 0 | U130: comp1034032_c0_seq1 | V130: 0.1283596161 | W130: 0.3959184112 | X130: 0.2621390136
A131: comp10346965_c0_seq1 | B131: 0 | C131: 0 | D131: 0 | F131: comp10346965_c0_seq1 | G131: 0 | H131: 0 | I131: 0 | K131: comp10346965_c0_seq1 | L131: 0 | M131: 0 | N131: 0 | P131: comp10346965_c0_seq1 | Q131: 0 | R131: 0 | S131: 0 | U131: comp10346965_c0_seq1 | V131: 0 | W131: 0 | X131: 0
A132: comp10347860_c0_seq1 | B132: 0 | C132: 0 | D132: =AVERAGE(B132:C132) -> 0 | F132: comp10347860_c0_seq1 | G132: 0 | H132: 0 | I132: =AVERAGE(G132:H132) -> 0 | K132: comp10347860_c0_seq1 | L132: 0 | M132: 0 | N132: =AVERAGE(L132:M132) -> 0 | P132: comp10347860_c0_seq1 | Q132: 0 | R132: 0 | S132: =AVERAGE(Q132:R132) -> 0 | U132: comp10347860_c0_seq1 | V132: 0 | W132: 0 | X132: =AVERAGE(V132:W132) -> 0
A133: comp103503_c0_seq1 | B133: 16.57702867 | C133: 11.96069637 | D133: 14.26886252 | F133: comp103503_c0_seq1 | G133: 9.140089024 | H133: 11.5470864 | I133: 10.34358771 | K133: comp103503_c0_seq1 | L133: 3.73171719 | M133: 3.703951326 | N133: 3.717834258 | P133: comp103503_c0_seq1 | Q133: 2.84074916 | R133: 2.597328258 | S133: 2.719038709 | U133: comp103503_c0_seq1 | V133: 4.845575507 | W133: 4.215366613 | X133: 4.53047106
A134: comp10353796_c0_seq1 | B134: 0 | C134: 0 | D134: 0 | F134: comp10353796_c0_seq1 | G134: 0 | H134: 0 | I134: 0 | K134: comp10353796_c0_seq1 | L134: 0 | M134: 0 | N134: 0 | P134: comp10353796_c0_seq1 | Q134: 0 | R134: 0 | S134: 0 | U134: comp10353796_c0_seq1 | V134: 0 | W134: 0 | X134: 0
A135: comp103569_c0_seq1 | B135: 1.284631734 | C135: 7.205238776 | D135: 4.244935255 | F135: comp103569_c0_seq1 | G135: 6.121933164 | H135: 3.0742243 | I135: 4.598078732 | K135: comp103569_c0_seq1 | L135: 8.392393765 | M135: 6.983137592 | N135: 7.687765679 | P135: comp103569_c0_seq1 | Q135: 1.440379856 | R135: 1.047482178 | S135: 1.243931017 | U135: comp103569_c0_seq1 | V135: 4.471193293 | W135: 6.497719807 | X135: 5.48445655
A136: comp103591_c0_seq1 | B136: 10.11867462 | C136: 12.10480114 | D136: 11.11173788 | F136: comp103591_c0_seq1 | G136: 5.265718735 | H136: 6.348398149 | I136: 5.807058442 | K136: comp103591_c0_seq1 | L136: 3.23150829 | M136: 4.043763374 | N136: 3.637635832 | P136: comp103591_c0_seq1 | Q136: 7.121878176 | R136: 7.93093649 | S136: 7.526407333 | U136: comp103591_c0_seq1 | V136: 5.872452436 | W136: 6.645218822 | X136: 6.258835629
A137: comp103594_c0_seq1 | B137: 2.586861163 | C137: 2.41375499 | D137: 2.500308076 | F137: comp103594_c0_seq1 | G137: 1.691023496 | H137: 1.174703594 | I137: 1.432863545 | K137: comp103594_c0_seq1 | L137: 4.470120804 | M137: 3.568026507 | N137: 4.019073655 | P137: comp103594_c0_seq1 | Q137: 8.302189447 | R137: 6.915520093 | S137: 7.60885477 | U137: comp103594_c0_seq1 | V137: 2.481619244 | W137: 3.415766684 | X137: 2.948692964
A138: comp10363912_c0_seq1 | B138: 0 | C138: 0 | D138: 0 | F138: comp10363912_c0_seq1 | G138: 0 | H138: 0 | I138: 0 | K138: comp10363912_c0_seq1 | L138: 0 | M138: 0 | N138: 0 | P138: comp10363912_c0_seq1 | Q138: 0 | R138: 0 | S138: 0 | U138: comp10363912_c0_seq1 | V138: 0 | W138: 0 | X138: 0
A139: comp103649_c0_seq1 | B139: 0 | C139: 0 | D139: 0 | F139: comp103649_c0_seq1 | G139: 0 | H139: 0 | I139: 0 | K139: comp103649_c0_seq1 | L139: 0 | M139: 0 | N139: 0 | P139: comp103649_c0_seq1 | Q139: 0 | R139: 0 | S139: 0 | U139: comp103649_c0_seq1 | V139: 0 | W139: 0 | X139: 0
A140: comp103656_c0_seq1 | B140: 13.99016751 | C140: 15.74344673 | D140: 14.86680712 | F140: comp103656_c0_seq1 | G140: 3.467668435 | H140: 3.973997266 | I140: 3.720832851 | K140: comp103656_c0_seq1 | L140: 5.510237723 | M140: 4.519500242 | N140: 5.014868982 | P140: comp103656_c0_seq1 | Q140: 2.850751798 | R140: 4.328880429 | S140: 3.589816114 | U140: comp103656_c0_seq1 | V140: 2.085843761 | W140: 2.849059939 | X140: 2.46745185
A141: comp1036653_c0_seq1 | B141: 0.1759769498 | C141: 0 | D141: 0.08798847492 | F141: comp1036653_c0_seq1 | G141: 0 | H141: 0.1249684675 | I141: 0.06248423375 | K141: comp1036653_c0_seq1 | L141: 0.4287504857 | M141: 0.3652979519 | N141: 0.3970242188 | P141: comp1036653_c0_seq1 | Q141: 0.1500395683 | R141: 0.1496403111 | S141: 0.1498399397 | U141: comp1036653_c0_seq1 | V141: 0 | W141: 0.04657863661 | X141: 0.0232893183
A142: comp10368261_c0_seq1 | B142: 0 | C142: 0 | D142: 0 | F142: comp10368261_c0_seq1 | G142: 0 | H142: 0 | I142: 0 | K142: comp10368261_c0_seq1 | L142: 0 | M142: 0 | N142: 0 | P142: comp10368261_c0_seq1 | Q142: 0 | R142: 0 | S142: 0 | U142: comp10368261_c0_seq1 | V142: 0 | W142: 0 | X142: 0
A143: comp103716_c0_seq1 | B143: 6.968687214 | C143: 5.512007664 | D143: 6.240347439 | F143: comp103716_c0_seq1 | G143: 2.718480811 | H143: 2.524363043 | I143: 2.621421927 | K143: comp103716_c0_seq1 | L143: 3.763476485 | M143: 3.87385735 | N143: 3.818666918 | P143: comp103716_c0_seq1 | Q143: 7.331933572 | R143: 8.144708363 | S143: 7.738320967 | U143: comp103716_c0_seq1 | V143: 4.546069736 | W143: 4.153261764 | X143: 4.34966575
A144: comp103744_c0_seq1 | B144: 2.006137228 | C144: 1.837335888 | D144: 1.921736558 | F144: comp103744_c0_seq1 | G144: 3.938586371 | H144: 3.99899096 | I144: 3.968788665 | K144: comp103744_c0_seq1 | L144: 5.827830675 | M144: 4.850816989 | N144: 5.339323832 | P144: comp103744_c0_seq1 | Q144: 3.74098657 | R144: 3.634121842 | S144: 3.687554206 | U144: comp103744_c0_seq1 | V144: 3.176900498 | W144: 4.199840401 | X144: 3.688370449
A145: comp1037897_c0_seq1 | B145: 0 | C145: 0 | D145: 0 | F145: comp1037897_c0_seq1 | G145: 0.8134037071 | H145: 0 | I145: 0.4067018535 | K145: comp1037897_c0_seq1 | L145: 0.7622230856 | M145: 0.3822885543 | N145: 0.57225582 | P145: comp1037897_c0_seq1 | Q145: 0 | R145: 0 | S145: 0 | U145: comp1037897_c0_seq1 | V145: 0 | W145: 0.1009203793 | X145: 0.05046018966
A146: comp103791_c0_seq1 | B146: 1.390217904 | C146: 2.954147898 | D146: 2.172182901 | F146: comp103791_c0_seq1 | G146: 3.060966582 | H146: 2.949255833 | I146: 3.005111207 | K146: comp103791_c0_seq1 | L146: 6.161303275 | M146: 5.199124339 | N146: 5.680213807 | P146: comp103791_c0_seq1 | Q146: 3.620954915 | R146: 3.976156839 | S146: 3.798555877 | U146: comp103791_c0_seq1 | V146: 2.962967804 | W146: 5.511805332 | X146: 4.237386568
A147: comp10384195_c0_seq1 | B147: 0 | C147: 0 | D147: 0 | F147: comp10384195_c0_seq1 | G147: 0 | H147: 0 | I147: 0 | K147: comp10384195_c0_seq1 | L147: 0 | M147: 0 | N147: 0 | P147: comp10384195_c0_seq1 | Q147: 0 | R147: 0 | S147: 0 | U147: comp10384195_c0_seq1 | V147: 0 | W147: 0 | X147: 0
A148: comp103892_c0_seq1 | B148: 6.247181719 | C148: 3.530567 | D148: 4.88887436 | F148: comp103892_c0_seq1 | G148: 11.32343582 | H148: 11.34713685 | I148: 11.33528633 | K148: comp103892_c0_seq1 | L148: 2.06435419 | M148: 3.652979519 | N148: 2.858666855 | P148: comp103892_c0_seq1 | Q148: 3.831010311 | R148: 4.841932925 | S148: 4.336471618 | U148: comp103892_c0_seq1 | V148: 9.97996015 | W148: 7.343898372 | X148: 8.661929261
A149: comp10390707_c0_seq1 | B149: 0 | C149: 0 | D149: 0 | F149: comp10390707_c0_seq1 | G149: 0 | H149: 0 | I149: 0 | K149: comp10390707_c0_seq1 | L149: 0.3096531285 | M149: 0.1274295181 | N149: 0.2185413233 | P149: comp10390707_c0_seq1 | Q149: 0 | R149: 0 | S149: 0 | U149: comp10390707_c0_seq1 | V149: 0 | W149: 0 | X149: 0
A150: comp1039174_c0_seq1 | B150: 0 | C150: 0 | D150: 0 | F150: comp1039174_c0_seq1 | G150: 0.3424857714 | H150: 0 | I150: 0.1712428857 | K150: comp1039174_c0_seq1 | L150: 0.1826159476 | M150: 0.2293731326 | N150: 0.2059945401 | P150: comp1039174_c0_seq1 | Q150: 0.5601477217 | R150: 0.07482015557 | S150: 0.3174839386 | U150: comp1039174_c0_seq1 | V150: 0.4171687522 | W150: 0.2251300769 | X150: 0.3211494146
A151: comp10392466_c0_seq1 | B151: 0 | C151: 0 | D151: 0 | F151: comp10392466_c0_seq1 | G151: 0 | H151: 0 | I151: 0 | K151: comp10392466_c0_seq1 | L151: 0 | M151: 0 | N151: 0 | P151: comp10392466_c0_seq1 | Q151: 0 | R151: 0 | S151: 0 | U151: comp10392466_c0_seq1 | V151: 0 | W151: 0 | X151: 0
A152: comp103988_c0_seq1 | B152: 3.853895201 | C152: 4.719431398 | D152: 4.2866633 | F152: comp103988_c0_seq1 | G152: 5.244313375 | H152: 5.523606263 | I152: 5.383959819 | K152: comp103988_c0_seq1 | L152: 6.717090942 | M152: 6.626334941 | N152: 6.671712942 | P152: comp103988_c0_seq1 | Q152: 9.322458511 | R152: 6.573485096 | S152: 7.947971804 | U152: comp103988_c0_seq1 | V152: 6.503553881 | W152: 8.329812846 | X152: 7.416683364
A153: comp10401755_c0_seq1 | B153: 0 | C153: 0 | D153: 0 | F153: comp10401755_c0_seq1 | G153: 0 | H153: 0 | I153: 0 | K153: comp10401755_c0_seq1 | L153: 0 | M153: 0 | N153: 0 | P153: comp10401755_c0_seq1 | Q153: 0 | R153: 0 | S153: 0 | U153: comp10401755_c0_seq1 | V153: 0 | W153: 0 | X153: 0
A154: comp104105_c0_seq1 | B154: 8.218123557 | C154: 5.439955276 | D154: 6.829039417 | F154: comp104105_c0_seq1 | G154: 8.305279957 | H154: 2.57435043 | I154: 5.439815193 | K154: comp104105_c0_seq1 | L154: 2.620141857 | M154: 2.973355422 | N154: 2.79674864 | P154: comp104105_c0_seq1 | Q154: 7.67202326 | R154: 6.830011344 | S154: 7.251017302 | U154: comp104105_c0_seq1 | V154: 5.145081278 | W154: 3.757343353 | X154: 4.451212315
A155: comp104114_c0_seq1 | B155: 4.997745375 | C155: 5.764191021 | D155: 5.380968198 | F155: comp104114_c0_seq1 | G155: 3.29642555 | H155: 2.374400882 | I155: 2.835413216 | K155: comp104114_c0_seq1 | L155: 3.525281771 | M155: 3.695456025 | N155: 3.610368898 | P155: comp104114_c0_seq1 | Q155: 7.231907193 | R155: 8.561563516 | S155: 7.896735354 | U155: comp104114_c0_seq1 | V155: 6.332407726 | W155: 6.179432456 | X155: 6.255920091
A156: comp104137_c0_seq1 | B156: 2.727642722 | C156: 4.17903849 | D156: 3.453340606 | F156: comp104137_c0_seq1 | G156: 3.767343485 | H156: 4.098965734 | I156: 3.93315461 | K156: comp104137_c0_seq1 | L156: 4.684496047 | M156: 3.992791567 | N156: 4.338643807 | P156: comp104137_c0_seq1 | Q156: 3.390894244 | R156: 3.324152626 | S156: 3.357523435 | U156: comp104137_c0_seq1 | V156: 4.567463005 | W156: 4.137735552 | X156: 4.352599279
A157: comp1041448_c0_seq1 | B157: 0 | C157: 0 | D157: 0 | F157: comp1041448_c0_seq1 | G157: 0 | H157: 8.372887322 | I157: 4.186443661 | K157: comp1041448_c0_seq1 | L157: 0 | M157: 0 | N157: 0 | P157: comp1041448_c0_seq1 | Q157: 0 | R157: 0 | S157: 0 | U157: comp1041448_c0_seq1 | V157: 0 | W157: 0 | X157: 0
A158: comp10416415_c0_seq1 | B158: 0 | C158: 0 | D158: 0 | F158: comp10416415_c0_seq1 | G158: 0 | H158: 0 | I158: 0 | K158: comp10416415_c0_seq1 | L158: 0 | M158: 0 | N158: 0 | P158: comp10416415_c0_seq1 | Q158: 0 | R158: 0 | S158: 0 | U158: comp10416415_c0_seq1 | V158: 0 | W158: 0 | X158: 0
A159: comp104210_c0_seq1 | B159: 2.463677298 | C159: 1.693231112 | D159: 2.078454205 | F159: comp104210_c0_seq1 | G159: 0.4709179357 | H159: 0.49987387 | I159: 0.4853959028 | K159: comp104210_c0_seq1 | L159: 1.040116919 | M159: 0.739091205 | N159: 0.8896040619 | P159: comp104210_c0_seq1 | Q159: 1.550408873 | R159: 1.571223267 | S159: 1.56081607 | U159: comp104210_c0_seq1 | V159: 1.251506257 | W159: 1.583673645 | X159: 1.417589951
A160: comp104214_c0_seq1 | B160: 4.205849101 | C160: 4.287117072 | D160: 4.246483086 | F160: comp104214_c0_seq1 | G160: 2.761291532 | H160: 2.49936935 | I160: 2.630330441 | K160: comp104214_c0_seq1 | L160: 3.874634018 | M160: 4.179688194 | N160: 4.027161106 | P160: comp104214_c0_seq1 | Q160: 5.751516785 | R160: 5.803906353 | S160: 5.777711569 | U160: comp104214_c0_seq1 | V160: 4.118204349 | W160: 4.362865629 | X160: 4.240534989
A161: comp1042342_c0_seq1 | B161: 0 | C161: 0 | D161: 0 | F161: comp1042342_c0_seq1 | G161: 0 | H161: 0 | I161: 0 | K161: comp1042342_c0_seq1 | L161: 0 | M161: 0 | N161: 0 | P161: comp1042342_c0_seq1 | Q161: 0.180047482 | R161: 0 | S161: 0.09002374099 | U161: comp1042342_c0_seq1 | V161: 0.1283596161 | W161: 0.1009203793 | X161: 0.1146399977
A162: comp104281_c0_seq1 | B162: 4.029872151 | C162: 1.008733429 | D162: 2.51930279 | F162: comp104281_c0_seq1 | G162: 6.806904707 | H162: 11.24716207 | I162: 9.027033391 | K162: comp104281_c0_seq1 | L162: 2.254909962 | M162: 1.97090988 | N162: 2.112909921 | P162: comp104281_c0_seq1 | Q162: 0.8402215825 | R162: 0.8871532732 | S162: 0.8636874279 | U162: comp104281_c0_seq1 | V162: 1.700764913 | W162: 2.057223117 | X162: 1.878994015
A163: comp104298_c0_seq1 | B163: 11.70246716 | C163: 10.98798913 | D163: 11.34522815 | F163: comp104298_c0_seq1 | G163: 6.571445739 | H163: 5.298663022 | I163: 5.93505438 | K163: comp104298_c0_seq1 | L163: 5.589635961 | M163: 7.926116026 | N163: 6.757875993 | P163: comp104298_c0_seq1 | Q163: 15.54409928 | R163: 15.42364064 | S163: 15.48386996 | U163: comp104298_c0_seq1 | V163: 7.337891386 | W163: 7.972709966 | X163: 7.655300676
A164: comp104312_c0_seq1 | B164: 6.599135619 | C164: 8.8264175 | D164: 7.71277656 | F164: comp104312_c0_seq1 | G164: 8.990251499 | H164: 8.147944081 | I164: 8.56909779 | K164: comp104312_c0_seq1 | L164: 11.78269853 | M164: 8.146993857 | N164: 9.964846194 | P164: comp104312_c0_seq1 | Q164: 3.640960191 | R164: 3.003494816 | S164: 3.322227504 | U164: comp104312_c0_seq1 | V164: 3.305260114 | W164: 5.092597602 | X164: 4.198928858
A165: comp104349_c0_seq1 | B165: 4.9097569 | C165: 2.377728796 | D165: 3.643742848 | F165: comp104349_c0_seq1 | G165: 6.186149246 | H165: 4.248927895 | I165: 5.21753857 | K165: comp104349_c0_seq1 | L165: 4.700375695 | M165: 5.35203976 | N165: 5.026207727 | P165: comp104349_c0_seq1 | Q165: 12.40327098 | R165: 12.86906676 | S165: 12.63616887 | U165: comp104349_c0_seq1 | V165: 5.88314907 | W165: 3.928131687 | X165: 4.905640379
A166: comp104413_c0_seq1 | B166: 1.566194854 | C166: 1.513100143 | D166: 1.539647498 | F166: comp104413_c0_seq1 | G166: 0.4923232964 | H166: 0.549861257 | I166: 0.5210922767 | K166: comp104413_c0_seq1 | L166: 3.977851728 | M166: 3.287681567 | N166: 3.632766647 | P166: comp104413_c0_seq1 | Q166: 4.361150119 | R166: 4.831244331 | S166: 4.596197225 | U166: comp104413_c0_seq1 | V166: 4.09681108 | W166: 5.061545178 | X166: 4.579178129
A167: comp104431_c0_seq1 | B167: 11.40330635 | C167: 7.313317357 | D167: 9.358311853 | F167: comp104431_c0_seq1 | G167: 20.4849302 | H167: 10.19742695 | I167: 15.34117857 | K167: comp104431_c0_seq1 | L167: 10.10739571 | M167: 10.00746482 | N167: 10.05743026 | P167: comp104431_c0_seq1 | Q167: 5.861545802 | R167: 6.220761506 | S167: 6.041153654 | U167: comp104431_c0_seq1 | V167: 6.899329364 | W167: 6.45114117 | X167: 6.675235267
A168: comp1044410_c0_seq1 | B168: 0 | C168: 0 | D168: 0 | F168: comp1044410_c0_seq1 | G168: 0 | H168: 0.099974774 | I168: 0.049987387 | K168: comp1044410_c0_seq1 | L168: 0.02381947143 | M168: 0.1444201205 | N168: 0.08411979597 | P168: comp1044410_c0_seq1 | Q168: 0.440116067 | R168: 0.2992806223 | S168: 0.3696983447 | U168: comp1044410_c0_seq1 | V168: 0.2995057708 | W168: 0.4192077295 | X168: 0.3593567501
A169: comp104455_c0_seq1 | B169: 3.449148217 | C169: 1.837335888 | D169: 2.643242052 | F169: comp104455_c0_seq1 | G169: 6.29317605 | H169: 5.598587344 | I169: 5.945881697 | K169: comp104455_c0_seq1 | L169: 0.6510655523 | M169: 0.4842321688 | N169: 0.5676488605 | P169: comp104455_c0_seq1 | Q169: 1.950514388 | R169: 2.511819508 | S169: 2.231166948 | U169: comp104455_c0_seq1 | V169: 1.069663467 | W169: 1.979592056 | X169: 1.524627762
A170: comp10447015_c0_seq1 | B170: 0 | C170: 0 | D170: 0 | F170: comp10447015_c0_seq1 | G170: 0 | H170: 0 | I170: 0 | K170: comp10447015_c0_seq1 | L170: 0 | M170: 0 | N170: 0 | P170: comp10447015_c0_seq1 | Q170: 0 | R170: 0 | S170: 0 | U170: comp10447015_c0_seq1 | V170: 0 | W170: 0 | X170: 0
A171: comp104474_c0_seq1 | B171: 7.039077993 | C171: 1.188864398 | D171: 4.113971196 | F171: comp104474_c0_seq1 | G171: 2.9967505 | H171: 5.273669328 | I171: 4.135209914 | K171: comp104474_c0_seq1 | L171: 0.952778857 | M171: 1.520658916 | N171: 1.236718887 | P171: comp104474_c0_seq1 | Q171: 3.670968105 | R171: 5.205345109 | S171: 4.438156607 | U171: comp104474_c0_seq1 | V171: 3.583372615 | W171: 3.113005546 | X171: 3.348189081
A172: comp104486_c0_seq1 | B172: 6.036009379 | C172: 4.611352817 | D172: 5.323681098 | F172: comp104486_c0_seq1 | G172: 5.608204507 | H172: 4.49886483 | I172: 5.053534668 | K172: comp104486_c0_seq1 | L172: 7.36021667 | M172: 8.80113205 | N172: 8.08067436 | P172: comp104486_c0_seq1 | Q172: 10.78284364 | R172: 10.62446209 | S172: 10.70365287 | U172: comp104486_c0_seq1 | V172: 6.396587534 | W172: 7.491397387 | X172: 6.943992461
A173: comp10449072_c0_seq1 | B173: 0 | C173: 0 | D173: 0 | F173: comp10449072_c0_seq1 | G173: 0 | H173: 0 | I173: 0 | K173: comp10449072_c0_seq1 | L173: 0 | M173: 0 | N173: 0 | P173: comp10449072_c0_seq1 | Q173: 0 | R173: 0 | S173: 0 | U173: comp10449072_c0_seq1 | V173: 0 | W173: 0 | X173: 0
A174: comp1044999_c0_seq1 | B174: 0 | C174: 0 | D174: 0 | F174: comp1044999_c0_seq1 | G174: 0 | H174: 0 | I174: 0 | K174: comp1044999_c0_seq1 | L174: 0 | M174: 0 | N174: 0 | P174: comp1044999_c0_seq1 | Q174: 0 | R174: 0 | S174: 0 | U174: comp1044999_c0_seq1 | V174: 0 | W174: 0 | X174: 0
A175: comp104503_c0_seq1 | B175: 2.762838112 | C175: 1.981440663 | D175: 2.372139388 | F175: comp104503_c0_seq1 | G175: 18.43001557 | H175: 11.29714946 | I175: 14.86358252 | K175: comp104503_c0_seq1 | L175: 10.62348426 | M175: 12.61552229 | N175: 11.61950327 | P175: comp104503_c0_seq1 | Q175: 2.490656834 | R175: 1.175745302 | S175: 1.833201068 | U175: comp104503_c0_seq1 | V175: 2.556495687 | W175: 3.516687064 | X175: 3.036591375
A176: comp1045553_c0_seq1 | B176: 0 | C176: 0.3602619388 | D176: 0.1801309694 | F176: comp1045553_c0_seq1 | G176: 0 | H176: 0 | I176: 0 | K176: comp1045553_c0_seq1 | L176: 0 | M176: 0.09344831327 | N176: 0.04672415664 | P176: comp1045553_c0_seq1 | Q176: 0 | R176: 0 | S176: 0 | U176: comp1045553_c0_seq1 | V176: 0 | W176: 0 | X176: 0
A177: comp10456174_c0_seq1 | B177: 0 | C177: 0 | D177: 0 | F177: comp10456174_c0_seq1 | G177: 0 | H177: 0 | I177: 0 | K177: comp10456174_c0_seq1 | L177: 0 | M177: 0 | N177: 0 | P177: comp10456174_c0_seq1 | Q177: 0 | R177: 0 | S177: 0 | U177: comp10456174_c0_seq1 | V177: 0 | W177: 0 | X177: 0
A178: comp104584_c0_seq1 | B178: 4.434619136 | C178: 2.88209551 | D178: 3.658357323 | F178: comp104584_c0_seq1 | G178: 0.6421608214 | H178: 1.824539625 | I178: 1.233350223 | K178: comp104584_c0_seq1 | L178: 2.485164852 | M178: 1.953919278 | N178: 2.219542065 | P178: comp104584_c0_seq1 | Q178: 5.091342685 | R178: 5.547380106 | S178: 5.319361395 | U178: comp104584_c0_seq1 | V178: 5.134384643 | W178: 4.355102523 | X178: 4.744743583
A179: comp104689_c0_seq1 | B179: 7.531813453 | C179: 9.546941378 | D179: 8.539377415 | F179: comp104689_c0_seq1 | G179: 8.883224696 | H179: 8.99772966 | I179: 8.940477178 | K179: comp104689_c0_seq1 | L179: 5.033848294 | M179: 7.339940243 | N179: 6.186894269 | P179: comp104689_c0_seq1 | Q179: 3.951041966 | R179: 6.178007131 | S179: 5.064524548 | U179: comp104689_c0_seq1 | V179: 3.75451877 | W179: 4.704442297 | X179: 4.229480534
A180: comp1047218_c0_seq1 | B180: 0 | C180: 0 | D180: 0 | F180: comp1047218_c0_seq1 | G180: 0 | H180: 0 | I180: 0 | K180: comp1047218_c0_seq1 | L180: 0 | M180: 0 | N180: 0 | P180: comp1047218_c0_seq1 | Q180: 0 | R180: 0 | S180: 0 | U180: comp1047218_c0_seq1 | V180: 0 | W180: 0 | X180: 0
A181: comp1047347_c0_seq1 | B181: 0 | C181: 0.6484714898 | D181: 0.3242357449 | F181: comp1047347_c0_seq1 | G181: 0 | H181: 0 | I181: 0 | K181: comp1047347_c0_seq1 | L181: 0 | M181: 0 | N181: 0 | P181: comp1047347_c0_seq1 | Q181: 0 | R181: 0 | S181: 0 | U181: comp1047347_c0_seq1 | V181: 0 | W181: 0.09315727321 | X181: 0.04657863661
A182: comp1047459_c0_seq1 | B182: 0.3695515947 | C182: 0 | D182: 0.1847757973 | F182: comp1047459_c0_seq1 | G182: 0 | H182: 0.5248675635 | I182: 0.2624337817 | K182: comp1047459_c0_seq1 | L182: 0 | M182: 0 | N182: 0 | P182: comp1047459_c0_seq1 | Q182: 0 | R182: 0.1496403111 | S182: 0.07482015557 | U182: comp1047459_c0_seq1 | V182: 0 | W182: 0 | X182: 0
A183: comp104754_c0_seq1 | B183: 2.903619672 | C183: 4.143012296 | D183: 3.523315984 | F183: comp104754_c0_seq1 | G183: 0 | H183: 0.2249432415 | I183: 0.1124716207 | K183: comp104754_c0_seq1 | L183: 3.390304766 | M183: 2.964860121 | N183: 3.177582444 | P183: comp104754_c0_seq1 | Q183: 5.231379615 | R183: 4.777801363 | S183: 5.004590489 | U183: comp104754_c0_seq1 | V183: 2.053753857 | W183: 3.935894793 | X183: 2.994824325
A184: comp1048015_c0_seq1 | B184: 0.3519538997 | C184: 0 | D184: 0.1759769498 | F184: comp1048015_c0_seq1 | G184: 2.525832564 | H184: 0.49987387 | I184: 1.512853217 | K184: comp1048015_c0_seq1 | L184: 0.3493522476 | M184: 0.4417556628 | N184: 0.3955539552 | P184: comp1048015_c0_seq1 | Q184: 0 | R184: 0 | S184: 0 | U184: comp1048015_c0_seq1 | V184: 0.1069663467 | W184: 0.3260504562 | X184: 0.2165084015
A185: comp1048306_c0_seq1 | B185: 0 | C185: 0 | D185: 0 | F185: comp1048306_c0_seq1 | G185: 0 | H185: 0 | I185: 0 | K185: comp1048306_c0_seq1 | L185: 0 | M185: 0 | N185: 0 | P185: comp1048306_c0_seq1 | Q185: 0.4001055155 | R185: 0 | S185: 0.2000527577 | U185: comp1048306_c0_seq1 | V185: 0 | W185: 0.1086834854 | X185: 0.05434174271
A186: comp1048393_c0_seq1 | B186: 0.3519538997 | C186: 0 | D186: 0.1759769498 | F186: comp1048393_c0_seq1 | G186: 0 | H186: 0 | I186: 0 | K186: comp1048393_c0_seq1 | L186: 0.3572920714 | M186: 0 | N186: 0.1786460357 | P186: comp1048393_c0_seq1 | Q186: 0 | R186: 0 | S186: 0 | U186: comp1048393_c0_seq1 | V186: 0.1069663467 | W186: 0 | X186: 0.05348317337
A187: comp10485595_c0_seq1 | B187: 0 | C187: 0 | D187: 0 | F187: comp10485595_c0_seq1 | G187: 0 | H187: 0 | I187: 0 | K187: comp10485595_c0_seq1 | L187: 0 | M187: 0 | N187: 0 | P187: comp10485595_c0_seq1 | Q187: 0 | R187: 0 | S187: 0 | U187: comp10485595_c0_seq1 | V187: 0 | W187: 0 | X187: 0
A188: comp10488747_c0_seq1 | B188: 0 | C188: 0 | D188: 0 | F188: comp10488747_c0_seq1 | G188: 0 | H188: 0 | I188: 0 | K188: comp10488747_c0_seq1 | L188: 0 | M188: 0 | N188: 0 | P188: comp10488747_c0_seq1 | Q188: 0 | R188: 0 | S188: 0 | U188: comp10488747_c0_seq1 | V188: 0 | W188: 0 | X188: 0
A189: comp1049115_c0_seq1 | B189: 0 | C189: 0.4683405204 | D189: 0.2341702602 | F189: comp1049115_c0_seq1 | G189: 0 | H189: 0 | I189: 0 | K189: comp1049115_c0_seq1 | L189: 0.5716673142 | M189: 0.1189342169 | N189: 0.3453007655 | P189: comp1049115_c0_seq1 | Q189: 0.1200316546 | R189: 0.1175745302 | S189: 0.1188030924 | U189: comp1049115_c0_seq1 | V189: 0.08557307738 | W189: 0.06986795491 | X189: 0.07772051615
A190: comp104923_c0_seq1 | B190: 28.66664513 | C190: 99.72050466 | D190: 64.19357489 | F190: comp104923_c0_seq1 | G190: 17.12428857 | H190: 25.34360521 | I190: 21.23394689 | K190: comp104923_c0_seq1 | L190: 4.009611023 | M190: 2.293731326 | N190: 3.151671175 | P190: comp104923_c0_seq1 | Q190: 0.6101609111 | R190: 2.960740442 | S190: 1.785450676 | U190: comp104923_c0_seq1 | V190: 0.556225003 | W190: 1.110124172 | X190: 0.8331745877
A191: comp104928_c0_seq1 | B191: 10.08347923 | C191: 11.67248682 | D191: 10.87798302 | F191: comp104928_c0_seq1 | G191: 3.89577565 | H191: 5.398637796 | I191: 4.647206723 | K191: comp104928_c0_seq1 | L191: 7.336397199 | M191: 6.498905423 | N191: 6.917651311 | P191: comp104928_c0_seq1 | Q191: 13.79363765 | R191: 14.91058815 | S191: 14.3521129 | U191: comp104928_c0_seq1 | V191: 13.07128757 | W191: 11.67571158 | X191: 12.37349957
A192: comp104939_c0_seq1 | B192: 5.349699275 | C192: 8.033841235 | D192: 6.691770255 | F192: comp104939_c0_seq1 | G192: 14.79110425 | H192: 10.69730082 | I192: 12.74420254 | K192: comp104939_c0_seq1 | L192: 4.033430495 | M192: 5.462478676 | N192: 4.747954585 | P192: comp104939_c0_seq1 | Q192: 6.781788488 | R192: 4.970196048 | S192: 5.875992268 | U192: comp104939_c0_seq1 | V192: 5.230654355 | W192: 3.439056003 | X192: 4.334855179
A193: comp10495718_c0_seq1 | B193: 0 | C193: 0 | D193: 0 | F193: comp10495718_c0_seq1 | G193: 0 | H193: 0 | I193: 0 | K193: comp10495718_c0_seq1 | L193: 0 | M193: 0 | N193: 0 | P193: comp10495718_c0_seq1 | Q193: 0 | R193: 0 | S193: 0 | U193: comp10495718_c0_seq1 | V193: 0 | W193: 0 | X193: 0
A194: comp10500318_c0_seq1 | B194: 0 | C194: 0 | D194: 0 | F194: comp10500318_c0_seq1 | G194: 0 | H194: 0 | I194: 0 | K194: comp10500318_c0_seq1 | L194: 0 | M194: 0 | N194: 0 | P194: comp10500318_c0_seq1 | Q194: 0 | R194: 0 | S194: 0 | U194: comp10500318_c0_seq1 | V194: 0 | W194: 0 | X194: 0
A195: comp105003_c0_seq1 | B195: 5.22651541 | C195: 6.881003031 | D195: 6.053759221 | F195: comp105003_c0_seq1 | G195: 5.993501 | H195: 5.323656715 | I195: 5.658578857 | K195: comp105003_c0_seq1 | L195: 4.835352699 | M195: 6.05714976 | N195: 5.44625123 | P195: comp105003_c0_seq1 | Q195: 5.601477217 | R195: 5.654266042 | S195: 5.62787163 | U195: comp105003_c0_seq1 | V195: 3.93636156 | W195: 4.176551082 | X195: 4.056456321
A196: comp10506044_c0_seq1 | B196: 0 | C196: 0 | D196: =AVERAGE(B196:C196) -> 0 | F196: comp10506044_c0_seq1 | G196: 0 | H196: 0 | I196: =AVERAGE(G196:H196) -> 0 | K196: comp10506044_c0_seq1 | L196: 0 | M196: 0.1614107229 | N196: =AVERAGE(L196:M196) -> 0.08070536146 | P196: comp10506044_c0_seq1 | Q196: 0 | R196: 0.1496403111 | S196: =AVERAGE(Q196:R196) -> 0.07482015557 | U196: comp10506044_c0_seq1 | V196: 0 | W196: 0 | X196: =AVERAGE(V196:W196) -> 0
A197: comp1050749_c0_seq1 | B197: 0.1407815599 | C197: 0 | D197: 0.07039077993 | F197: comp1050749_c0_seq1 | G197: 0.2568643286 | H197: 0 | I197: 0.1284321643 | K197: comp1050749_c0_seq1 | L197: 0.0952778857 | M197: 0 | N197: 0.04763894285 | P197: comp1050749_c0_seq1 | Q197: 0.2500659472 | R197: 0.1175745302 | S197: 0.1838202387 | U197: comp1050749_c0_seq1 | V197: 0.2353259628 | W197: 0.1009203793 | X197: 0.1681231711
A198: comp1050935_c0_seq1 | B198: 0 | C198: 0.7205238776 | D198: 0.3602619388 | F198: comp1050935_c0_seq1 | G198: 0 | H198: 1.299672062 | I198: 0.649836031 | K198: comp1050935_c0_seq1 | L198: 0.07145841428 | M198: 0.09344831327 | N198: 0.08245336377 | P198: comp1050935_c0_seq1 | Q198: 0.1000263789 | R198: 0.277903435 | S198: 0.1889649069 | U198: comp1050935_c0_seq1 | V198: 0 | W198: 0.05434174271 | X198: 0.02717087135
A199: comp105127_c0_seq1 | B199: 1.530999464 | C199: 2.918121704 | D199: 2.224560584 | F199: comp105127_c0_seq1 | G199: 0.2568643286 | H199: 0.199949548 | I199: 0.2284069383 | K199: comp105127_c0_seq1 | L199: 3.525281771 | M199: 2.922383615 | N199: 3.223832693 | P199: comp105127_c0_seq1 | Q199: 5.451437649 | R199: 4.382323398 | S199: 4.916880523 | U199: comp105127_c0_seq1 | V199: 3.765215405 | W199: 4.882993738 | X199: 4.324104571
A200: comp105143_c0_seq1 | B200: 9.010019832 | C200: 5.908295796 | D200: 7.459157814 | F200: comp105143_c0_seq1 | G200: 9.075872942 | H200: 11.19717469 | I200: 10.13652381 | K200: comp105143_c0_seq1 | L200: 5.923108561 | M200: 7.441883857 | N200: 6.682496209 | P200: comp105143_c0_seq1 | Q200: 9.262442684 | R200: 10.93443131 | S200: 10.098437 | U200: comp105143_c0_seq1 | V200: 7.69088033 | W200: 6.963506173 | X200: 7.327193251
... 2050 more rows
